Workbook

Sheet Examples (hidden)
B2: IPART colour codes for models, spreadsheets and information requests
B3: NB ALWAYS DESCRIBE THE COLOUR CODE USED IN YOUR MODEL
B4: Note: If you use the formats for the inputs provided in this template, input cells will always be unprotected even when you protect the worksheet
H5: use this column cell to "paint" input cells for numbers (NOT for percentages)
I6: use this column cell to "paint" input cells for percentages (NOT numbers)
B7: Models and spreadsheets
G8: numbers | H8: %
B9: Inputs | G9: 4232 | H9: 0.08
B10: Inputs with default values, default values are shown in italics next to or below | G10: 34345 | H10: 0.08
B11: Hard-coded values used that should not be changed, e.g. credit ratings or '1' at the start of an index series.
B12: Key outputs
B13: Links from other files (green)
B14: Error check (check =0)
B15: Error warnings, messages and unusual calculation assumptions
B16: Indicate change in formula across row with a double red line
B17: Note: You can combine options for inputs, e.g.: | E17: Inputs can be links to other files
E18: You can drawn attention to unusual inputs
H20: use this column cell to "paint" input cells for numbers (NOT for percentages)
B21: Information Requests | I21: use this column cell to "paint" input cells for percentages (NOT numbers)
G22: numbers | H22: %
B23: Inputs for historical years (actual values) | G23: 234 | H23: 0.24
B24: Forecast inputs | G24: 6667 | H24: 0.05
B25: Error warnings and messages
B26: Error check (check =0)
B28: QA notes - annotation or documentation by QA staff
A33: User Instructions - IPART CHARTS
B35: Data 1 | C35: Data 2 | D35: Data 3 | E35: Data 4 | F35: Data 5 | G35: Data 6 | H35: Data 7 | I35: Data 8 | L35: Data 1 | M35: Data 2 | N35: Data 3 | O35: Data 4 | P35: Data 5 | Q35: Data 6 | S35: X value | T35: 1st Y value | U35: 2nd Y value | X35: Blue | Y35: Grey | Z35: Turquoise | AA35: Grey-80%
A36: 1975-76 | B36: 36.19 | C36: 36.88 | D36: 21.56 | E36: 5.36 | F36: 3.01 | G36: 10 | H36: 5.2 | I36: 13 | K36: 1975-76 | L36: 33.19 | M36: 36.88 | N36: 21.56 | O36: 5.36 | P36: 3.01 | Q36: 10 | S36: 1.8 | T36: 10 | U36: 17 | W36: 1975-76 | X36: 33.19 | Y36: 36.88 | Z36: 21.56 | AA36: 5.36
A37: 1983-84 | B37: 39.39 | C37: 32.02 | D37: 21.6 | E37: 7.01 | F37: 3.36 | G37: 12 | H37: 6.6 | I37: 15 | K37: 1983-84 | L37: 39.39 | M37: 32.02 | N37: 21.6 | O37: 7.01 | P37: 3.36 | Q37: 12 | S37: 2.3 | T37: 12 | U37: 9 | W37: 1983-84 | X37: 39.39 | Y37: 32.02 | Z37: 21.6 | AA37: 7.01
A38: 1988-89 | B38: 42.78 | C38: 29.91 | D38: 18.35 | E38: 6.33 | F38: 2.63 | G38: 14 | H38: 5.7 | I38: 16 | K38: 1988-89 | L38: 42.78 | M38: 29.91 | N38: 18.35 | O38: 6.33 | P38: 2.63 | Q38: 14 | S38: 3.7 | T38: 16 | U38: 14 | W38: 1988-89 | X38: 42.78 | Y38: 29.91 | Z38: 18.35 | AA38: 6.33
A39: 1993-94 | B39: 42.13 | C39: 26.53 | D39: 21.6 | E39: 7.01 | F39: 2.72 | G39: 16 | H39: 3 | I39: 17 | K39: 1993-94 | L39: 42.13 | M39: 26.53 | N39: 21.6 | O39: 7.01 | P39: 2.72 | Q39: 16 | S39: 4.1 | T39: 8 | U39: 23 | W39: 1993-94 | X39: 42.13 | Y39: 26.53 | Z39: 21.6 | AA39: 7.01
A40: 1996-97 | B40: 41.69 | C40: 24.76 | D40: 23.98 | E40: 7 | F40: 2.57 | G40: 18 | H40: 3.5 | I40: 19 | K40: 1996-97 | L40: 41.69 | M40: 24.76 | N40: 23.98 | O40: 7 | P40: 2.57 | Q40: 18 | S40: 5.5 | T40: 14 | U40: 27 | W40: 1996-97 | X40: 41.69 | Y40: 24.76 | Z40: 23.98 | AA40: 7
A41: 1997-98 | B41: 39.39 | C41: 32.02 | D41: 21.6 | E41: 7.01 | F41: 3.36 | G41: 12 | H41: 3.8 | I41: 13 | K41: 1997-98 | L41: 39.39 | M41: 32.02 | N41: 21.6 | O41: 7.01 | P41: 3.36 | Q41: 12 | W41: 1997-98 | X41: 39.39 | Y41: 32.02 | Z41: 21.6 | AA41: 7.01
A42: 1998-99 | B42: 42.13 | C42: 26.53 | D42: 21.6 | E42: 7.01 | F42: 2.72 | G42: 16 | H42: 3.2 | I42: 18 | K42: 1998-99 | L42: 42.13 | M42: 26.53 | N42: 21.6 | O42: 7.01 | P42: 2.72 | Q42: 16 | W42: 1998-99 | X42: 42.13 | Y42: 26.53 | Z42: 21.6 | AA42: 7.01
A43: 1999-00 | B43: 45 | C43: 22 | D43: 26 | E43: 8 | F43: 2 | G43: 20 | H43: 4 | I43: 22 | K43: 1999-00 | L43: 45 | M43: 22 | N43: 26 | O43: 8 | P43: 2 | Q43: 20 | W43: 1999-00 | X43: 45 | Y43: 22 | Z43: 26 | AA43: 8
A44: – en rule for when needed

Sheet Journal (hidden)
B2: Journal of structural changes made to model/spreadsheet
B4: Changes since Draft report (D23/9745)
B5: Please paste the name of the updated version in the box below (file name)
B7: <Enter file name here>
B9: Description of changes: | C9: Worksheet: | D9: Made by: | E9: Date | F9: Notes
B10: SIGNIFICANT STRUCTURAL CHANGES MADE IN THIS VERSION
B11: Simplified
B22: OTHER CHANGES
B27: CORRECTIONS TO BE MADE AFTER next date (next step)
B32: ALTERATIONS TO BE MADE AFTER Next date (next step)

Sheet Cover
B3: Review of rate peg methodology - Draft report Base Cost Change (BCC) options
B4: How we calculated 3 of the options provided in our Review of rate peg methodology, Draft Report, June 2023
B5: available here
B6: MODELLER: | D6: Bee Thompson
B7: email | D7: Bee_Thompson@ipart.nsw.gov.au
B10: WHAT IS THE PURPOSE OF MODEL?
B11: The Local Government Cost Index (LGCI) is a component of the rate peg. Due to timing requirements, the LGCI (and rate peg) reflects change in costs with a 2 yr lag.
B12: We are reviewing our rate peg methodology. Our draft decision is to replace the replace the LGCI with a forward-looking 3-factor Base Cost Change model (BCC).
B13: We propose to replace the LGCI with a forward-looking Base Cost Change (BCC) with 3 components:
B14: ● | C14: employee costs
B15: ● | C15: asset costs
B16: ● | C16: other operating costs
B17: IPART, Review of the rate peg methodology Draft Report, June 2023
B19: This model calculates what the BCC would have been between 2016-17 and 2023-24 under different assumptions for changes in employee costs, asset costs and other operating costs,
B20: as reported in Table 3.3 in our Draft report (p47).
B21: Specifically, it calculates a BCC using, for the 3 cost categories respectively
B22: ● | C22: Preferred BCC: Award increase (with RBA WPI forecasts in years when Award increases are unknown at the time we set the rate peg), PPI - adjusted CPI forecasts and RBA CPI forecasts.
B23: ● | C23: Option 1: Only RBA WPI forecasts, PPI - adjusted CPI forecasts and RBA CPI forecasts.
B24: ● | C24: Preferred BCC with true-ups: as for Preferred BCC with true-ups for all 3 components.
B26: The model calculates BCCs for
B27: ● | C27: 3 council groupings
B28: ● | C28: NSW as a whole (single group)
B29: The model also reproduces Figure 3.1 in the Draft Report (p30), which compares changes in CPI, LGCI and a our 'preferred' BCC over a number of years.
B32: COLOUR CODE <Required for all models/spreadsheets. See 'Examples' for the full list of potential colour codes>
B33: This model uses standard IPART colour coding:
B34: Blue cells indicate inputs
B35: Blue font indicates IPART hard-coded values used that should not be changed
B36: Key outputs
B37: Pink font indicates calculation checks
B38: Red indicates assumptions made in calculations
B39: Red double line means formula changes across row

Sheet Results
B2: =Cover!$B$3 -> Review of rate peg methodology - Draft report Base Cost Change (BCC) options
B4: RESULTS
B7: Table 1 | C7: BCC with alternative ways to measure changes in employee and asset cost
C8: ΔLGCI in | D8: ΔCPIa | E8: Preferred BCC | F8: Option 1 | G8: Preferred BCC
C9: rate peg | E9: Awardb | F9: RBA WPI | G9: with true-upd
E10: PPIc | F10: PPIc
E11: CPI | F11: CPI
B12: =Inputs!$B$31 -> Metropolitan
B13: =Inputs!C15 -> 2016-17 | C13: =Inputs!E15 -> 0.0178 | D13: ='ABS CPI'!N130 -> 0.01708217913 | E13: ='BCC Preferred'!J34 -> 0.028 | F13: ='BCC Option 1 RBA WPI'!$J34 -> 0.028 | G13: ='BCC Preferred with true-up'!$J34 -> 0.021
B14: =Inputs!C16 -> 2017-18 | C14: =Inputs!E16 -> 0.01468104681 | D14: ='ABS CPI'!N131 -> 0.01929187472 | E14: ='BCC Preferred'!J35 -> 0.025 | F14: ='BCC Option 1 RBA WPI'!$J35 -> 0.025 | G14: ='BCC Preferred with true-up'!$J35 -> 0.012
B15: =Inputs!C17 -> 2018-19 | C15: =Inputs!E17 -> 0.02285100767 | D15: ='ABS CPI'!N132 -> 0.01647739924 | E15: ='BCC Preferred'!J36 -> 0.024 | F15: ='BCC Option 1 RBA WPI'!$J36 -> 0.024 | G15: ='BCC Preferred with true-up'!$J36 -> 0.015
B16: =Inputs!C18 -> 2019-20 | C16: =Inputs!E18 -> 0.02688663934 | D16: ='ABS CPI'!N133 -> 0.01336254107 | E16: ='BCC Preferred'!J37 -> 0.023 | F16: ='BCC Option 1 RBA WPI'!$J37 -> 0.024 | G16: ='BCC Preferred with true-up'!$J37 -> 0.021
B17: =Inputs!C19 -> 2020-21 | C17: =Inputs!E19 -> 0.02564114517 | D17: ='ABS CPI'!N134 -> 0.01621271077 | E17: ='BCC Preferred'!J38 -> 0.021 | F17: ='BCC Option 1 RBA WPI'!$J38 -> 0.021 | G17: ='BCC Preferred with true-up'!$J38 -> 0.021
B18: =Inputs!C20 -> 2021-22 | C18: =Inputs!E20 -> 0.01772535156 | D18: ='ABS CPI'!N135 -> 0.04445862582 | E18: ='BCC Preferred'!J39 -> 0.017 | F18: ='BCC Option 1 RBA WPI'!$J39 -> 0.014 | G18: ='BCC Preferred with true-up'!$J39 -> 0.007
B19: =Inputs!C21 -> 2022-23 | C19: =Inputs!E21 -> 0.008680620649 | E19: ='BCC Preferred'!J40 -> 0.021 | F19: ='BCC Option 1 RBA WPI'!$J40 -> 0.024 | G19: ='BCC Preferred with true-up'!$J40 -> 0.019
B20: =Inputs!C22 -> 2023-24 | C20: =Inputs!E22 -> 0.037 | E20: ='BCC Preferred'!J41 -> 0.041 | F20: ='BCC Option 1 RBA WPI'!$J41 -> 0.041 | G20: ='BCC Preferred with true-up'!$J41 -> 0.062
B21: =Inputs!$B$34 -> Regional
B22: =B13 -> 2016-17 | C22: 0.0178 | D22: =D13 -> 0.01708217913 | E22: ='BCC Preferred'!J46 -> 0.028 | F22: ='BCC Option 1 RBA WPI'!$J46 -> 0.028 | G22: ='BCC Preferred with true-up'!$J46 -> 0.021
B23: 2017-18 | C23: 0.01468104681 | D23: 0.01929187472 | E23: ='BCC Preferred'!J47 -> 0.025 | F23: ='BCC Option 1 RBA WPI'!$J47 -> 0.025 | G23: ='BCC Preferred with true-up'!$J47 -> 0.011
B24: 2018-19 | C24: 0.02285100767 | D24: 0.01647739924 | E24: ='BCC Preferred'!J48 -> 0.024 | F24: ='BCC Option 1 RBA WPI'!$J48 -> 0.024 | G24: ='BCC Preferred with true-up'!$J48 -> 0.014
B25: 2019-20 | C25: 0.02688663934 | D25: 0.01336254107 | E25: ='BCC Preferred'!J49 -> 0.023 | F25: ='BCC Option 1 RBA WPI'!$J49 -> 0.024 | G25: ='BCC Preferred with true-up'!$J49 -> 0.021
B26: 2020-21 | C26: 0.02564114517 | D26: 0.01621271077 | E26: ='BCC Preferred'!J50 -> 0.021 | F26: ='BCC Option 1 RBA WPI'!$J50 -> 0.021 | G26: ='BCC Preferred with true-up'!$J50 -> 0.022
B27: 2021-22 | C27: 0.01772535156 | D27: 0.04445862582 | E27: ='BCC Preferred'!J51 -> 0.016 | F27: ='BCC Option 1 RBA WPI'!$J51 -> 0.014 | G27: ='BCC Preferred with true-up'!$J51 -> 0.007
B28: 2022-23 | C28: 0.008680620649 | E28: ='BCC Preferred'!J52 -> 0.021 | F28: ='BCC Option 1 RBA WPI'!$J52 -> 0.023 | G28: ='BCC Preferred with true-up'!$J52 -> 0.018
B29: 2023-24 | C29: 0.037 | E29: ='BCC Preferred'!J53 -> 0.041 | F29: ='BCC Option 1 RBA WPI'!$J53 -> 0.041 | G29: ='BCC Preferred with true-up'!$J53 -> 0.064
B30: =Inputs!$B$35 -> Rural
B31: =B22 -> 2016-17 | C31: 0.0178 | D31: =D22 -> 0.01708217913 | E31: ='BCC Preferred'!J58 -> 0.028 | F31: ='BCC Option 1 RBA WPI'!$J58 -> 0.028 | G31: ='BCC Preferred with true-up'!$J58 -> 0.021
B32: 2017-18 | C32: 0.01468104681 | D32: 0.01929187472 | E32: ='BCC Preferred'!J59 -> 0.025 | F32: ='BCC Option 1 RBA WPI'!$J59 -> 0.025 | G32: ='BCC Preferred with true-up'!$J59 -> 0.011
B33: 2018-19 | C33: 0.02285100767 | D33: 0.01647739924 | E33: ='BCC Preferred'!J60 -> 0.024 | F33: ='BCC Option 1 RBA WPI'!$J60 -> 0.024 | G33: ='BCC Preferred with true-up'!$J60 -> 0.013
B34: 2019-20 | C34: 0.02688663934 | D34: 0.01336254107 | E34: ='BCC Preferred'!J61 -> 0.023 | F34: ='BCC Option 1 RBA WPI'!$J61 -> 0.024 | G34: ='BCC Preferred with true-up'!$J61 -> 0.021
B35: 2020-21 | C35: 0.02564114517 | D35: 0.01621271077 | E35: ='BCC Preferred'!J62 -> 0.021 | F35: ='BCC Option 1 RBA WPI'!$J62 -> 0.021 | G35: ='BCC Preferred with true-up'!$J62 -> 0.022
B36: 2021-22 | C36: 0.01772535156 | D36: 0.04445862582 | E36: ='BCC Preferred'!J63 -> 0.016 | F36: ='BCC Option 1 RBA WPI'!$J63 -> 0.014 | G36: ='BCC Preferred with true-up'!$J63 -> 0.007
B37: 2022-23 | C37: 0.008680620649 | E37: ='BCC Preferred'!J64 -> 0.021 | F37: ='BCC Option 1 RBA WPI'!$J64 -> 0.023 | G37: ='BCC Preferred with true-up'!$J64 -> 0.018
B38: 2023-24 | C38: 0.037 | E38: ='BCC Preferred'!J65 -> 0.042 | F38: ='BCC Option 1 RBA WPI'!$J65 -> 0.042 | G38: ='BCC Preferred with true-up'!$J65 -> 0.065
B40: NSW
B41: =B13 -> 2016-17 | C41: 0.0178 | D41: =D13 -> 0.01708217913 | E41: ='BCC Preferred'!J74 -> 0.028 | F41: ='BCC Option 1 RBA WPI'!$J74 -> 0.028 | G41: ='BCC Preferred with true-up'!$J74 -> 0.021
B42: 2017-18 | C42: 0.01468104681 | D42: 0.01929187472 | E42: ='BCC Preferred'!J75 -> 0.025 | F42: ='BCC Option 1 RBA WPI'!$J75 -> 0.025 | G42: ='BCC Preferred with true-up'!$J75 -> 0.012
B43: 2018-19 | C43: 0.02285100767 | D43: 0.01647739924 | E43: ='BCC Preferred'!J76 -> 0.024 | F43: ='BCC Option 1 RBA WPI'!$J76 -> 0.024 | G43: ='BCC Preferred with true-up'!$J76 -> 0.014
B44: 2019-20 | C44: 0.02688663934 | D44: 0.01336254107 | E44: ='BCC Preferred'!J77 -> 0.023 | F44: ='BCC Option 1 RBA WPI'!$J77 -> 0.024 | G44: ='BCC Preferred with true-up'!$J77 -> 0.021
B45: 2020-21 | C45: 0.02564114517 | D45: 0.01621271077 | E45: ='BCC Preferred'!J78 -> 0.021 | F45: ='BCC Option 1 RBA WPI'!$J78 -> 0.021 | G45: ='BCC Preferred with true-up'!$J78 -> 0.021
B46: 2021-22 | C46: 0.01772535156 | D46: 0.04445862582 | E46: ='BCC Preferred'!J79 -> 0.017 | F46: ='BCC Option 1 RBA WPI'!$J79 -> 0.014 | G46: ='BCC Preferred with true-up'!$J79 -> 0.007
B47: 2022-23 | C47: 0.008680620649 | E47: ='BCC Preferred'!J80 -> 0.021 | F47: ='BCC Option 1 RBA WPI'!$J80 -> 0.023 | G47: ='BCC Preferred with true-up'!$J80 -> 0.018
B48: 2023-24 | C48: 0.037 | E48: ='BCC Preferred'!J81 -> 0.041 | F48: ='BCC Option 1 RBA WPI'!$J81 -> 0.041 | G48: ='BCC Preferred with true-up'!$J81 -> 0.063
B49: a Australian CPI, average of four quarters to June each year.
B50: b Award when know at the time we set the rate peg, otherwise RBA WPI forecast
B51: c PPI adjusted ΔCPI forecast
B52: d Preferred BCC with true-ups: for employee costs, true-up to the Award in the 2nd year of each Award period;
B53: for asset costs, true-up to actual ΔPPI (Road and bridge construction); for other costs, true-up to actual ΔCPI (Australia).
B59: Figure 1 | C59: Comparison of changes in the LGCI, draft BCC and measures of CPI
B79: Table 2 | C79: Comparison of ΔLGCI (without lag), actual and forecast ΔCPI and average BCC
C80: ΔLGCI (without lag) | D80: CPI Actual | E80: CPI Forecast | F80: Average BCC
B81: =Inputs!C48 -> 2011-12 | C81: =Inputs!E12 -> 0.03691789833 | D81: ='ABS CPI'!N125 -> 0.02302379125 | E81: =Inputs!H48 -> 0.02875
B82: =Inputs!C49 -> 2012-13 | C82: =Inputs!E13 -> 0.02811406342 | D82: ='ABS CPI'!N126 -> 0.02275568892 | E82: =Inputs!H49 -> 0.03625
B83: =Inputs!C50 -> 2013-14 | C83: =Inputs!E14 -> 0.02469904826 | D83: ='ABS CPI'!N127 -> 0.0271393643 | E83: =Inputs!H50 -> 0.025
B84: =Inputs!C51 -> 2014-15 | C84: =Inputs!E15 -> 0.0178 | D84: ='ABS CPI'!N128 -> 0.01713877648 | E84: =Inputs!H51 -> 0.025
B85: =Inputs!C52 -> 2015-16 | C85: =Inputs!E16 -> 0.01468104681 | D85: ='ABS CPI'!N129 -> 0.0138076293 | E85: =Inputs!H52 -> 0.03
B86: =Inputs!C53 -> 2016-17 | C86: =Inputs!E17 -> 0.02285100767 | D86: ='ABS CPI'!N130 -> 0.01708217913 | E86: =Inputs!H53 -> 0.025
B87: =Inputs!C54 -> 2017-18 | C87: =Inputs!E18 -> 0.02688663934 | D87: ='ABS CPI'!N131 -> 0.01929187472 | E87: =Inputs!H54 -> 0.02
B88: =Inputs!C55 -> 2018-19 | C88: =Inputs!E19 -> 0.02564114517 | D88: ='ABS CPI'!N132 -> 0.01647739924 | E88: =Inputs!H55 -> 0.02375
B89: =Inputs!C56 -> 2019-20 | C89: =Inputs!E20 -> 0.01772535156 | D89: ='ABS CPI'!N133 -> 0.01336254107 | E89: =Inputs!H56 -> 0.0225 | F89: ='BCC Preferred'!J77 -> 0.023
B90: =Inputs!C57 -> 2020-21 | C90: =Inputs!E21 -> 0.008680620649 | D90: ='ABS CPI'!N134 -> 0.01621271077 | E90: =Inputs!H57 -> 0.0195 | F90: ='BCC Preferred'!J78 -> 0.021
B91: =Inputs!C58 -> 2021-22 | C91: =Inputs!E22 -> 0.037 | D91: ='ABS CPI'!N135 -> 0.04445862582 | E91: =Inputs!H58 -> 0.01125 | F91: ='BCC Preferred'!J79 -> 0.017
B92: =Inputs!C59 -> 2022-23 | E92: =Inputs!H59 -> 0.01875 | F92: ='BCC Preferred'!J80 -> 0.021
B93: =Inputs!C60 -> 2023-24 | E93: =Inputs!H60 -> 0.039 | F93: ='BCC Preferred'!J81 -> 0.041

Sheet Inputs
B2: =Cover!$B$3 -> Review of rate peg methodology - Draft report Base Cost Change (BCC) options
B4: INPUTS
A7: 1 | B7: ="Table "&A7 -> Table 1 | C7: Historical Rate Pegs (before population factor)
C8: Year | F8: Change in LGCI | R8: Sources
B9: Rate Peg for 1 July | C9: FY | D9: Last data quarter | E9: % change in annual average | F9: Minus productivity adjustment | G9: Plus Carbon tax adjustment | H9: Plus other adjustments | J9: Rate Peg before population factor
B10: 2011 | C10: =B10&"-"&RIGHT(B10+1,2) -> 2011-12 | D10: Sep-2010 | E10: 0.03009704606 | F10: 0.002 | G10: 0 | H10: 0 | J10: =E10+G10+H10-F10 -> 0.02809704606 | R10: IPART information
B11: =B10+1 -> 2012 | C11: 2012-13 | D11: Sep-2011 | E11: 0.03377481941 | F11: 0.0022 | G11: 0.004 | H11: 0 | J11: 0.03557481941 | R11: Rate peg also available here
B12: 2013 | C12: 2013-14 | D12: Sep-2012 | E12: 0.03691789833 | F12: 0.002 | G12: -0.001 | H12: 0 | J12: 0.03391789833
B13: 2014 | C13: 2014-15 | D13: Sep-2013 | E13: 0.02811406342 | F13: 0.002 | G13: -0.003 | H13: 0 | J13: 0.02311406342
B14: 2015 | C14: 2015-16 | D14: Sep-2014 | E14: 0.02469904826 | F14: 0.0004 | G14: 0 | H14: 0 | J14: 0.02429904826
B15: 2016 | C15: 2016-17 | D15: Sep-2015 | E15: 0.0178 | F15: 0 | G15: 0 | H15: 0 | J15: 0.0178
B16: 2017 | C16: 2017-18 | D16: Sep-2016 | E16: 0.01468104681 | F16: 1.334409762e-05 | G16: 0 | H16: 0 | J16: 0.01466770271
B17: 2018 | C17: 2018-19 | D17: Sep-2017 | E17: 0.02285100767 | F17: 0 | G17: 0 | H17: 0 | J17: 0.02285100767
B18: 2019 | C18: 2019-20 | D18: Jun-2018 | E18: 0.02688663934 | F18: 0 | G18: 0 | H18: 0 | J18: 0.02688663934
B19: 2020 | C19: 2020-21 | D19: Jun-2019 | E19: 0.02564114517 | F19: 0 | G19: 0 | H19: 0 | J19: 0.02564114517
B20: 2021 | C20: 2021-22 | D20: Jun-2020 | E20: 0.01772535156 | F20: 0 | G20: 0 | H20: 0.001923838623 | J20: 0.01964919019
B21: 2022 | C21: 2022-23 | D21: Jun-2021 | E21: 0.008680620649 | F21: 0 | G21: 0 | H21: -0.001886765215 | J21: 0.006793855435
B22: 2023 | C22: 2023-24 | D22: Jun-2022 | E22: =3.5%+0.2% -> 0.037 | F22: 0 | G22: 0 | H22: 0 | J22: 0.037
A27: =A7+1 -> 2 | B27: ="Table "&A27 -> Table 2 | C27: Weights (General Fund, 3-year average)
D29: Number of councils | E29: Other (incl. materials and contracts) | F29: Employee costs | G29: Depreciation | H29: Total | I29: Check = 0 | R29: Calculated from Financial data returns
R30: provided to OLG (General Fund)
B31: Metropolitan | E31: 0.41 | F31: 0.41 | G31: 0.18 | H31: =SUM(E31:G31) -> 1 | I31: =H31-1 -> 0 | R31: 3-year average 2019-20 to 2021-22
B32: Metropolitan | E32: 0.41 | F32: 0.41 | G32: 0.18 | H32: 1 | I32: 0
B33: Metropolitan fringe | E33: 0.4 | F33: 0.41 | G33: 0.19 | H33: 1 | I33: 0
B34: Regional | E34: 0.4 | F34: 0.37 | G34: 0.23 | H34: 1 | I34: 0
B35: Rural | E35: 0.38 | F35: 0.36 | G35: 0.26 | H35: 1 | I35: 0
B36: Large rural | E36: 0.38 | F36: 0.36 | G36: 0.26 | H36: 1 | I36: 0
B37: Rural | E37: 0.37 | F37: 0.38 | G37: 0.25 | H37: 1 | I37: 0
B38: NSW | E38: 0.4 | F38: 0.39 | G38: 0.21 | H38: =SUM(E38:G38) -> 1 | I38: =H38-1 -> 0
A43: =A27+1 -> 3 | B43: ="Table "&A43 -> Table 3 | C43: CPI for BCC options (other costs)
B44: BCC for 1 July | C44: BCC for FY | D44: Report date for forecasts | E44: Forecast to June
K45: True-up
F46: RBA CPI forecast | I46: Average of 4 quarters to June | J46: Average of 4 quarters to June
B47: CPI forecasts for the year the rate peg applies | F47: Forecast to December | G47: Forecast to June | H47: Average of Yr to Dec and Yr to June | I47: Australia CPI, lagged actual | J47: lagged PPI | K47: True-up for actual CPI (lagged 2 yrs) | L47: RBA CPI forecast + CPI true-up
B48: =B10 -> 2011 | C48: =B48&"-"&RIGHT(B48,2)+1 -> 2011-12 | D48: Aug- 10 | E48: =B48+1 -> 2012 | F48: 0.0275 | G48: 0.03 | H48: =AVERAGE(F48:G48) -> 0.02875 | I48: ='ABS CPI'!N123 -> 0.02321187584 | J48: ='ABS PPI'!D119 -> -0.001047943411
B49: 2012 | C49: =B49&"-"&RIGHT(B49,2)+1 -> 2012-13 | D49: Aug- 11 | E49: 2013 | F49: 0.035 | G49: 0.0375 | H49: =AVERAGE(F49:G49) -> 0.03625 | I49: ='ABS CPI'!N124 -> 0.03112635189 | J49: ='ABS PPI'!D120 -> 0.02832415421 | R49: Actuals:
B50: 2013 | C50: 2013-14 | D50: Aug- 12 | E50: 2014 | F50: 0.025 | G50: =(2%+3%)/2 -> 0.025 | H50: 0.025 | I50: ='ABS CPI'!N125 -> 0.02302379125 | J50: ='ABS PPI'!D121 -> 0.02014792145 | K50: =I50-$H48 -> -0.005726208749 | L50: =$H50+K50 -> 0.01927379125 | R50: Calculated from ABS CPI data
B51: 2014 | C51: 2014-15 | D51: Aug- 13 | E51: 2015 | F51: 0.025 | G51: =(2%+3%)/2 -> 0.025 | H51: 0.025 | I51: ='ABS CPI'!N126 -> 0.02275568892 | J51: ='ABS PPI'!D122 -> 0.01225 | K51: =I51-$H49 -> -0.01349431108 | L51: 0.01150568892 | R51: 6401.0 Consumer Price Index, Australia
B52: 2015 | C52: 2015-16 | D52: Aug- 14 | E52: 2016 | F52: 0.03 | G52: =(2.5%+3.5%)/2 -> 0.03 | H52: 0.03 | I52: ='ABS CPI'!N127 -> 0.0271393643 | J52: ='ABS PPI'!D123 -> 0.0212398123 | K52: 0.002139364303 | L52: 0.0321393643 | R52: TABLES 1 and 2. CPI: All Groups, Index Numbers and Percentage Changes
B53: 2016 | C53: 2016-17 | D53: Aug- 15 | E53: 2017 | F53: 0.025 | G53: =(2%+3%)/2 -> 0.025 | H53: 0.025 | I53: ='ABS CPI'!N128 -> 0.01713877648 | J53: ='ABS PPI'!D124 -> 0.009915356711 | K53: -0.007861223518 | L53: 0.01713877648
B54: 2017 | C54: 2017-18 | D54: Aug- 16 | E54: 2018 | F54: 0.02 | G54: =(1.5%+2.5%)/2 -> 0.02 | H54: 0.02 | I54: ='ABS CPI'!N129 -> 0.0138076293 | J54: ='ABS PPI'!D125 -> 0.0148467433 | K54: -0.0161923707 | L54: 0.0038076293
B55: 2018 | C55: 2018-19 | D55: Aug- 17 | E55: 2019 | F55: 0.0225 | G55: 0.025 | H55: 0.02375 | I55: ='ABS CPI'!N130 -> 0.01708217913 | J55: ='ABS PPI'!D126 -> 0.01038225578 | K55: -0.007917820868 | L55: 0.01583217913 | R55: Forecasts:
B56: 2019 | C56: 2019-20 | D56: Aug- 18 | E56: 2020 | F56: 0.0225 | G56: 0.0225 | H56: 0.0225 | I56: ='ABS CPI'!N131 -> 0.01929187472 | J56: ='ABS PPI'!D127 -> 0.01611396544 | K56: -0.0007081252837 | L56: 0.02179187472 | R56: All CPI from RBA Statement on Monetary Policy
B57: 2020 | C57: 2020-21 | D57: Aug- 19 | E57: 2021 | F57: 0.019 | G57: 0.02 | H57: 0.0195 | I57: ='ABS CPI'!N132 -> 0.01647739924 | J57: ='ABS PPI'!D128 -> 0.02022523558 | K57: -0.007272600757 | L57: 0.01222739924 | R57: RBA Statement on Monetary Policy
B58: 2021 | C58: 2021-22 | D58: Aug- 20 | E58: 2022 | F58: 0.01 | G58: 0.0125 | H58: 0.01125 | I58: ='ABS CPI'!N133 -> 0.01336254107 | J58: ='ABS PPI'!D129 -> 0.009912142374 | K58: -0.009137458927 | L58: 0.002112541073 | R58: Appendix: Forecasts (although some of the earlies ones may be in the chapter on Economic Outlook)
B59: 2022 | C59: 2022-23 | D59: Aug- 21 | E59: 2023 | F59: 0.0175 | G59: 0.02 | H59: 0.01875 | I59: ='ABS CPI'!N134 -> 0.01621271077 | J59: ='ABS PPI'!D130 -> 0.00468436315 | K59: -0.003287289235 | L59: 0.01546271077
B60: 2023 | C60: 2023-24 | D60: Aug- 22 | E60: 2024 | F60: 0.043 | G60: 0.035 | H60: =AVERAGE(F60:G60) -> 0.039 | I60: ='ABS CPI'!N135 -> 0.04445862582 | J60: ='ABS PPI'!D131 -> 0.04262877442 | K60: 0.03320862582 | L60: 0.07220862582
A67: =A43+1 -> 4 | B67: ="Table "&A67 -> Table 4 | C67: Labour costs for BCC options
B68: WPI forecasts for the year the rate peg applies | K68: Superannuation guarantee | M68: Labour cost options
M69: (including additional superannuation contributions) | R69: Actuals:
B70: =B44 -> BCC for 1 July | C70: =C44 -> BCC for FY | D70: Report date for forecasts | E70: Forecast to June | F70: Forecast to December | G70: Forecast to June | H70: =H47 -> Average of Yr to Dec and Yr to June | I70: Aust, Private and Public WPI, lagged actual | J70: True-up for actual WPI | K70: Actual super guarantee % | L70: Increase in super included in costs | M70: RBA forecast | N70: RBA forecast + WPI true-up | O70: Award with RBA forecast when Award not available | P70: Award with RBA forecast and true-up | R70: Calculated from ABS WPI data
B71: =B48 -> 2011 | C71: 2011-12 | D71: NSW budget statement, June | E71: =B71+1 -> 2012 | F71: =G71 -> 0.0375 | G71: 0.0375 | H71: =AVERAGE(F71:G71) -> 0.0375 | I71: ='ABS WPI'!P119 -> 0.03125 | K71: 0.09 | L71: 0 | M71: =H71+L71 -> 0.0375 | O71: =CHOOSE(O89,F89+L71,M71) -> 0.0375 | P71: =SUM(H89:I89)+L71 -> 0.0215 | R71: 6345.0 Wage Price Index, Australia
B72: 2012 | C72: 2012-13 | D72: =D71 -> NSW budget statement, June | E72: 2013 | F72: 0.04 | G72: 0.04 | H72: =AVERAGE(F72:G72) -> 0.04 | I72: ='ABS WPI'!P120 -> 0.03781818182 | K72: 0.09 | L72: =(K72-K71) -> 0 | M72: 0.04 | O72: 0.0325 | P72: 0.0325 | R72: Table 1. Total Hourly Rates of Pay Excluding Bonuses: Sector, Original, Seasonally Adjusted and Trend
B73: 2013 | C73: 2013-14 | D73: =D72 -> NSW budget statement, June | E73: 2014 | F73: 0.035 | G73: 0.035 | H73: 0.035 | I73: ='ABS WPI'!P121 -> 0.03620649381 | J73: =I73-$H71 -> -0.00129350619 | K73: 0.0925 | L73: 0.0025 | M73: 0.0375 | N73: =M73+J73 -> 0.03620649381 | O73: 0.035 | P73: 0.035
B74: 2014 | C74: 2014-15 | D74: NSW budget statement, June | E74: 2015 | F74: 0.035 | G74: 0.035 | H74: 0.035 | I74: ='ABS WPI'!P122 -> 0.03313796213 | J74: -0.006862037872 | K74: 0.095 | L74: 0.0025 | M74: 0.0375 | N74: 0.03063796213 | O74: 0.0375 | P74: 0.0375 | R74: Forecasts:
B75: 2015 | C75: 2015-16 | D75: NSW budget statement, June | E75: 2016 | F75: 0.035 | G75: 0.035 | H75: 0.035 | I75: ='ABS WPI'!P123 -> 0.02618372245 | J75: -0.008816277547 | K75: 0.095 | L75: 0 | M75: 0.035 | N75: 0.02618372245 | O75: 0.027 | P75: 0.018 | R75: WPI from 2020 from RBA Statement on Monetary Policy
B76: 2016 | C76: 2016-17 | D76: NSW budget statement, June | E76: 2017 | F76: 0.0275 | G76: 0.0275 | H76: 0.0275 | I76: ='ABS WPI'!P124 -> 0.02402721667 | J76: -0.01097278333 | K76: 0.095 | L76: 0 | M76: 0.0275 | N76: 0.01652721667 | O76: 0.028 | P76: 0.028 | R76: RBA Statement on Monetary Policy
B77: 2017 | C77: 2017-18 | D77: NSW budget statement, June | E77: 2018 | F77: 0.0275 | G77: 0.0275 | H77: 0.0275 | I77: ='ABS WPI'!P125 -> 0.02117940199 | J77: -0.01382059801 | K77: 0.095 | L77: 0 | M77: 0.0275 | N77: 0.01367940199 | O77: 0.0275 | P77: 0.0275 | R77: Appendix: Forecasts (although some of the earlies ones may be in the chapter on Economic Outlook)
B78: 2018 | C78: 2018-19 | D78: NSW budget statement, June | E78: 2019 | F78: 0.025 | G78: 0.025 | H78: 0.025 | I78: ='ABS WPI'!P126 -> 0.01952013013 | J78: -0.007979869866 | K78: 0.095 | L78: 0 | M78: 0.025 | N78: 0.01702013013 | O78: 0.025 | P78: 0.021
B79: 2019 | C79: 2019-20 | D79: NSW budget statement, June | E79: 2020 | F79: =G79 -> 0.0275 | G79: 0.0275 | H79: 0.0275 | I79: ='ABS WPI'!P127 -> 0.02054248105 | J79: -0.006957518947 | K79: 0.095 | L79: 0 | M79: 0.0275 | N79: 0.02054248105 | O79: 0.025 | P79: 0.025 | R79: WPI up to 2019
B80: 2020 | C80: 2020-21 | D80: =D57 -> Aug- 19 | E80: 2021 | F80: 0.023 | G80: 0.024 | H80: 0.0235 | I80: ='ABS WPI'!P128 -> 0.02325581395 | J80: -0.001744186047 | K80: 0.095 | L80: 0 | M80: 0.0235 | N80: 0.02175581395 | O80: 0.0235 | P80: 0.0235 | R80: " NSW economic performance and outlook", usually ch 2 or 3 depending in year
B81: 2021 | C81: 2021-22 | D81: =D58 -> Aug- 20 | E81: 2022 | F81: 0.0125 | G81: 0.015 | H81: 0.01375 | I81: ='ABS WPI'!P129 -> 0.02100840336 | J81: -0.006491596639 | K81: =K80+0.5% -> 0.1 | L81: 0.005 | M81: 0.01875 | N81: 0.01225840336 | O81: 0.025 | P81: 0.0165 | R81: NSW Budget statement, published June
B82: 2022 | C82: 2022-23 | D82: =D59 -> Aug- 21 | E82: 2023 | F82: 0.025 | G82: 0.025 | H82: 0.025 | I82: ='ABS WPI'!P130 -> 0.01515151515 | J82: -0.008348484848 | K82: =K81+0.5% -> 0.105 | L82: 0.005 | M82: 0.03 | N82: 0.02165151515 | O82: 0.025 | P82: 0.025 | R82: https://www.budget.nsw.gov.au/budget-archives
B83: 2023 | C83: 2023-24 | D83: =D60 -> Aug- 22 | E83: 2024 | F83: 0.036 | G83: 0.038 | H83: 0.037 | I83: ='ABS WPI'!P131 -> 0.0237700387 | J83: 0.0100200387 | K83: =K82+0.5% -> 0.11 | L83: 0.005 | M83: 0.042 | N83: 0.0520200387 | O83: 0.042 | P83: 0.042 | R83: Super guarantee percentage:
B85: NSW Local Government Award increases
B86: Note: The Award is set for a 3 yr period. Every 3rd year, the final outcome is know too late to include in the rate peg. | O86: Labour cost
B87: Therefore, we do a true-up in the 2nd year of each Award period (difference between previous and current award) | O87: 1=Award
F88: Award rate, no lag | G88: Award rate known? | H88: Award & RBA forecast | I88: True-up | O88: 2 = RBA forecast | R88: Award
B89: =B48 -> 2011 | C89: 2011-12 | F89: 0.0215 | G89: No | H89: =F89 -> 0.0215 | I89: 0 | K89: Yes | O89: =IF(G89=$K$90,2,1) -> 2
B90: 2012 | C90: 2012-13 | F90: 0.0325 | G90: Yes | H90: =F90 -> 0.0325 | I90: =F89-H89 -> 0 | K90: No | O90: 1
B91: 2013 | C91: 2013-14 | F91: 0.0325 | G91: Yes | H91: =F91 -> 0.0325 | I91: 0 | O91: 1
B92: 2014 | C92: 2014-15 | F92: 0.026 | G92: No | H92: =H74 -> 0.035 | I92: 0 | O92: 2
B93: 2015 | C93: 2015-16 | F93: 0.027 | G93: Yes | H93: =F93 -> 0.027 | I93: =F92-H92 -> -0.009 | O93: 1
B94: 2016 | C94: 2016-17 | F94: 0.028 | G94: Yes | H94: =F94 -> 0.028 | I94: 0 | O94: 1 | R94: Superannuation guarantee
B95: 2017 | C95: 2017-18 | F95: 0.0235 | G95: No | H95: =H77 -> 0.0275 | I95: 0 | O95: 2 | R95: https://www.ato.gov.au/rates/key-superannuation-rates-and-thresholds/?anchor=Superguaranteepercentage#Superguaranteepercentage
B96: 2018 | C96: 2018-19 | F96: 0.025 | G96: Yes | H96: =F96 -> 0.025 | I96: -0.004 | O96: 1
B97: 2019 | C97: 2019-20 | F97: 0.025 | G97: Yes | H97: =F97 -> 0.025 | I97: 0 | O97: 1
B98: 2020 | C98: 2020-21 | F98: 0.015 | G98: No | H98: =H80 -> 0.0235 | I98: 0 | O98: 2
B99: 2021 | C99: 2021-22 | F99: 0.02 | G99: Yes | H99: =F99 -> 0.02 | I99: =F98-H98 -> -0.0085 | O99: 1
B100: 2022 | C100: 2022-23 | F100: 0.02 | G100: Yes | H100: =F100 -> 0.02 | I100: 0 | O100: 1
B101: 2023 | C101: 2023-24 | G101: No | H101: =H83 -> 0.037 | I101: 0 | O101: 2
A107: =A67+1 -> 5 | B107: ="Table "&A107 -> Table 5 | C107: PPI for asset costs
G108: PPI and PPI premiums | J108: Asset costs factor with true-up
B109: =B44 -> BCC for 1 July | C109: =C44 -> BCC for FY | G109: Road and bridge construction New South Wales (lagged) | H109: PPI premium over CPI (lagged) | I109: PPI premium, average over past 5 yrs (lagged) | J109: 'Forecast PPI' = Forecast CPI + 5 yr PPI premium | K109: Actual PPI ( not lagged) | L109: True-up to be applied 2 yrs later | M109: Asset cost increaset = True-upt-2 + 5 yr premiumt + CPI forecastt | N109: check = 0
B110: =B111-1 -> 2006 | G110: ='PPI T17'!AV111 -> 0.04482279361 | H110: =G110-'ABS CPI'!M118 -> 0.01996263202 | I110: na | N110: na
B111: 2007 | G111: ='PPI T17'!AV112 -> 0.04822081809 | H111: =G111-'ABS CPI'!M119 -> 0.01820262525 | I111: na | N111: na
B112: 2008 | G112: ='PPI T17'!AV113 -> 0.04600253807 | H112: =G112-'ABS CPI'!M120 -> 0.01862544063 | I112: na | N112: na
B113: =B114-1 -> 2009 | G113: ='PPI T17'!AV114 -> 0.0448892933 | H113: =G113-'ABS CPI'!M121 -> 0.01508986636 | I113: na | N113: na
B114: =B115-1 -> 2010 | G114: ='PPI T17'!AV115 -> 0.04005805515 | H114: =G114-'ABS CPI'!M122 -> 0.009173247139 | I114: =AVERAGE($H110:$H114) -> 0.01621076228 | N114: na
B115: =B48 -> 2011 | C115: 2011-12 | G115: ='PPI T17'!AV116 -> 0.02595590287 | H115: =G115-'ABS CPI'!M123 -> 0.002744027031 | I115: 0.01276704128 | N115: =G115-'ABS CPI'!M123-H115 -> 0
B116: 2012 | C116: 2012-13 | G116: ='PPI T17'!AV117 -> 0.02611534276 | H116: =G116-'ABS CPI'!M124 -> -0.003692095907 | I116: 0.008388097052 | N116: =G116-'ABS CPI'!M124-H116 -> 0
B117: 2013 | C117: 2013-14 | G117: ='PPI T17'!AV118 -> 0.06071049841 | H117: =G117-'ABS CPI'!M125 -> 0.03586418693 | I117: 0.01183584631 | J117: =H50+I117 -> 0.03683584631 | K117: =G119 -> 0.03041274439 | L117: =K117-J117 -> -0.006423101924 | N117: =G117-'ABS CPI'!M125-H117 -> 0
B118: 2014 | C118: 2014-15 | G118: ='PPI T17'!AV119 -> 0.03549112722 | H118: =G118-'ABS CPI'!M126 -> 0.009997500625 | I118: 0.01081737316 | J118: 0.03581737316 | K118: 0.01803701101 | L118: =K118-J118 -> -0.01778036215 | N118: =G118-'ABS CPI'!M126-H118 -> 0
B119: 2015 | C119: 2015-16 | G119: ='PPI T17'!AV120 -> 0.03041274439 | H119: =G119-'ABS CPI'!M127 -> 0.004577989331 | I119: 0.009898321603 | J119: 0.0398983216 | K119: 0.008513575702 | L119: =K119-J119 -> -0.0313847459 | M119: =L117+I119+H52 -> 0.03347521968 | N119: =G119-'ABS CPI'!M127-H119 -> 0
B120: 2016 | C120: 2016-17 | G120: ='PPI T17'!AV121 -> 0.01803701101 | H120: =G120-'ABS CPI'!M128 -> -0.001207465113 | I120: 0.009108023174 | J120: 0.03410802317 | K120: 0.009354323523 | L120: -0.02475369965 | M120: 0.01632766102 | N120: =G120-'ABS CPI'!M128-H120 -> 0
B121: 2017 | C121: 2017-18 | G121: ='PPI T17'!AV122 -> 0.008513575702 | H121: =G121-'ABS CPI'!M129 -> -0.00663793945 | I121: =AVERAGE($H117:$H121) -> 0.008518854465 | J121: 0.02851885447 | K121: 0.0212477396 | L121: -0.007271114863 | M121: -0.002865891436 | N121: =G121-'ABS CPI'!M129-H121 -> 0
B122: 2018 | C122: 2018-19 | G122: ='PPI T17'!AV123 -> 0.009354323523 | H122: =G122-'ABS CPI'!M130 -> -0.01085233549 | I122: -0.0008244500194 | J122: 0.02292554998 | K122: 0.0376272687 | L122: 0.01470171872 | M122: -0.001828149671 | N122: =G122-'ABS CPI'!M130-H122 -> 0
B123: 2019 | C123: 2019-20 | G123: ='PPI T17'!AV124 -> 0.0212477396 | H123: =G123-'ABS CPI'!M131 -> 0.0007660830638 | I123: -0.002670733532 | J123: 0.01982926647 | K123: 0.007465870307 | L123: =K123-J123 -> -0.01236339616 | M123: 0.01255815161 | N123: =G123-'ABS CPI'!M131-H123 -> 0
B124: 2020 | C124: 2020-21 | G124: ='PPI T17'!AV125 -> 0.0376272687 | H124: =G124-'ABS CPI'!M132 -> 0.02108558366 | I124: 0.0006307853336 | J124: 0.02013078533 | K124: 0.01143341097 | L124: -0.008697374366 | M124: 0.03483250406 | N124: =G124-'ABS CPI'!M132-H124 -> 0
B125: 2021 | C125: 2021-22 | G125: ='PPI T17'!AV126 -> 0.007465870307 | H125: =G125-'ABS CPI'!M133 -> -0.002948536289 | I125: 0.0002825710984 | J125: 0.0115325711 | K125: 0.0523341009 | L125: =K125-J125 -> 0.0408015298 | M125: -0.0008308250628 | N125: =G125-'ABS CPI'!M133-H125 -> 0
B126: 2022 | C126: 2022-23 | G126: ='PPI T17'!AV127 -> 0.01143341097 | H126: =G126-'ABS CPI'!M134 -> -0.003597724957 | I126: 0.000890613997 | J126: 0.019640614 | M126: 0.01094323963 | N126: =G126-'ABS CPI'!M134-H126 -> 0
B127: 2023 | C127: 2023-24 | G127: ='PPI T17'!AV128 -> 0.0523341009 | H127: =G127-'ABS CPI'!M135 -> 0.01319722762 | I127: 0.005700526619 | J127: 0.04470052662 | M127: 0.08550205642 | N127: =G127-'ABS CPI'!M135-H127 -> 0

Sheet ABS CPI
B2: Source: | C2: https://www.abs.gov.au/statistics/economy/price-indexes-and-inflation/consumer-price-index-australia/sep-quarter-2022#data-downloads
B4: Time Series Workbook
B7: 6401.0 Consumer Price Index, Australia
B8: TABLES 1 and 2. CPI: All Groups, Index Numbers and Percentage Changes
C10: Index Numbers ; All groups CPI ; Sydney ; | D10: Index Numbers ; All groups CPI ; Melbourne ; | E10: Index Numbers ; All groups CPI ; Brisbane ; | F10: Index Numbers ; All groups CPI ; Adelaide ; | G10: Index Numbers ; All groups CPI ; Perth ; | H10: Index Numbers ; All groups CPI ; Hobart ; | I10: Index Numbers ; All groups CPI ; Darwin ; | J10: Index Numbers ; All groups CPI ; Canberra ; | K10: Index Numbers ; All groups CPI ; Australia ; | M10: Sydney | N10: Australia
B11: Unit | C11: Index Numbers | D11: Index Numbers | E11: Index Numbers | F11: Index Numbers | G11: Index Numbers | H11: Index Numbers | I11: Index Numbers | J11: Index Numbers | K11: Index Numbers
B12: Series Type | C12: Original | D12: Original | E12: Original | F12: Original | G12: Original | H12: Original | I12: Original | J12: Original | K12: Original
B13: Data Type | C13: INDEX | D13: INDEX | E13: INDEX | F13: INDEX | G13: INDEX | H13: INDEX | I13: INDEX | J13: INDEX | K13: INDEX
B14: Frequency | C14: Quarter | D14: Quarter | E14: Quarter | F14: Quarter | G14: Quarter | H14: Quarter | I14: Quarter | J14: Quarter | K14: Quarter
B15: Collection Month | C15: 3 | D15: 3 | E15: 3 | F15: 3 | G15: 3 | H15: 3 | I15: 3 | J15: 3 | K15: 3
B16: Series Start | C16: 1948-09-01 | D16: 1948-09-01 | E16: 1948-09-01 | F16: 1948-09-01 | G16: 1948-09-01 | H16: 1948-09-01 | I16: 1980-09-01 | J16: 1948-09-01 | K16: 1948-09-01
B17: Series End | C17: 2022-09-01 | D17: 2022-09-01 | E17: 2022-09-01 | F17: 2022-09-01 | G17: 2022-09-01 | H17: 2022-09-01 | I17: 2022-09-01 | J17: 2022-09-01 | K17: 2022-09-01
B18: No. Obs | C18: 297 | D18: 297 | E18: 297 | F18: 297 | G18: 297 | H18: 297 | I18: 169 | J18: 297 | K18: 297
B19: Series ID | C19: A2325806K | D19: A2325811C | E19: A2325816R | F19: A2325821J | G19: A2325826V | H19: A2325831L | I19: A2325836X | J19: A2325841T | K19: A2325846C
B21: 2000-06-01 | C21: 70.9 | D21: 70.9 | E21: 68.3 | F21: 69.5 | G21: 69.1 | H21: 71 | I21: 71.1 | J21: 69.9 | K21: 70.2
B22: 2000-09-01 | C22: 73.5 | D22: 73.6 | E22: 71 | F22: 72.1 | G22: 71.6 | H22: 73.7 | I22: 73.5 | J22: 72.5 | K22: 72.9
B23: 2000-12-01 | C23: 73.8 | D23: 73.9 | E23: 71.2 | F23: 72.2 | G23: 71.8 | H23: 73.7 | I23: 73.9 | J23: 72.8 | K23: 73.1
B24: 2001-03-01 | C24: 74.8 | D24: 74.7 | E24: 71.8 | F24: 73 | G24: 72.2 | H24: 74.2 | I24: 73.9 | J24: 73.3 | K24: 73.9
B25: 2001-06-01 | C25: 75.4 | D25: 75.1 | E25: 72.5 | F25: 73.6 | G25: 73.2 | H25: 74.9 | I25: 74.7 | J25: 74 | K25: 74.5
B26: 2001-09-01 | C26: 75.6 | D26: 75.5 | E26: 72.6 | F26: 73.7 | G26: 73.3 | H26: 74.6 | I26: 74.9 | J26: 74 | K26: 74.7
B27: 2001-12-01 | C27: 76.3 | D27: 76.1 | E27: 73.5 | F27: 74.4 | G27: 73.9 | H27: 75.2 | I27: 75.5 | J27: 74.9 | K27: 75.4
B28: 2002-03-01 | C28: 77 | D28: 76.9 | E28: 74.2 | F28: 75 | G28: 74.5 | H28: 75.9 | I28: 75.7 | J28: 75.3 | K28: 76.1
B29: 2002-06-01 | C29: 77.5 | D29: 77.3 | E29: 74.7 | F29: 75.7 | G29: 75 | H29: 76.9 | I29: 76.3 | J29: 76.2 | K29: 76.6
B30: 2002-09-01 | C30: 77.9 | D30: 77.9 | E30: 75.3 | F30: 76.4 | G30: 75.7 | H30: 77.2 | I30: 76.6 | J30: 76.6 | K30: 77.1
B31: 2002-12-01 | C31: 78.4 | D31: 78.5 | E31: 75.7 | F31: 77.1 | G31: 76 | H31: 77.5 | I31: 77 | J31: 77.3 | K31: 77.6
B32: 2003-03-01 | C32: 79.4 | D32: 79.6 | E32: 76.7 | F32: 78.7 | G32: 76.6 | H32: 78.6 | I32: 77.7 | J32: 78.1 | K32: 78.6
B33: 2003-06-01 | C33: 79.4 | D33: 79.6 | E33: 76.7 | F33: 78.6 | G33: 76.5 | H33: 79.1 | I33: 78 | J33: 78.1 | K33: 78.6
B34: 2003-09-01 | C34: 79.5 | D34: 80.1 | E34: 77.5 | F34: 79.2 | G34: 77.2 | H34: 79.2 | I34: 77.9 | J34: 78.8 | K34: 79.1
B35: 2003-12-01 | C35: 80.2 | D35: 80.3 | E35: 78 | F35: 79.6 | G35: 77.5 | H35: 79.7 | I35: 78.3 | J35: 79.3 | K35: 79.5
B36: 2004-03-01 | C36: 80.9 | D36: 81.1 | E36: 78.7 | F36: 80.4 | G36: 77.8 | H36: 80.3 | I36: 78.6 | J36: 79.9 | K36: 80.2
B37: 2004-06-01 | C37: 81.2 | D37: 81.3 | E37: 79.1 | F37: 80.9 | G37: 78.6 | H37: 81 | I37: 78.9 | J37: 80.4 | K37: 80.6 | M37: =AVERAGE(C34:C37)/AVERAGE(C30:C33)-1 -> 0.02126309108 | N37: =AVERAGE(K34:K37)/AVERAGE(K30:K33)-1 -> 0.02404616864
B38: 2004-09-01 | C38: 81.6 | D38: 81.5 | E38: 79.4 | F38: 81.2 | G38: 79.1 | H38: 81.4 | I38: 79.6 | J38: 80.8 | K38: 80.9
B39: 2004-12-01 | C39: 82.3 | D39: 82.1 | E39: 80 | F39: 81.7 | G39: 79.8 | H39: 82.4 | I39: 79.8 | J39: 81.2 | K39: 81.5
B40: 2005-03-01 | C40: 82.7 | D40: 82.7 | E40: 80.7 | F40: 82.2 | G40: 80.4 | H40: 83.1 | I40: 80.2 | J40: 81.6 | K40: 82.1
B41: 2005-06-01 | C41: 83.2 | D41: 83 | E41: 81.1 | F41: 82.7 | G41: 81.5 | H41: 83.5 | I41: 80.9 | J41: 82.1 | K41: 82.6 | M41: =AVERAGE(C38:C41)/AVERAGE(C34:C37)-1 -> 0.02486016159 | N41: =AVERAGE(K38:K41)/AVERAGE(K34:K37)-1 -> 0.02410770194
B42: 2005-09-01 | C42: 84 | D42: 83.9 | E42: 81.6 | F42: 83.6 | G42: 82.4 | H42: 84.3 | I42: 81.8 | J42: 83.1 | K42: 83.4
B43: 2005-12-01 | C43: 84.3 | D43: 84.3 | E43: 82.3 | F43: 83.9 | G43: 83 | H43: 84.8 | I43: 82.2 | J43: 83.7 | K43: 83.8
B44: 2006-03-01 | C44: 85 | D44: 85 | E44: 83 | F44: 84.7 | G44: 83.8 | H44: 85.4 | I44: 82.9 | J44: 84.5 | K44: 84.5
B45: 2006-06-01 | C45: 86.4 | D45: 86.2 | E45: 84.5 | F45: 85.8 | G45: 85.4 | H45: 86.4 | I45: 84.4 | J45: 86 | K45: 85.9 | M45: =AVERAGE(C42:C45)/AVERAGE(C38:C41)-1 -> 0.03001819284 | N45: =AVERAGE(K42:K45)/AVERAGE(K38:K41)-1 -> 0.03210027515
B46: 2006-09-01 | C46: 87.2 | D46: 86.8 | E46: 85.2 | F46: 86.8 | G46: 86.3 | H46: 87.1 | I46: 85.8 | J46: 86.6 | K46: 86.7
B47: 2006-12-01 | C47: 87 | D47: 86.7 | E47: 85.1 | F47: 86.5 | G47: 86.6 | H47: 86.8 | I47: 86.3 | J47: 86.4 | K47: 86.6
B48: 2007-03-01 | C48: 86.9 | D48: 86.9 | E48: 85.5 | F48: 86.3 | G48: 86.8 | H48: 87.3 | I48: 86.3 | J48: 86.5 | K48: 86.6
B49: 2007-06-01 | C49: 87.9 | D49: 87.9 | E49: 86.7 | F49: 87.3 | G49: 88 | H49: 88.4 | I49: 87.5 | J49: 87.7 | K49: 87.7 | M49: =AVERAGE(C46:C49)/AVERAGE(C42:C45)-1 -> 0.02737709744 | N49: =AVERAGE(K46:K49)/AVERAGE(K42:K45)-1 -> 0.02962085308
B50: 2007-09-01 | C50: 88.3 | D50: 88.6 | E50: 87.5 | F50: 88 | G50: 88.6 | H50: 88.6 | I50: 88.5 | J50: 88.4 | K50: 88.3
B51: 2007-12-01 | C51: 89.1 | D51: 89.5 | E51: 88.4 | F51: 88.9 | G51: 89.3 | H51: 89.4 | I51: 88.8 | J51: 89.2 | K51: 89.1
B52: 2008-03-01 | C52: 90.3 | D52: 90.7 | E52: 89.6 | F52: 90.1 | G52: 90.5 | H52: 90.5 | I52: 89.6 | J52: 90.5 | K52: 90.3
B53: 2008-06-01 | C53: 91.7 | D53: 91.8 | E53: 91.1 | F53: 91.3 | G53: 92 | H53: 91.5 | I53: 90.9 | J53: 91.6 | K53: 91.6 | M53: =AVERAGE(C50:C53)/AVERAGE(C46:C49)-1 -> 0.02979942693 | N53: =AVERAGE(K50:K53)/AVERAGE(K46:K49)-1 -> 0.0336593786
B54: 2008-09-01 | C54: 92.7 | D54: 92.9 | E54: 92.4 | F54: 92.5 | G54: 92.9 | H54: 92.5 | I54: 92.5 | J54: 93 | K54: 92.7
B55: 2008-12-01 | C55: 92.4 | D55: 92.3 | E55: 92.2 | F55: 92.2 | G55: 92.6 | H55: 92.3 | I55: 92.1 | J55: 92.6 | K55: 92.4
B56: 2009-03-01 | C56: 92.5 | D56: 92.6 | E56: 92.4 | F56: 92.2 | G56: 92.5 | H56: 92.5 | I56: 92.2 | J56: 92.9 | K56: 92.5
B57: 2009-06-01 | C57: 92.9 | D57: 92.9 | E57: 92.9 | F57: 92.7 | G57: 93.3 | H57: 93 | I57: 93.2 | J57: 93.5 | K57: 92.9 | M57: =AVERAGE(C54:C57)/AVERAGE(C50:C53)-1 -> 0.03088480801 | N57: =AVERAGE(K54:K57)/AVERAGE(K50:K53)-1 -> 0.03117172279
B58: 2009-09-01 | C58: 93.9 | D58: 93.4 | E58: 94.2 | F58: 93.7 | G58: 94 | H58: 94.1 | I58: 95 | J58: 94.3 | K58: 93.8
B59: 2009-12-01 | C59: 94.4 | D59: 94 | E59: 94.5 | F59: 94.1 | G59: 94.5 | H59: 94.7 | I59: 94.9 | J59: 94.7 | K59: 94.3
B60: 2010-03-01 | C60: 95.2 | D60: 95.2 | E60: 95.2 | F60: 94.6 | G60: 95.6 | H60: 95.4 | I60: 95.4 | J60: 95.3 | K60: 95.2
B61: 2010-06-01 | C61: 95.6 | D61: 95.8 | E61: 95.9 | F61: 95.3 | G61: 96.5 | H61: 95.8 | I61: 96.2 | J61: 95.6 | K61: 95.8 | M61: =AVERAGE(C58:C61)/AVERAGE(C54:C57)-1 -> 0.02321187584 | N61: =AVERAGE(K58:K61)/AVERAGE(K54:K57)-1 -> 0.02321187584
B62: 2010-09-01 | C62: 96.3 | D62: 96.3 | E62: 96.9 | F62: 96.2 | G62: 96.9 | H62: 96.8 | I62: 97.2 | J62: 96.3 | K62: 96.5
B63: 2010-12-01 | C63: 96.7 | D63: 96.9 | E63: 97.4 | F63: 96.5 | G63: 97 | H63: 96.9 | I63: 97.1 | J63: 96.7 | K63: 96.9
B64: 2011-03-01 | C64: 98.2 | D64: 98.5 | E64: 98.6 | F64: 98.1 | G64: 98.1 | H64: 98.2 | I64: 98.2 | J64: 98.1 | K64: 98.3
B65: 2011-06-01 | C65: 99.2 | D65: 99.2 | E65: 99.6 | F65: 99 | G65: 99.4 | H65: 99.1 | I65: 99.2 | J65: 99.2 | K65: 99.2 | M65: =AVERAGE(C62:C65)/AVERAGE(C58:C61)-1 -> 0.02980743867 | N65: =AVERAGE(K62:K65)/AVERAGE(K58:K61)-1 -> 0.03112635189
B66: 2011-09-01 | C66: 99.9 | D66: 99.8 | E66: 99.9 | F66: 100 | G66: 99.6 | H66: 99.9 | I66: 99.9 | J66: 99.8 | K66: 99.8
B67: 2011-12-01 | C67: 99.8 | D67: 99.9 | E67: 99.7 | F67: 100 | G67: 99.8 | H67: 100 | I67: 99.5 | J67: 100.1 | K67: 99.8
B68: 2012-03-01 | C68: 99.9 | D68: 99.9 | E68: 99.9 | F68: 99.9 | G68: 100 | H68: 100.3 | I68: 99.9 | J68: 99.7 | K68: 99.9
B69: 2012-06-01 | C69: 100.5 | D69: 100.4 | E69: 100.5 | F69: 100.2 | G69: 100.5 | H69: 99.9 | I69: 100.7 | J69: 100.3 | K69: 100.4 | M69: =AVERAGE(C66:C69)/AVERAGE(C62:C65)-1 -> 0.02484631148 | N69: =AVERAGE(K66:K69)/AVERAGE(K62:K65)-1 -> 0.02302379125
B70: 2012-09-01 | C70: 102.2 | D70: 101.6 | E70: 101.6 | F70: 101.7 | G70: 101.6 | H70: 100.6 | I70: 102 | J70: 101.4 | K70: 101.8
B71: 2012-12-01 | C71: 102.3 | D71: 102 | E71: 101.9 | F71: 102.1 | G71: 101.9 | H71: 101 | I71: 102 | J71: 101.8 | K71: 102
B72: 2013-03-01 | C72: 102.7 | D72: 102.4 | E72: 102 | F72: 102.1 | G72: 102.4 | H72: 101.3 | I72: 103.7 | J72: 101.9 | K72: 102.4
B73: 2013-06-01 | C73: 103.1 | D73: 102.6 | E73: 102.5 | F73: 102.3 | G73: 103 | H73: 101.7 | I73: 104.6 | J73: 102.5 | K73: 102.8 | M73: =AVERAGE(C70:C73)/AVERAGE(C66:C69)-1 -> 0.02549362659 | N73: =AVERAGE(K70:K73)/AVERAGE(K66:K69)-1 -> 0.02275568892
B74: 2013-09-01 | C74: 104.3 | D74: 104 | E74: 103.8 | F74: 103.7 | G74: 104.2 | H74: 102.6 | I74: 105.5 | J74: 103.1 | K74: 104
B75: 2013-12-01 | C75: 105 | D75: 104.8 | E75: 104.6 | F75: 104.4 | G75: 104.9 | H75: 103.6 | I75: 106.5 | J75: 104.1 | K75: 104.8
B76: 2014-03-01 | C76: 105.6 | D76: 105.3 | E76: 105.2 | F76: 105.1 | G76: 105.6 | H76: 104.1 | I76: 107.4 | J76: 104.6 | K76: 105.4
B77: 2014-06-01 | C77: 106 | D77: 105.9 | E77: 105.8 | F77: 105.5 | G77: 106.4 | H77: 104.5 | I77: 108.1 | J77: 104.8 | K77: 105.9 | M77: =AVERAGE(C74:C77)/AVERAGE(C70:C73)-1 -> 0.02583475506 | N77: =AVERAGE(K74:K77)/AVERAGE(K70:K73)-1 -> 0.0271393643
B78: 2014-09-01 | C78: 106.6 | D78: 106.1 | E78: 106.5 | F78: 105.9 | G78: 106.9 | H78: 104.6 | I78: 108.3 | J78: 105.2 | K78: 106.4
B79: 2014-12-01 | C79: 106.8 | D79: 106.3 | E79: 106.7 | F79: 106.2 | G79: 107 | H79: 104.7 | I79: 108.5 | J79: 105.3 | K79: 106.6
B80: 2015-03-01 | C80: 107.3 | D80: 106.4 | E80: 106.7 | F80: 106.3 | G80: 107.1 | H80: 105 | I80: 108.3 | J80: 105.2 | K80: 106.8
B81: 2015-06-01 | C81: 108.3 | D81: 107.1 | E81: 107.4 | F81: 106.8 | G81: 107.7 | H81: 105.1 | I81: 108.3 | J81: 105.6 | K81: 107.5 | M81: =AVERAGE(C78:C81)/AVERAGE(C74:C77)-1 -> 0.01924447612 | N81: =AVERAGE(K78:K81)/AVERAGE(K74:K77)-1 -> 0.01713877648
B82: 2015-09-01 | C82: 108.6 | D82: 107.6 | E82: 108.1 | F82: 107.1 | G82: 108.1 | H82: 105.7 | I82: 108.7 | J82: 105.8 | K82: 108
B83: 2015-12-01 | C83: 108.9 | D83: 108.3 | E83: 108.5 | F83: 107.3 | G83: 108.6 | H83: 106.6 | I83: 109 | J83: 106 | K83: 108.4
B84: 2016-03-01 | C84: 108.7 | D84: 108.2 | E84: 108.5 | F84: 107 | G84: 107.9 | H84: 106.4 | I84: 108 | J84: 106.2 | K84: 108.2
B85: 2016-06-01 | C85: 109.3 | D85: 108.6 | E85: 109 | F85: 107.5 | G85: 108.2 | H85: 106.4 | I85: 108.3 | J85: 106.4 | K85: 108.6 | M85: =AVERAGE(C82:C85)/AVERAGE(C78:C81)-1 -> 0.01515151515 | N85: =AVERAGE(K82:K85)/AVERAGE(K78:K81)-1 -> 0.0138076293
B86: 2016-09-01 | C86: 110.4 | D86: 109.1 | E86: 109.7 | F86: 108.4 | G86: 108.6 | H86: 107.1 | I86: 108.7 | J86: 107.3 | K86: 109.4
B87: 2016-12-01 | C87: 110.9 | D87: 109.9 | E87: 110.2 | F87: 108.7 | G87: 109 | H87: 108 | I87: 108.6 | J87: 107.9 | K87: 110
B88: 2017-03-01 | C88: 111.3 | D88: 110.9 | E88: 110.5 | F88: 109.1 | G88: 109 | H88: 108.9 | I88: 108.5 | J88: 108.6 | K88: 110.5
B89: 2017-06-01 | C89: 111.7 | D89: 111 | E89: 111 | F89: 109.2 | G89: 109 | H89: 108.9 | I89: 108.8 | J89: 108.6 | K89: 110.7 | M89: =AVERAGE(C86:C89)/AVERAGE(C82:C85)-1 -> 0.02020665901 | N89: =AVERAGE(K86:K89)/AVERAGE(K82:K85)-1 -> 0.01708217913
B90: 2017-09-01 | C90: 112.5 | D90: 111.5 | E90: 111.4 | F90: 110.4 | G90: 109.5 | H90: 109.2 | I90: 109.4 | J90: 109.6 | K90: 111.4
B91: 2017-12-01 | C91: 113.3 | D91: 112.3 | E91: 112.3 | F91: 111.2 | G91: 109.9 | H91: 110.3 | I91: 109.7 | J91: 110.3 | K91: 112.1
B92: 2018-03-01 | C92: 113.6 | D92: 113.3 | E92: 112.4 | F92: 111.6 | G92: 110 | H92: 111.1 | I92: 109.7 | J92: 111.2 | K92: 112.6
B93: 2018-06-01 | C93: 114 | D93: 113.8 | E93: 112.9 | F93: 112.1 | G93: 110.2 | H93: 111.5 | I93: 110.1 | J93: 111.6 | K93: 113 | M93: =AVERAGE(C90:C93)/AVERAGE(C86:C89)-1 -> 0.02048165654 | N93: =AVERAGE(K90:K93)/AVERAGE(K86:K89)-1 -> 0.01929187472
B94: 2018-09-01 | C94: 114.7 | D94: 114 | E94: 113.4 | F94: 112.4 | G94: 110.8 | H94: 112.2 | I94: 110.8 | J94: 112.3 | K94: 113.5
B95: 2018-12-01 | C95: 115.2 | D95: 114.6 | E95: 114 | F95: 113 | G95: 111.3 | H95: 113.6 | I95: 111 | J95: 113.1 | K95: 114.1
B96: 2019-03-01 | C96: 115.1 | D96: 114.7 | E96: 114.1 | F96: 113.1 | G96: 111.2 | H96: 113.4 | I96: 110.1 | J96: 113.2 | K96: 114.1
B97: 2019-06-01 | C97: 115.9 | D97: 115.3 | E97: 114.8 | F97: 113.7 | G97: 112 | H97: 114.1 | I97: 111 | J97: 113.5 | K97: 114.8 | M97: =AVERAGE(C94:C97)/AVERAGE(C90:C93)-1 -> 0.01654168505 | N97: =AVERAGE(K94:K97)/AVERAGE(K90:K93)-1 -> 0.01647739924
B98: 2019-09-01 | C98: 116.5 | D98: 115.9 | E98: 115.5 | F98: 114.5 | G98: 112.6 | H98: 114.7 | I98: 111.3 | J98: 114.3 | K98: 115.4
B99: 2019-12-01 | C99: 117.1 | D99: 116.9 | E99: 116.3 | F99: 115.4 | G99: 113.1 | H99: 116.7 | I99: 111.5 | J99: 115 | K99: 116.2
B100: 2020-03-01 | C100: 117.4 | D100: 117.8 | E100: 116.2 | F100: 115.8 | G100: 113.5 | H100: 117.2 | I100: 111.8 | J100: 115.5 | K100: 116.6
B101: 2020-06-01 | C101: 114.7 | D101: 115.7 | E101: 113.6 | F101: 114.6 | G101: 112.1 | H101: 115.6 | I101: 109 | J101: 112.8 | K101: 114.4 | M101: =AVERAGE(C98:C101)/AVERAGE(C94:C97)-1 -> 0.0104144066 | N101: =AVERAGE(K98:K101)/AVERAGE(K94:K97)-1 -> 0.01336254107
B102: 2020-09-01 | C102: 116.8 | D102: 116.7 | E102: 116.2 | F102: 115.7 | G102: 114.1 | H102: 116.7 | I102: 110.8 | J102: 115.4 | K102: 116.2
B103: 2020-12-01 | C103: 118 | D103: 118.4 | E103: 117.5 | F103: 116.5 | G103: 113 | H103: 117.6 | I103: 111.5 | J103: 116.3 | K103: 117.2
B104: 2021-03-01 | C104: 118.5 | D104: 118.8 | E104: 118.2 | F104: 117.2 | G104: 114.6 | H104: 118.5 | I104: 114.4 | J104: 117.3 | K104: 117.9
B105: 2021-06-01 | C105: 119.4 | D105: 119.1 | E105: 119.2 | F105: 117.8 | G105: 116.8 | H105: 119.8 | I105: 115.6 | J105: 118.2 | K105: 118.8 | M105: =AVERAGE(C102:C105)/AVERAGE(C98:C101)-1 -> 0.01503113592 | N105: =AVERAGE(K102:K105)/AVERAGE(K98:K101)-1 -> 0.01621271077
B106: 2021-09-01 | C106: 120.2 | D106: 120.1 | E106: 120.7 | F106: 118.6 | G106: 117.7 | H106: 120.2 | I106: 117.3 | J106: 119.7 | K106: 119.7
B107: 2021-12-01 | C107: 121.6 | D107: 121.4 | E107: 122.6 | F107: 120.4 | G107: 119.4 | H107: 122.9 | I107: 118.2 | J107: 120.9 | K107: 121.3
B108: 2022-03-01 | C108: 123.7 | D108: 124.2 | E108: 125.3 | F108: 122.7 | G108: 123.3 | H108: 125.4 | I108: 120.7 | J108: 123.6 | K108: 123.9
B109: 2022-06-01 | C109: 125.7 | D109: 126.4 | E109: 127.9 | F109: 125.3 | G109: 125.4 | H109: 127.6 | I109: 123.2 | J109: 125.6 | K109: 126.1 | M109: =AVERAGE(C106:C109)/AVERAGE(C102:C105)-1 -> 0.03913687328 | N109: =AVERAGE(K106:K109)/AVERAGE(K102:K105)-1 -> 0.04445862582
B110: 2022-09-01 | C110: 128.6 | D110: 129 | E110: 130.2 | F110: 128.6 | G110: 124.8 | H110: 130.5 | I110: 125.5 | J110: 128 | K110: 128.4
B111: 2022-12-01 | C111: 130.9 | D111: 131.1 | E111: 132.1 | F111: 130.8 | G111: 129.3 | H111: 132.4 | I111: 126.6 | J111: 129.5 | K111: 130.8
B112: 2023-03-01 | C112: 132.7 | D112: 132.7 | E112: 134.6 | F112: 132.4 | G112: 130.4 | H112: 134 | I112: 128.2 | J112: 131.3 | K112: 132.6
B116: Inflation, average of 4 quarters to June
M117: =M10 -> Sydney | N117: Australia
B118: =B41 -> 2005-06-01 | M118: =M41 -> 0.02486016159 | N118: =N41 -> 0.02410770194
B119: =B45 -> 2006-06-01 | M119: =M45 -> 0.03001819284 | N119: =N45 -> 0.03210027515
B120: =B49 -> 2007-06-01 | M120: =M49 -> 0.02737709744 | N120: =N49 -> 0.02962085308
B121: =B53 -> 2008-06-01 | M121: =INDEX(M$21:M$109,MATCH($B121,$B$21:$B$109,0)) -> 0.02979942693 | N121: 0.0336593786
B122: =B57 -> 2009-06-01 | M122: 0.03088480801 | N122: 0.03117172279
B123: =B61 -> 2010-06-01 | M123: 0.02321187584 | N123: 0.02321187584
B124: =B65 -> 2011-06-01 | M124: 0.02980743867 | N124: 0.03112635189
B125: =B69 -> 2012-06-01 | M125: 0.02484631148 | N125: 0.02302379125
B126: =B73 -> 2013-06-01 | M126: 0.02549362659 | N126: 0.02275568892
B127: =B77 -> 2014-06-01 | M127: 0.02583475506 | N127: 0.0271393643
B128: =B81 -> 2015-06-01 | M128: 0.01924447612 | N128: 0.01713877648
B129: =B85 -> 2016-06-01 | M129: 0.01515151515 | N129: 0.0138076293
B130: =B89 -> 2017-06-01 | M130: 0.02020665901 | N130: 0.01708217913
B131: =B93 -> 2018-06-01 | M131: 0.02048165654 | N131: 0.01929187472
B132: =B97 -> 2019-06-01 | M132: 0.01654168505 | N132: 0.01647739924
B133: =B101 -> 2020-06-01 | M133: 0.0104144066 | N133: 0.01336254107
B134: =B105 -> 2021-06-01 | M134: 0.01503113592 | N134: 0.01621271077
B135: =B109 -> 2022-06-01 | M135: =INDEX(M$21:M$109,MATCH($B135,$B$21:$B$109,0)) -> 0.03913687328 | N135: 0.04445862582

Sheet ABS PPI
B2: Source: | C2: https://www.abs.gov.au/statistics/economy/price-indexes-and-inflation/producer-price-indexes-australia/dec-2022#data-downloads
B4: Time Series Workbook
B7: 6427.0 Producer Price Indexes, Australia
B8: Table 1. Final demand, Index Numbers and Percentage Changes.
C9: Index Numbers ; Final ; Total (Source) ;
B10: Unit | C10: Index Numbers | D10: All
B11: Series Type | C11: Original
B12: Data Type | C12: INDEX
B13: Frequency | C13: Quarter
B14: Collection Month | C14: 3
B15: Series Start | C15: 1998-09-01
B16: Series End | C16: 2022-12-01
B17: No. Obs | C17: 1900-04-07
B18: Series ID | C18: A2314865F
B21: 2000-06-01 | C21: 74.4
B22: 2000-09-01 | C22: 74.8
B23: 2000-12-01 | C23: 75.9
B24: 2001-03-01 | C24: 75.8
B25: 2001-06-01 | C25: 77
B26: 2001-09-01 | C26: 76.8
B27: 2001-12-01 | C27: 77.2
B28: 2002-03-01 | C28: 77.3
B29: 2002-06-01 | C29: 77.5
B30: 2002-09-01 | C30: 77.8
B31: 2002-12-01 | C31: 78.2
B32: 2003-03-01 | C32: 78.8
B33: 2003-06-01 | C33: 78.5
B34: 2003-09-01 | C34: 79
B35: 2003-12-01 | C35: 79
B36: 2004-03-01 | C36: 79.5
B37: 2004-06-01 | C37: 80.4
B38: 2004-09-01 | C38: 81.5
B39: 2004-12-01 | C39: 82.4
B40: 2005-03-01 | C40: 82.4
B41: 2005-06-01 | C41: 83.1
B42: 2005-09-01 | C42: 84.3
B43: 2005-12-01 | C43: 84.9
B44: 2006-03-01 | C44: 85.5
B45: 2006-06-01 | C45: 86.8
B46: 2006-09-01 | C46: 87.7
B47: 2006-12-01 | C47: 87.9
B48: 2007-03-01 | C48: 87.9
B49: 2007-06-01 | C49: 88.8 | D49: =AVERAGE(C46:C49)/AVERAGE(C42:C45)-1 -> 0.03162518302
B50: 2007-09-01 | C50: 89.8
B51: 2007-12-01 | C51: 90.4
B52: 2008-03-01 | C52: 92.1
B53: 2008-06-01 | C53: 93 | D53: =AVERAGE(C50:C53)/AVERAGE(C46:C49)-1 -> 0.036900369
B54: 2008-09-01 | C54: 94.8
B55: 2008-12-01 | C55: 96.1
B56: 2009-03-01 | C56: 95.8
B57: 2009-06-01 | C57: 95 | D57: =AVERAGE(C54:C57)/AVERAGE(C50:C53)-1 -> 0.04489460717
B58: 2009-09-01 | C58: 95.1
B59: 2009-12-01 | C59: 94.7
B60: 2010-03-01 | C60: 95.6
B61: 2010-06-01 | C61: 95.9 | D61: =AVERAGE(C58:C61)/AVERAGE(C54:C57)-1 -> -0.001047943411
B62: 2010-09-01 | C62: 97.2
B63: 2010-12-01 | C63: 97.3
B64: 2011-03-01 | C64: 98.4
B65: 2011-06-01 | C65: 99.2 | D65: =AVERAGE(C62:C65)/AVERAGE(C58:C61)-1 -> 0.02832415421
B66: 2011-09-01 | C66: 99.8
B67: 2011-12-01 | C67: 100.1
B68: 2012-03-01 | C68: 99.8
B69: 2012-06-01 | C69: 100.3 | D69: =AVERAGE(C66:C69)/AVERAGE(C62:C65)-1 -> 0.02014792145
B70: 2012-09-01 | C70: 100.9
B71: 2012-12-01 | C71: 101.1
B72: 2013-03-01 | C72: 101.4
B73: 2013-06-01 | C73: 101.5 | D73: =AVERAGE(C70:C73)/AVERAGE(C66:C69)-1 -> 0.01225
B74: 2013-09-01 | C74: 102.8
B75: 2013-12-01 | C75: 103
B76: 2014-03-01 | C76: 103.9
B77: 2014-06-01 | C77: 103.8 | D77: =AVERAGE(C74:C77)/AVERAGE(C70:C73)-1 -> 0.0212398123
B78: 2014-09-01 | C78: 104
B79: 2014-12-01 | C79: 104.1
B80: 2015-03-01 | C80: 104.6
B81: 2015-06-01 | C81: 104.9 | D81: =AVERAGE(C78:C81)/AVERAGE(C74:C77)-1 -> 0.009915356711
B82: 2015-09-01 | C82: 105.8
B83: 2015-12-01 | C83: 106.1
B84: 2016-03-01 | C84: 105.9
B85: 2016-06-01 | C85: 106 | D85: =AVERAGE(C82:C85)/AVERAGE(C78:C81)-1 -> 0.0148467433
B86: 2016-09-01 | C86: 106.3
B87: 2016-12-01 | C87: 106.8
B88: 2017-03-01 | C88: 107.3
B89: 2017-06-01 | C89: 107.8 | D89: =AVERAGE(C86:C89)/AVERAGE(C82:C85)-1 -> 0.01038225578
B90: 2017-09-01 | C90: 108
B91: 2017-12-01 | C91: 108.6
B92: 2018-03-01 | C92: 109.1
B93: 2018-06-01 | C93: 109.4 | D93: =AVERAGE(C90:C93)/AVERAGE(C86:C89)-1 -> 0.01611396544
B94: 2018-09-01 | C94: 110.3
B95: 2018-12-01 | C95: 110.8
B96: 2019-03-01 | C96: 111.2
B97: 2019-06-01 | C97: 111.6 | D97: =AVERAGE(C94:C97)/AVERAGE(C90:C93)-1 -> 0.02022523558
B98: 2019-09-01 | C98: 112.1
B99: 2019-12-01 | C99: 112.4
B100: 2020-03-01 | C100: 112.6
B101: 2020-06-01 | C101: 111.2 | D101: =AVERAGE(C98:C101)/AVERAGE(C94:C97)-1 -> 0.009912142374
B102: 2020-09-01 | C102: 111.7
B103: 2020-12-01 | C103: 112.3
B104: 2021-03-01 | C104: 112.8
B105: 2021-06-01 | C105: 113.6 | D105: =AVERAGE(C102:C105)/AVERAGE(C98:C101)-1 -> 0.00468436315
B106: 2021-09-01 | C106: 114.9
B107: 2021-12-01 | C107: 116.4
B108: 2022-03-01 | C108: 118.3
B109: 2022-06-01 | C109: 120 | D109: =AVERAGE(C106:C109)/AVERAGE(C102:C105)-1 -> 0.04262877442
B110: 2022-09-01 | C110: 122.3
B111: 2022-12-01 | C111: 123.2
B112: 2023-03-01 | C112: 124.4
B115: Inflation, average of 4 quarters to June
D116: =D10 -> All
B117: =B53 -> 2008-06-01 | D117: =INDEX(D$21:D$109,MATCH($B117,$B$21:$B$109,0)) -> 0.036900369
B118: =B57 -> 2009-06-01 | D118: 0.04489460717
B119: =B61 -> 2010-06-01 | D119: -0.001047943411
B120: =B65 -> 2011-06-01 | D120: 0.02832415421
B121: =B69 -> 2012-06-01 | D121: 0.02014792145
B122: =B73 -> 2013-06-01 | D122: 0.01225
B123: =B77 -> 2014-06-01 | D123: 0.0212398123
B124: =B81 -> 2015-06-01 | D124: 0.009915356711
B125: =B85 -> 2016-06-01 | D125: 0.0148467433
B126: =B89 -> 2017-06-01 | D126: 0.01038225578
B127: =B93 -> 2018-06-01 | D127: 0.01611396544
B128: =B97 -> 2019-06-01 | D128: 0.02022523558
B129: =B101 -> 2020-06-01 | D129: 0.009912142374
B130: =B105 -> 2021-06-01 | D130: 0.00468436315
B131: =B109 -> 2022-06-01 | D131: =INDEX(D$21:D$109,MATCH($B131,$B$21:$B$109,0)) -> 0.04262877442

Sheet PPI T17
B2: Source: | AE2: https://www.abs.gov.au/statistics/economy/price-indexes-and-inflation/producer-price-indexes-australia/dec-2022#data-downloads
C4: Index Number ; 30 Building construction Australia ; | D4: Index Number ; 30 Building construction New South Wales ; | E4: Index Number ; 30 Building construction Victoria ; | F4: Index Number ; 30 Building construction Queensland ; | G4: Index Number ; 30 Building construction South Australia ; | H4: Index Number ; 30 Building construction Western Australia ; | I4: Index Number ; 30 Building construction Tasmania ; | J4: Index Number ; 30 Building construction Northern Territory ; | K4: Index Number ; 30 Building construction Australian Capital Territory ; | L4: Index Number ; 3011 House construction Australia ; | M4: Index Number ; 3011 House construction New South Wales ; | N4: Index Number ; 3011 House construction Victoria ; | O4: Index Number ; 3011 House construction Queensland ; | P4: Index Number ; 3011 House construction South Australia ; | Q4: Index Number ; 3011 House construction Western Australia ; | R4: Index Number ; 3011 House construction Tasmania ; | S4: Index Number ; 3011 House construction Northern Territory ; | T4: Index Number ; 3011 House construction Australian Capital Territory ; | U4: Index Number ; 3019 Other residential building construction Australia ; | V4: Index Number ; 3019 Other residential building construction New South Wales ; | W4: Index Number ; 3019 Other residential building construction Victoria ; | X4: Index Number ; 3019 Other residential building construction Queensland ; | Y4: Index Number ; 3019 Other residential building construction South Australia ; | Z4: Index Number ; 3019 Other residential building construction Western Australia ; | AA4: Index Number ; 3019 Other residential building construction Tasmania ; | AB4: Index Number ; 3019 Other residential building construction Northern Territory ; | AC4: Index Number ; 3019 Other residential building construction Australian Capital Territory ; | AD4: Index Number ; 3020 Non-residential building construction Australia ; | AE4: Index Number ; 3020 Non-residential building construction New South Wales ; | AF4: Index Number ; 3020 Non-residential building construction Victoria ; | AG4: Index Number ; 3020 Non-residential building construction Queensland ; | AH4: Index Number ; 3020 Non-residential building construction South Australia ; | AI4: Index Number ; 3020 Non-residential building construction Western Australia ; | AJ4: Index Number ; 3020 Non-residential building construction Tasmania ; | AK4: Index Number ; 3020 Non-residential building construction Northern Territory ; | AL4: Index Number ; 3020 Non-residential building construction Australian Capital Territory ; | AM4: Index Number ; 31 Heavy and civil engineering construction Australia ; | AN4: Index Number ; 3101 Road and bridge construction Australia ; | AO4: Index Number ; 3101 Road and bridge construction New South Wales ; | AP4: Index Number ; 3101 Road and bridge construction Victoria ; | AQ4: Index Number ; 3101 Road and bridge construction Queensland ; | AR4: Index Number ; 3101 Road and bridge construction South Australia ; | AS4: Index Number ; 3101 Road and bridge construction Western Australia ; | AT4: Index Number ; 3109 Other heavy and civil engineering construction Australia ; | AU4: Road and bridge construction Australia ; | AV4: Road and bridge construction New South Wales ;
B5: Unit | C5: Index Numbers | D5: Index Numbers | E5: Index Numbers | F5: Index Numbers | G5: Index Numbers | H5: Index Numbers | I5: Index Numbers | J5: Index Numbers | K5: Index Numbers | L5: Index Numbers | M5: Index Numbers | N5: Index Numbers | O5: Index Numbers | P5: Index Numbers | Q5: Index Numbers | R5: Index Numbers | S5: Index Numbers | T5: Index Numbers | U5: Index Numbers | V5: Index Numbers | W5: Index Numbers | X5: Index Numbers | Y5: Index Numbers | Z5: Index Numbers | AA5: Index Numbers | AB5: Index Numbers | AC5: Index Numbers | AD5: Index Numbers | AE5: Index Numbers | AF5: Index Numbers | AG5: Index Numbers | AH5: Index Numbers | AI5: Index Numbers | AJ5: Index Numbers | AK5: Index Numbers | AL5: Index Numbers | AM5: Index Numbers | AN5: Index Numbers | AO5: Index Numbers | AP5: Index Numbers | AQ5: Index Numbers | AR5: Index Numbers | AS5: Index Numbers | AT5: Index Numbers
B6: Series Type | C6: Original | D6: Original | E6: Original | F6: Original | G6: Original | H6: Original | I6: Original | J6: Original | K6: Original | L6: Original | M6: Original | N6: Original | O6: Original | P6: Original | Q6: Original | R6: Original | S6: Original | T6: Original | U6: Original | V6: Original | W6: Original | X6: Original | Y6: Original | Z6: Original | AA6: Original | AB6: Original | AC6: Original | AD6: Original | AE6: Original | AF6: Original | AG6: Original | AH6: Original | AI6: Original | AJ6: Original | AK6: Original | AL6: Original | AM6: Original | AN6: Original | AO6: Original | AP6: Original | AQ6: Original | AR6: Original | AS6: Original | AT6: Original
B7: Data Type | C7: INDEX | D7: INDEX | E7: INDEX | F7: INDEX | G7: INDEX | H7: INDEX | I7: INDEX | J7: INDEX | K7: INDEX | L7: INDEX | M7: INDEX | N7: INDEX | O7: INDEX | P7: INDEX | Q7: INDEX | R7: INDEX | S7: INDEX | T7: INDEX | U7: INDEX | V7: INDEX | W7: INDEX | X7: INDEX | Y7: INDEX | Z7: INDEX | AA7: INDEX | AB7: INDEX | AC7: INDEX | AD7: INDEX | AE7: INDEX | AF7: INDEX | AG7: INDEX | AH7: INDEX | AI7: INDEX | AJ7: INDEX | AK7: INDEX | AL7: INDEX | AM7: INDEX | AN7: INDEX | AO7: INDEX | AP7: INDEX | AQ7: INDEX | AR7: INDEX | AS7: INDEX | AT7: INDEX
B8: Frequency | C8: Quarter | D8: Quarter | E8: Quarter | F8: Quarter | G8: Quarter | H8: Quarter | I8: Quarter | J8: Quarter | K8: Quarter | L8: Quarter | M8: Quarter | N8: Quarter | O8: Quarter | P8: Quarter | Q8: Quarter | R8: Quarter | S8: Quarter | T8: Quarter | U8: Quarter | V8: Quarter | W8: Quarter | X8: Quarter | Y8: Quarter | Z8: Quarter | AA8: Quarter | AB8: Quarter | AC8: Quarter | AD8: Quarter | AE8: Quarter | AF8: Quarter | AG8: Quarter | AH8: Quarter | AI8: Quarter | AJ8: Quarter | AK8: Quarter | AL8: Quarter | AM8: Quarter | AN8: Quarter | AO8: Quarter | AP8: Quarter | AQ8: Quarter | AR8: Quarter | AS8: Quarter | AT8: Quarter
B9: Collection Month | C9: 3 | D9: 3 | E9: 3 | F9: 3 | G9: 3 | H9: 3 | I9: 3 | J9: 3 | K9: 3 | L9: 3 | M9: 3 | N9: 3 | O9: 3 | P9: 3 | Q9: 3 | R9: 3 | S9: 3 | T9: 3 | U9: 3 | V9: 3 | W9: 3 | X9: 3 | Y9: 3 | Z9: 3 | AA9: 3 | AB9: 3 | AC9: 3 | AD9: 3 | AE9: 3 | AF9: 3 | AG9: 3 | AH9: 3 | AI9: 3 | AJ9: 3 | AK9: 3 | AL9: 3 | AM9: 3 | AN9: 3 | AO9: 3 | AP9: 3 | AQ9: 3 | AR9: 3 | AS9: 3 | AT9: 3
B10: Series Start | C10: 1996-09-01 | D10: 1998-09-01 | E10: 1998-09-01 | F10: 1998-09-01 | G10: 1998-09-01 | H10: 1998-09-01 | I10: 1998-09-01 | J10: 1998-09-01 | K10: 1998-09-01 | L10: 1996-09-01 | M10: 1998-09-01 | N10: 1998-09-01 | O10: 1998-09-01 | P10: 1998-09-01 | Q10: 1998-09-01 | R10: 1998-09-01 | S10: 1998-09-01 | T10: 1998-09-01 | U10: 1996-09-01 | V10: 1996-09-01 | W10: 1996-09-01 | X10: 1996-09-01 | Y10: 1996-09-01 | Z10: 1996-09-01 | AA10: 1996-09-01 | AB10: 1996-09-01 | AC10: 1996-09-01 | AD10: 1996-09-01 | AE10: 1996-09-01 | AF10: 1996-09-01 | AG10: 1996-09-01 | AH10: 1996-09-01 | AI10: 1996-09-01 | AJ10: 1996-09-01 | AK10: 1996-09-01 | AL10: 1996-09-01 | AM10: 2007-03-01 | AN10: 1997-09-01 | AO10: 1998-09-01 | AP10: 1998-09-01 | AQ10: 1998-09-01 | AR10: 1998-09-01 | AS10: 1998-09-01 | AT10: 2007-03-01
B11: Series End | C11: 2018-06-01 | D11: 2018-06-01 | E11: 2018-06-01 | F11: 2018-06-01 | G11: 2018-06-01 | H11: 2018-06-01 | I11: 2018-06-01 | J11: 2018-06-01 | K11: 2018-06-01 | L11: 2018-06-01 | M11: 2018-06-01 | N11: 2018-06-01 | O11: 2018-06-01 | P11: 2018-06-01 | Q11: 2018-06-01 | R11: 2018-06-01 | S11: 2018-06-01 | T11: 2018-06-01 | U11: 2018-06-01 | V11: 2018-06-01 | W11: 2018-06-01 | X11: 2018-06-01 | Y11: 2018-06-01 | Z11: 2018-06-01 | AA11: 2018-06-01 | AB11: 2018-06-01 | AC11: 2018-06-01 | AD11: 2018-06-01 | AE11: 2018-06-01 | AF11: 2018-06-01 | AG11: 2018-06-01 | AH11: 2018-06-01 | AI11: 2018-06-01 | AJ11: 2018-06-01 | AK11: 2018-06-01 | AL11: 2018-06-01 | AM11: 2018-06-01 | AN11: 2018-06-01 | AO11: 2018-06-01 | AP11: 2018-06-01 | AQ11: 2018-06-01 | AR11: 2018-06-01 | AS11: 2018-06-01 | AT11: 2018-06-01
B12: No. Obs | C12: 88 | D12: 80 | E12: 80 | F12: 80 | G12: 80 | H12: 80 | I12: 80 | J12: 80 | K12: 80 | L12: 88 | M12: 80 | N12: 80 | O12: 80 | P12: 80 | Q12: 80 | R12: 80 | S12: 80 | T12: 80 | U12: 88 | V12: 88 | W12: 88 | X12: 88 | Y12: 88 | Z12: 88 | AA12: 88 | AB12: 88 | AC12: 88 | AD12: 88 | AE12: 88 | AF12: 88 | AG12: 88 | AH12: 88 | AI12: 88 | AJ12: 88 | AK12: 88 | AL12: 88 | AM12: 46 | AN12: 84 | AO12: 80 | AP12: 80 | AQ12: 80 | AR12: 80 | AS12: 80 | AT12: 46
B13: Series ID | C13: A2333649T | D13: A2333670K | E13: A2333691W | F13: A2333712W | G13: A2333733J | H13: A2333754V | I13: A2333775F | J13: A2333796T | K13: A2333817T | L13: A2333652F | M13: A2333673T | N13: A2333694C | O13: A2333715C | P13: A2333736R | Q13: A2333757A | R13: A2333778L | S13: A2333799X | T13: A2333820F | U13: A2333655L | V13: A2333676X | W13: A2333697K | X13: A2333718K | Y13: A2333739W | Z13: A2333760R | AA13: A2333781A | AB13: A2333802A | AC13: A2333823L | AD13: A2333658V | AE13: A2333679F | AF13: A2333700L | AG13: A2333721X | AH13: A2333742K | AI13: A2333763W | AJ13: A2333784J | AK13: A2333805J | AL13: A2333826V | AM13: A85219099L | AN13: A2333664R | AO13: A2333685A | AP13: A2333706A | AQ13: A2333727L | AR13: A2333748X | AS13: A2333769K | AT13: A85220823L
B14: 2001-09-01 | C14: 66.6 | D14: 67.9 | E14: 71.6 | F14: 62.2 | G14: 70.3 | H14: 56.3 | I14: 60.2 | J14: 53.7 | K14: 65.6 | L14: 68 | M14: 72.5 | N14: 73.8 | O14: 61.8 | P14: 70.4 | Q14: 53.9 | R14: 58.9 | S14: 53.5 | T14: 67.6 | U14: 67.3 | V14: 65.8 | W14: 70.6 | X14: 68.3 | Y14: 69.2 | Z14: 60.3 | AA14: 59.9 | AB14: 54.8 | AC14: 63.2 | AD14: 65.3 | AE14: 65 | AF14: 69.1 | AG14: 62.9 | AH14: 69.9 | AI14: 60.2 | AJ14: 60.9 | AK14: 53.7 | AL14: 62.6 | AN14: 63.4 | AO14: 64.5 | AP14: 64 | AQ14: 60.6 | AR14: 63.2 | AS14: 65.5
B15: 2001-12-01 | C15: 67 | D15: 68.2 | E15: 72.3 | F15: 62.4 | G15: 71.4 | H15: 56.6 | I15: 60.4 | J15: 54 | K15: 67.2 | L15: 68.7 | M15: 73.1 | N15: 75.2 | O15: 61.9 | P15: 71.6 | Q15: 54.2 | R15: 59.2 | S15: 53.9 | T15: 68.9 | U15: 67.7 | V15: 66.2 | W15: 70.6 | X15: 68.6 | Y15: 70.1 | Z15: 60.7 | AA15: 60 | AB15: 54.9 | AC15: 65 | AD15: 65.6 | AE15: 65.1 | AF15: 69.2 | AG15: 63.4 | AH15: 70.9 | AI15: 60.6 | AJ15: 61 | AK15: 53.9 | AL15: 64.5 | AN15: 62.7 | AO15: 63 | AP15: 64 | AQ15: 60 | AR15: 62.9 | AS15: 65.5
B16: 2002-03-01 | C16: 67.6 | D16: 68.7 | E16: 72.8 | F16: 63.3 | G16: 72.3 | H16: 57.1 | I16: 60.6 | J16: 54.4 | K16: 67.5 | L16: 69 | M16: 73.3 | N16: 75.1 | O16: 62.8 | P16: 72.5 | Q16: 54.5 | R16: 59.6 | S16: 54.8 | T16: 69.3 | U16: 68.5 | V16: 66.8 | W16: 72.1 | X16: 69.4 | Y16: 71.6 | Z16: 61.6 | AA16: 60 | AB16: 55 | AC16: 65.4 | AD16: 66.3 | AE16: 65.7 | AF16: 70.1 | AG16: 64.2 | AH16: 71.7 | AI16: 61.4 | AJ16: 60.9 | AK16: 53.9 | AL16: 64.7 | AN16: 63.6 | AO16: 64.8 | AP16: 64.1 | AQ16: 60.7 | AR16: 62.5 | AS16: 66.1
B17: 2002-06-01 | C17: 68.3 | D17: 69.4 | E17: 73.1 | F17: 64.2 | G17: 73.4 | H17: 57.4 | I17: 61.9 | J17: 55.2 | K17: 68.4 | L17: 69.7 | M17: 74.1 | N17: 75.7 | O17: 63.8 | P17: 73.4 | Q17: 54.6 | R17: 61.7 | S17: 55.9 | T17: 70.6 | U17: 69.3 | V17: 67.7 | W17: 72.3 | X17: 70.5 | Y17: 72.7 | Z17: 61.9 | AA17: 60.3 | AB17: 55.7 | AC17: 66.2 | AD17: 66.9 | AE17: 66.2 | AF17: 70.3 | AG17: 65.2 | AH17: 72.9 | AI17: 61.8 | AJ17: 61.5 | AK17: 54.4 | AL17: 65.1 | AN17: 65.1 | AO17: 66.8 | AP17: 65.8 | AQ17: 62.4 | AR17: 63 | AS17: 67
B18: 2002-09-01 | C18: 68.9 | D18: 70.1 | E18: 73.3 | F18: 65.6 | G18: 74 | H18: 57.6 | I18: 63.3 | J18: 55.8 | K18: 69.3 | L18: 70.3 | M18: 74.5 | N18: 75.9 | O18: 65.2 | P18: 74.5 | Q18: 55 | R18: 62.9 | S18: 56.6 | T18: 71.3 | U18: 70.2 | V18: 68.6 | W18: 72.4 | X18: 72 | Y18: 72.7 | Z18: 62.3 | AA18: 61.9 | AB18: 56.1 | AC18: 66.9 | AD18: 67.6 | AE18: 67.2 | AF18: 70.4 | AG18: 66.4 | AH18: 72.9 | AI18: 61.9 | AJ18: 63.1 | AK18: 55.1 | AL18: 66.2 | AN18: 66 | AO18: 67.8 | AP18: 66.8 | AQ18: 63 | AR18: 63.8 | AS18: 67.3
B19: 2002-12-01 | C19: 69.4 | D19: 70.3 | E19: 73.7 | F19: 66.5 | G19: 74.6 | H19: 58.2 | I19: 63.7 | J19: 55.9 | K19: 70 | L19: 70.8 | M19: 74.8 | N19: 76.4 | O19: 66.1 | P19: 75.5 | Q19: 55.5 | R19: 63.7 | S19: 56.6 | T19: 72.2 | U19: 70.6 | V19: 68.9 | W19: 72.6 | X19: 72.8 | Y19: 72.8 | Z19: 62.8 | AA19: 62.1 | AB19: 56.1 | AC19: 67.4 | AD19: 67.9 | AE19: 67.2 | AF19: 70.6 | AG19: 67.5 | AH19: 72.9 | AI19: 62.5 | AJ19: 62.9 | AK19: 55.2 | AL19: 66.7 | AN19: 67 | AO19: 68.7 | AP19: 67.6 | AQ19: 64.4 | AR19: 65.4 | AS19: 68
B20: 2003-03-01 | C20: 70.5 | D20: 71.3 | E20: 75.1 | F20: 67.4 | G20: 75.1 | H20: 59.1 | I20: 65.7 | J20: 56.9 | K20: 71.3 | L20: 71.9 | M20: 75.8 | N20: 78.1 | O20: 67 | P20: 76.1 | Q20: 56.1 | R20: 66.5 | S20: 58.4 | T20: 73.7 | U20: 71.6 | V20: 70 | W20: 73.8 | X20: 73.5 | Y20: 72.8 | Z20: 64.1 | AA20: 63.3 | AB20: 56.6 | AC20: 69 | AD20: 69 | AE20: 68.3 | AF20: 71.7 | AG20: 68.5 | AH20: 73.2 | AI20: 64 | AJ20: 63.9 | AK20: 55.7 | AL20: 67.6 | AN20: 67.8 | AO20: 69.6 | AP20: 68.3 | AQ20: 65.3 | AR20: 66.2 | AS20: 68.7
B21: 2003-06-01 | C21: 72.2 | D21: 73.3 | E21: 77.1 | F21: 69.3 | G21: 75.7 | H21: 60.6 | I21: 66.7 | J21: 56.9 | K21: 72.9 | L21: 73.3 | M21: 76.2 | N21: 80.1 | O21: 69.7 | P21: 76.6 | Q21: 57.6 | R21: 68.4 | S21: 58.4 | T21: 76.4 | U21: 74 | V21: 73 | W21: 75.9 | X21: 75.3 | Y21: 73.2 | Z21: 65.7 | AA21: 63.4 | AB21: 56.7 | AC21: 69.7 | AD21: 70.8 | AE21: 71 | AF21: 73.7 | AG21: 69.7 | AH21: 73.9 | AI21: 65.5 | AJ21: 64 | AK21: 55.8 | AL21: 68.1 | AN21: 68.8 | AO21: 70.1 | AP21: 70.4 | AQ21: 65.8 | AR21: 67.4 | AS21: 69.5
B22: 2003-09-01 | C22: 73.7 | D22: 74.9 | E22: 77.5 | F22: 71.5 | G22: 77 | H22: 62.1 | I22: 67.4 | J22: 57.1 | K22: 75.7 | L22: 74.6 | M22: 77.1 | N22: 80.4 | O22: 72.9 | P22: 78 | Q22: 59.4 | R22: 68.8 | S22: 58.5 | T22: 79.1 | U22: 75.6 | V22: 74.7 | W22: 76.4 | X22: 77.2 | Y22: 73.5 | Z22: 66.8 | AA22: 64.8 | AB22: 57 | AC22: 72.9 | AD22: 72.4 | AE22: 73.2 | AF22: 74.1 | AG22: 71.4 | AH22: 75.4 | AI22: 66.6 | AJ22: 64.9 | AK22: 55.9 | AL22: 70.9 | AN22: 69.3 | AO22: 70.8 | AP22: 70.9 | AQ22: 66.6 | AR22: 67 | AS22: 69.4
B23: 2003-12-01 | C23: 74.6 | D23: 76 | E23: 77.5 | F23: 73.3 | G23: 78.3 | H23: 63.3 | I23: 68.1 | J23: 58 | K23: 76.2 | L23: 75.6 | M23: 77.8 | N23: 80.2 | O23: 75.6 | P23: 80 | Q23: 60.6 | R23: 69.6 | S23: 60.2 | T23: 80 | U23: 76.8 | V23: 76 | W23: 76.9 | X23: 79.1 | Y23: 73.8 | Z23: 67.8 | AA23: 65.1 | AB23: 57.6 | AC23: 72.9 | AD23: 73.3 | AE23: 74.5 | AF23: 74.4 | AG23: 72.6 | AH23: 75.6 | AI23: 67.7 | AJ23: 65.5 | AK23: 56.2 | AL23: 70.9 | AN23: 69.9 | AO23: 71.5 | AP23: 71.1 | AQ23: 67.6 | AR23: 67.5 | AS23: 69.7
B24: 2004-03-01 | C24: 76.5 | D24: 78.9 | E24: 79.1 | F24: 75 | G24: 79.8 | H24: 64.4 | I24: 69.3 | J24: 58.3 | K24: 77.2 | L24: 76.4 | M24: 78.7 | N24: 80.7 | O24: 76.6 | P24: 81.7 | Q24: 61.8 | R24: 71.5 | S24: 60.9 | T24: 80.4 | U24: 79.8 | V24: 80 | W24: 79.6 | X24: 81 | Y24: 76.7 | Z24: 68.8 | AA24: 65.4 | AB24: 57.6 | AC24: 74.2 | AD24: 76.1 | AE24: 78.6 | AF24: 77.1 | AG24: 74.8 | AH24: 76.4 | AI24: 68.7 | AJ24: 65.9 | AK24: 56.2 | AL24: 72.6 | AN24: 70.3 | AO24: 72.4 | AP24: 71.3 | AQ24: 68.2 | AR24: 67.2 | AS24: 70
B25: 2004-06-01 | C25: 78.2 | D25: 80.2 | E25: 80.8 | F25: 78 | G25: 80.3 | H25: 65.9 | I25: 70.7 | J25: 60.5 | K25: 77.5 | L25: 77.6 | M25: 80 | N25: 81.5 | O25: 78.2 | P25: 82.4 | Q25: 63.3 | R25: 73.8 | S25: 63.1 | T25: 81 | U25: 81.7 | V25: 81.5 | W25: 81.4 | X25: 84.7 | Y25: 76.9 | Z25: 70.1 | AA25: 65.7 | AB25: 59.8 | AC25: 74.4 | AD25: 78.3 | AE25: 80 | AF25: 79.9 | AG25: 79 | AH25: 76.6 | AI25: 70.3 | AJ25: 66.3 | AK25: 58.6 | AL25: 72.5 | AN25: 71 | AO25: 73.1 | AP25: 71.2 | AQ25: 69.9 | AR25: 67.4 | AS25: 70.4 | AU25: =AVERAGE(AN22:AN25)/AVERAGE(AN18:AN21)-1 -> 0.04043026706 | AV25: =AVERAGE(AO22:AO25)/AVERAGE(AO18:AO21)-1 -> 0.04199855177
B26: 2004-09-01 | C26: 79.4 | D26: 81.1 | E26: 82.2 | F26: 79.1 | G26: 80.4 | H26: 67.8 | I26: 72.7 | J26: 62.2 | K26: 77.8 | L26: 78.6 | M26: 80.8 | N26: 82.6 | O26: 78.7 | P26: 82.3 | Q26: 64.8 | R26: 75.1 | S26: 64.8 | T26: 81.3 | U26: 82.8 | V26: 82.2 | W26: 82.4 | X26: 86.1 | Y26: 77.2 | Z26: 72.6 | AA26: 68.8 | AB26: 60.8 | AC26: 74.8 | AD26: 79.8 | AE26: 81 | AF26: 82.1 | AG26: 80.3 | AH26: 77.1 | AI26: 73 | AJ26: 68.9 | AK26: 60.4 | AL26: 72.8 | AN26: 71.8 | AO26: 74 | AP26: 71.6 | AQ26: 70.8 | AR26: 68.8 | AS26: 70.7
B27: 2004-12-01 | C27: 81.1 | D27: 83.3 | E27: 82.8 | F27: 80.7 | G27: 81.5 | H27: 70.4 | I27: 74.9 | J27: 64.3 | K27: 79.5 | L27: 79.8 | M27: 82.1 | N27: 83 | O27: 80.1 | P27: 83.5 | Q27: 67.1 | R27: 79 | S27: 65.2 | T27: 81.4 | U27: 85.2 | V27: 85.2 | W27: 83.3 | X27: 87.9 | Y27: 78.9 | Z27: 75 | AA27: 68.9 | AB27: 64.3 | AC27: 77.1 | AD27: 81.8 | AE27: 83.7 | AF27: 82.8 | AG27: 82.3 | AH27: 77.7 | AI27: 76 | AJ27: 69.1 | AK27: 63.4 | AL27: 76.4 | AN27: 72.7 | AO27: 74.8 | AP27: 72.1 | AQ27: 71.7 | AR27: 70 | AS27: 72.8
B28: 2005-03-01 | C28: 82.6 | D28: 84.2 | E28: 83.8 | F28: 83.3 | G28: 83.6 | H28: 72.6 | I28: 76.6 | J28: 65.8 | K28: 81.6 | L28: 81 | M28: 83.2 | N28: 84.1 | O28: 80.4 | P28: 83.8 | Q28: 70 | R28: 80.8 | S28: 66.8 | T28: 81.6 | U28: 86.9 | V28: 86.2 | W28: 84.1 | X28: 91.9 | Y28: 83.3 | Z28: 76.2 | AA28: 70.5 | AB28: 65.8 | AC28: 81.4 | AD28: 83.6 | AE28: 84.3 | AF28: 83.7 | AG28: 86.3 | AH28: 82.5 | AI28: 77.5 | AJ28: 70.7 | AK28: 65 | AL28: 80.4 | AN28: 73.4 | AO28: 75.5 | AP28: 72.4 | AQ28: 72.6 | AR28: 70.4 | AS28: 73.8
B29: 2005-06-01 | C29: 83.5 | D29: 84.9 | E29: 83.7 | F29: 84.9 | G29: 84 | H29: 74.8 | I29: 77.3 | J29: 69.1 | K29: 82.7 | L29: 81.7 | M29: 83.9 | N29: 84 | O29: 80.8 | P29: 84 | Q29: 72.5 | R29: 81.6 | S29: 68.7 | T29: 82.4 | U29: 87.8 | V29: 86.5 | W29: 83.8 | X29: 94.2 | Y29: 84.4 | Z29: 78 | AA29: 70.8 | AB29: 70.2 | AC29: 83 | AD29: 84.7 | AE29: 85.2 | AF29: 83.5 | AG29: 88.9 | AH29: 83.3 | AI29: 79.3 | AJ29: 71.3 | AK29: 69.2 | AL29: 81.9 | AN29: 74.2 | AO29: 76.4 | AP29: 72.6 | AQ29: 73.3 | AR29: 71.7 | AS29: 75.3 | AU29: =AVERAGE(AN26:AN29)/AVERAGE(AN22:AN25)-1 -> 0.04135472371 | AV29: =AVERAGE(AO26:AO29)/AVERAGE(AO22:AO25)-1 -> 0.04482279361
B30: 2005-09-01 | C30: 84.4 | D30: 84.9 | E30: 84.5 | F30: 86.4 | G30: 85.1 | H30: 77.2 | I30: 78.1 | J30: 70.1 | K30: 83.3 | L30: 82.7 | M30: 84.2 | N30: 85.8 | O30: 80.6 | P30: 84.7 | Q30: 75.2 | R30: 81.9 | S30: 69.6 | T30: 83.1 | U30: 88.5 | V30: 86.5 | W30: 83.6 | X30: 96.7 | Y30: 86.6 | Z30: 79.8 | AA30: 71.9 | AB30: 70.8 | AC30: 83.5 | AD30: 85.4 | AE30: 84.9 | AF30: 83.4 | AG30: 91.4 | AH30: 85.1 | AI30: 81.1 | AJ30: 72.9 | AK30: 70.3 | AL30: 82.3 | AN30: 75.6 | AO30: 77.4 | AP30: 73.7 | AQ30: 75.2 | AR30: 73.3 | AS30: 76.9
B31: 2005-12-01 | C31: 85.1 | D31: 85.6 | E31: 84.1 | F31: 87.8 | G31: 85.7 | H31: 79.8 | I31: 78.5 | J31: 71.2 | K31: 84.7 | L31: 83.4 | M31: 84.5 | N31: 85.8 | O31: 81.3 | P31: 85 | Q31: 78.4 | R31: 81.9 | S31: 71.2 | T31: 84.1 | U31: 89.4 | V31: 87.4 | W31: 82.8 | X31: 98.7 | Y31: 87.2 | Z31: 81.7 | AA31: 72.8 | AB31: 71.5 | AC31: 84.9 | AD31: 86.1 | AE31: 85.9 | AF31: 82.6 | AG31: 93.2 | AH31: 85.9 | AI31: 82.8 | AJ31: 73.7 | AK31: 71.1 | AL31: 84.3 | AN31: 76.8 | AO31: 78.4 | AP31: 75 | AQ31: 76.7 | AR31: 74.1 | AS31: 78.3
B32: 2006-03-01 | C32: 85.8 | D32: 85.9 | E32: 83.9 | F32: 89 | G32: 86.2 | H32: 82.2 | I32: 79.5 | J32: 72.8 | K32: 85.9 | L32: 83.7 | M32: 84.3 | N32: 85 | O32: 81.3 | P32: 85.7 | Q32: 81.3 | R32: 83.5 | S32: 73.4 | T32: 84.8 | U32: 90.3 | V32: 87.7 | W32: 83.1 | X32: 100.7 | Y32: 88.1 | Z32: 83.2 | AA32: 73 | AB32: 72.6 | AC32: 86.5 | AD32: 87.2 | AE32: 86.8 | AF32: 82.8 | AG32: 95.1 | AH32: 86.6 | AI32: 84.4 | AJ32: 74.2 | AK32: 72.4 | AL32: 86 | AN32: 77.8 | AO32: 79.3 | AP32: 75.6 | AQ32: 78 | AR32: 74.6 | AS32: 79.7
B33: 2006-06-01 | C33: 87 | D33: 86.9 | E33: 84.6 | F33: 90.3 | G33: 87.1 | H33: 85 | I33: 80.2 | J33: 75 | K33: 86.9 | L33: 84.7 | M33: 84.7 | N33: 85.5 | O33: 82.5 | P33: 86.4 | Q33: 84.5 | R33: 84.2 | S33: 76.5 | T33: 85.6 | U33: 91.5 | V33: 88.8 | W33: 84.5 | X33: 101.9 | Y33: 89.1 | Z33: 85.5 | AA33: 73.3 | AB33: 74.1 | AC33: 87.5 | AD33: 88.6 | AE33: 88.2 | AF33: 83.8 | AG33: 96.6 | AH33: 87.4 | AI33: 87.1 | AJ33: 74.7 | AK33: 74.1 | AL33: 87 | AN33: 79.3 | AO33: 80.1 | AP33: 77.2 | AQ33: 80.1 | AR33: 76 | AS33: 82.1 | AU33: =AVERAGE(AN30:AN33)/AVERAGE(AN26:AN29)-1 -> 0.05956864088 | AV33: =AVERAGE(AO30:AO33)/AVERAGE(AO26:AO29)-1 -> 0.04822081809
B34: 2006-09-01 | C34: 87.8 | D34: 87.7 | E34: 84.2 | F34: 91.6 | G34: 87.9 | H34: 87.7 | I34: 82.4 | J34: 77 | K34: 87.2 | L34: 84.8 | M34: 84.6 | N34: 84.2 | O34: 82.7 | P34: 86.9 | Q34: 86.8 | R34: 84.5 | S34: 79.1 | T34: 86.2 | U34: 92.9 | V34: 89.9 | W34: 84.9 | X34: 104.2 | Y34: 90.3 | Z34: 88.7 | AA34: 78 | AB34: 75.6 | AC34: 87.6 | AD34: 90.1 | AE34: 89.6 | AF34: 84.5 | AG34: 98.6 | AH34: 88.7 | AI34: 90.3 | AJ34: 78.9 | AK34: 75.7 | AL34: 87.1 | AN34: 80.5 | AO34: 81.7 | AP34: 77.7 | AQ34: 81.7 | AR34: 76.8 | AS34: 83.2
B35: 2006-12-01 | C35: 88.5 | D35: 87.4 | E35: 86 | F35: 92.4 | G35: 88.3 | H35: 89.3 | I35: 83.1 | J35: 79.8 | K35: 88.3 | L35: 85.3 | M35: 84.4 | N35: 85.4 | O35: 83.1 | P35: 86.9 | Q35: 87.8 | R35: 84.5 | S35: 82.4 | T35: 86.8 | U35: 93.4 | V35: 89.3 | W35: 86.5 | X35: 105.4 | Y35: 91.3 | Z35: 90.9 | AA35: 81.7 | AB35: 78 | AC35: 88.8 | AD35: 91.2 | AE35: 89.5 | AF35: 87 | AG35: 99.7 | AH35: 89.8 | AI35: 92.7 | AJ35: 80.1 | AK35: 78.3 | AL35: 88.8 | AN35: 81 | AO35: 82 | AP35: 78.8 | AQ35: 82.1 | AR35: 77.4 | AS35: 83.3
B36: 2007-03-01 | C36: 89.4 | D36: 87.3 | E36: 87.3 | F36: 94.2 | G36: 88.7 | H36: 90.5 | I36: 83.8 | J36: 81.5 | K36: 88.9 | L36: 86.2 | M36: 84.8 | N36: 86 | O36: 86 | P36: 86.8 | Q36: 88.7 | R36: 85.1 | S36: 83.6 | T36: 87 | U36: 94 | V36: 89.2 | W36: 87.3 | X36: 106.6 | Y36: 92.5 | Z36: 92.7 | AA36: 82.1 | AB36: 80.2 | AC36: 90.6 | AD36: 92.1 | AE36: 89 | AF36: 89.5 | AG36: 100.9 | AH36: 91.2 | AI36: 94.6 | AJ36: 80.8 | AK36: 80.3 | AL36: 89.6 | AM36: 84 | AN36: 81.4 | AO36: 82.7 | AP36: 78.9 | AQ36: 82.5 | AR36: 78.1 | AS36: 83.8 | AT36: 85.5
B37: 2007-06-01 | C37: 90.6 | D37: 88.2 | E37: 88.9 | F37: 95.5 | G37: 90.2 | H37: 92.2 | I37: 85.6 | J37: 82.9 | K37: 89.7 | L37: 87.1 | M37: 85.4 | N37: 86.5 | O37: 87.6 | P37: 88.5 | Q37: 89.7 | R37: 87.3 | S37: 84.2 | T37: 87.4 | U37: 95.4 | V37: 90.2 | W37: 89.8 | X37: 108 | Y37: 93.5 | Z37: 95.2 | AA37: 83.4 | AB37: 82.3 | AC37: 91.3 | AD37: 93.8 | AE37: 90.2 | AF37: 92.3 | AG37: 101.9 | AH37: 92.2 | AI37: 97.1 | AJ37: 82 | AK37: 82.2 | AL37: 90.9 | AM37: 84.6 | AN37: 82.1 | AO37: 83.3 | AP37: 79.5 | AQ37: 83.2 | AR37: 78.6 | AS37: 85 | AT37: 86 | AU37: =AVERAGE(AN34:AN37)/AVERAGE(AN30:AN33)-1 -> 0.05008077544 | AV37: =AVERAGE(AO34:AO37)/AVERAGE(AO30:AO33)-1 -> 0.04600253807
B38: 2007-09-01 | C38: 91.9 | D38: 89 | E38: 90.5 | F38: 96.8 | G38: 91.4 | H38: 93.8 | I38: 86.6 | J38: 84.8 | K38: 90.5 | L38: 88.2 | M38: 86.5 | N38: 87.3 | O38: 88.6 | P38: 89.7 | Q38: 90.5 | R38: 88.8 | S38: 86.5 | T38: 88.9 | U38: 96.6 | V38: 90.6 | W38: 92.5 | X38: 109.7 | Y38: 94.5 | Z38: 98.2 | AA38: 83.9 | AB38: 84 | AC38: 91.5 | AD38: 95.2 | AE38: 90.8 | AF38: 94.6 | AG38: 103.4 | AH38: 93.6 | AI38: 100 | AJ38: 82.5 | AK38: 83.7 | AL38: 91.1 | AM38: 85.7 | AN38: 83.5 | AO38: 84.5 | AP38: 80.6 | AQ38: 85 | AR38: 79.5 | AS38: 86.7 | AT38: 87
B39: 2007-12-01 | C39: 93.2 | D39: 89.8 | E39: 92.1 | F39: 98.6 | G39: 92 | H39: 95.1 | I39: 87.3 | J39: 86.3 | K39: 91.4 | L39: 89.5 | M39: 86.9 | N39: 89.1 | O39: 91.5 | P39: 90.2 | Q39: 90.9 | R39: 89.7 | S39: 87.5 | T39: 89.9 | U39: 97.7 | V39: 91.6 | W39: 93.7 | X39: 110.1 | Y39: 95.1 | Z39: 101 | AA39: 84 | AB39: 85.9 | AC39: 92.3 | AD39: 96.4 | AE39: 91.9 | AF39: 96 | AG39: 104 | AH39: 94.3 | AI39: 103.1 | AJ39: 82.8 | AK39: 85.5 | AL39: 91.9 | AM39: 86.6 | AN39: 84.9 | AO39: 85.6 | AP39: 81.7 | AQ39: 87.3 | AR39: 80.8 | AS39: 88.6 | AT39: 87.6
B40: 2008-03-01 | C40: 94.9 | D40: 91.5 | E40: 94.4 | F40: 99.9 | G40: 94 | H40: 96.4 | I40: 88.6 | J40: 87.6 | K40: 92 | L40: 91.1 | M40: 88.8 | N40: 91.1 | O40: 93.1 | P40: 92.5 | Q40: 91.2 | R40: 89.9 | S40: 88.3 | T40: 90.1 | U40: 99.5 | V40: 93.1 | W40: 96.5 | X40: 111 | Y40: 96.7 | Z40: 104.5 | AA40: 86.9 | AB40: 87.3 | AC40: 92.8 | AD40: 98.4 | AE40: 93.7 | AF40: 98.7 | AG40: 105.2 | AH40: 95.8 | AI40: 105.7 | AJ40: 86.2 | AK40: 87.1 | AL40: 92.7 | AM40: 87.7 | AN40: 86.3 | AO40: 86.4 | AP40: 82.9 | AQ40: 89.5 | AR40: 82.3 | AS40: 90.5 | AT40: 88.6
B41: 2008-06-01 | C41: 96.4 | D41: 94 | E41: 94.8 | F41: 101.5 | G41: 95.3 | H41: 98.1 | I41: 90 | J41: 89.2 | K41: 93.4 | L41: 92.1 | M41: 90 | N41: 91.5 | O41: 94.5 | P41: 93.9 | Q41: 92 | R41: 91.1 | S41: 89.1 | T41: 91.3 | U41: 101.4 | V41: 96 | W41: 97.1 | X41: 112.7 | Y41: 97.9 | Z41: 107.2 | AA41: 88.1 | AB41: 89.5 | AC41: 93.9 | AD41: 100.4 | AE41: 97 | AF41: 99.1 | AG41: 107.1 | AH41: 97.1 | AI41: 109.1 | AJ41: 88 | AK41: 89.2 | AL41: 94.3 | AM41: 89.2 | AN41: 88 | AO41: 88 | AP41: 84.2 | AQ41: 91.8 | AR41: 84.2 | AS41: 92 | AT41: 89.9 | AU41: =AVERAGE(AN38:AN41)/AVERAGE(AN34:AN37)-1 -> 0.05446153846 | AV41: =AVERAGE(AO38:AO41)/AVERAGE(AO34:AO37)-1 -> 0.0448892933
B42: 2008-09-01 | C42: 98 | D42: 95.3 | E42: 96 | F42: 103.8 | G42: 97.8 | H42: 99.8 | I42: 91.4 | J42: 91.1 | K42: 95.7 | L42: 93.4 | M42: 90.9 | N42: 92 | O42: 96.6 | P42: 95.8 | Q42: 93.4 | R42: 92 | S42: 90.6 | T42: 94.8 | U42: 103.1 | V42: 97.5 | W42: 98.9 | X42: 114.3 | Y42: 100.7 | Z42: 109 | AA42: 89.6 | AB42: 91.8 | AC42: 95.7 | AD42: 102.6 | AE42: 98.9 | AF42: 101.1 | AG42: 110 | AH42: 100.5 | AI42: 111.3 | AJ42: 90.3 | AK42: 91.3 | AL42: 96.1 | AM42: 92.1 | AN42: 90.8 | AO42: 89.4 | AP42: 86.5 | AQ42: 97.2 | AR42: 87.4 | AS42: 94.8 | AT42: 92.9
B43: 2008-12-01 | C43: 97.6 | D43: 95.8 | E43: 93 | F43: 104.2 | G43: 98.7 | H43: 100.6 | I43: 91.8 | J43: 92.9 | K43: 96.2 | L43: 93.6 | M43: 91.5 | N43: 90.7 | O43: 97.8 | P43: 97 | Q43: 94.4 | R43: 92 | S43: 92.3 | T43: 94.7 | U43: 102.6 | V43: 98.4 | W43: 94.6 | X43: 114.2 | Y43: 101 | Z43: 110.6 | AA43: 90.4 | AB43: 93.5 | AC43: 96.7 | AD43: 101.3 | AE43: 99.1 | AF43: 96.1 | AG43: 109.4 | AH43: 100.9 | AI43: 111.6 | AJ43: 91.5 | AK43: 93.1 | AL43: 96.9 | AM43: 93.9 | AN43: 91.9 | AO43: 89.7 | AP43: 88.6 | AQ43: 98.6 | AR43: 89.9 | AS43: 94.8 | AT43: 95.1
B44: 2009-03-01 | C44: 96.2 | D44: 95.3 | E44: 91.2 | F44: 101.2 | G44: 98.5 | H44: 99.3 | I44: 92.1 | J44: 94.4 | K44: 96.4 | L44: 93.1 | M44: 91.5 | N44: 89.7 | O44: 97.1 | P44: 97.2 | Q44: 94 | R44: 92 | S44: 93.6 | T44: 94.7 | U44: 100.1 | V44: 98 | W44: 92.2 | X44: 107.6 | Y44: 100.7 | Z44: 107.7 | AA44: 91.3 | AB44: 95 | AC44: 97.1 | AD44: 98.8 | AE44: 97.9 | AF44: 93.2 | AG44: 104.6 | AH44: 100.1 | AI44: 108.3 | AJ44: 92.5 | AK44: 94.7 | AL44: 97.1 | AM44: 94.2 | AN44: 91.1 | AO44: 89.7 | AP44: 88.5 | AQ44: 95.3 | AR44: 89.9 | AS44: 93.8 | AT44: 96
B45: 2009-06-01 | C45: 95.9 | D45: 95.7 | E45: 90.4 | F45: 100.5 | G45: 98.3 | H45: 98.9 | I45: 92.5 | J45: 95.5 | K45: 96.6 | L45: 94.4 | M45: 93.4 | N45: 91.6 | O45: 97.9 | P45: 97.7 | Q45: 94.1 | R45: 92.5 | S45: 94.6 | T45: 95.8 | U45: 98.3 | V45: 97.5 | W45: 87.9 | X45: 105.3 | Y45: 100.2 | Z45: 106.8 | AA45: 91.3 | AB45: 96.5 | AC45: 96.9 | AD45: 96.9 | AE45: 97.1 | AF45: 89.3 | AG45: 102.1 | AH45: 98.9 | AI45: 107 | AJ45: 92.5 | AK45: 95.8 | AL45: 96.9 | AM45: 94 | AN45: 90.8 | AO45: 89.5 | AP45: 87.8 | AQ45: 95.2 | AR45: 90.5 | AS45: 94.1 | AT45: 95.9 | AU45: =AVERAGE(AN42:AN45)/AVERAGE(AN38:AN41)-1 -> 0.06390428947 | AV45: =AVERAGE(AO42:AO45)/AVERAGE(AO38:AO41)-1 -> 0.04005805515
B46: 2009-09-01 | C46: 96 | D46: 95.1 | E46: 92.7 | F46: 98.9 | G46: 98.6 | H46: 98.5 | I46: 96 | J46: 95.9 | K46: 96.5 | L46: 95.6 | M46: 94.1 | N46: 94.6 | O46: 98 | P46: 98.4 | Q46: 94.4 | R46: 95.9 | S46: 94.9 | T46: 96.8 | U46: 97 | V46: 96.1 | W46: 89.4 | X46: 101.7 | Y46: 99.8 | Z46: 105.3 | AA46: 94.9 | AB46: 96.8 | AC46: 96.4 | AD46: 96 | AE46: 95.6 | AF46: 90.9 | AG46: 98.6 | AH46: 98.5 | AI46: 105.6 | AJ46: 96.2 | AK46: 96.3 | AL46: 96.4 | AM46: 94 | AN46: 91.6 | AO46: 91 | AP46: 88.4 | AQ46: 95.5 | AR46: 91.4 | AS46: 93.4 | AT46: 95.4
B47: 2009-12-01 | C47: 96.3 | D47: 95.6 | E47: 93.2 | F47: 99 | G47: 98.7 | H47: 98.4 | I47: 96.1 | J47: 96.3 | K47: 96.6 | L47: 96.1 | M47: 94.9 | N47: 95.5 | O47: 98 | P47: 98.7 | Q47: 94.7 | R47: 96.1 | S47: 95.1 | T47: 96.8 | U47: 97.1 | V47: 96.3 | W47: 89.3 | X47: 101.8 | Y47: 99.7 | Z47: 105 | AA47: 94.9 | AB47: 97.4 | AC47: 96.5 | AD47: 96.1 | AE47: 95.9 | AF47: 90.9 | AG47: 98.8 | AH47: 98.4 | AI47: 104.8 | AJ47: 96.2 | AK47: 96.8 | AL47: 96.5 | AM47: 93.8 | AN47: 92.2 | AO47: 91.6 | AP47: 89.9 | AQ47: 95.7 | AR47: 91.8 | AS47: 93.6 | AT47: 94.7
B48: 2010-03-01 | C48: 96.9 | D48: 96.5 | E48: 93.7 | F48: 99.3 | G48: 99.5 | H48: 99 | I48: 97.4 | J48: 97.1 | K48: 97 | L48: 96.9 | M48: 95.8 | N48: 96 | O48: 98.8 | P48: 99.6 | Q48: 95.9 | R48: 96.7 | S48: 95.8 | T48: 97.1 | U48: 97.5 | V48: 97.5 | W48: 89.5 | X48: 101.6 | Y48: 100.4 | Z48: 104.5 | AA48: 97.7 | AB48: 98.3 | AC48: 97 | AD48: 96.5 | AE48: 96.6 | AF48: 91.7 | AG48: 98.7 | AH48: 99.1 | AI48: 104.2 | AJ48: 98.7 | AK48: 97.5 | AL48: 97 | AM48: 94.3 | AN48: 92.6 | AO48: 92.2 | AP48: 89.5 | AQ48: 96.4 | AR48: 92.8 | AS48: 94 | AT48: 95.4
B49: 2010-06-01 | C49: 97.2 | D49: 96.6 | E49: 94.8 | F49: 99 | G49: 100.2 | H49: 99 | I49: 97.8 | J49: 98 | K49: 98 | L49: 97.5 | M49: 96.2 | N49: 97 | O49: 99 | P49: 100 | Q49: 97.2 | R49: 97 | S49: 96.1 | T49: 98.5 | U49: 97.3 | V49: 97.2 | W49: 90.4 | X49: 101.1 | Y49: 101.3 | Z49: 101.7 | AA49: 98.7 | AB49: 99.6 | AC49: 97.8 | AD49: 96.7 | AE49: 96.6 | AF49: 92.9 | AG49: 97.8 | AH49: 100.1 | AI49: 102.2 | AJ49: 99.2 | AK49: 98.7 | AL49: 97.8 | AM49: 94.6 | AN49: 93.2 | AO49: 92.8 | AP49: 90.2 | AQ49: 96.6 | AR49: 94.6 | AS49: 94 | AT49: 95.5 | AU49: =AVERAGE(AN46:AN49)/AVERAGE(AN42:AN45)-1 -> 0.0137136588 | AV49: =AVERAGE(AO46:AO49)/AVERAGE(AO42:AO45)-1 -> 0.02595590287
B50: 2010-09-01 | C50: 98.1 | D50: 96.9 | E50: 97.1 | F50: 99.3 | G50: 100.7 | H50: 99.2 | I50: 99.9 | J50: 98.9 | K50: 98.8 | L50: 98 | M50: 96.4 | N50: 97.5 | O50: 99.6 | P50: 100.5 | Q50: 97.5 | R50: 99.5 | S50: 97.5 | T50: 99.5 | U50: 98.7 | V50: 97.7 | W50: 95.7 | X50: 101.1 | Y50: 101.9 | Z50: 101.6 | AA50: 100.1 | AB50: 100.2 | AC50: 98.7 | AD50: 98 | AE50: 96.9 | AF50: 97 | AG50: 97.8 | AH50: 100.9 | AI50: 102.1 | AJ50: 100.5 | AK50: 99.5 | AL50: 98.6 | AM50: 95.9 | AN50: 93.6 | AO50: 93 | AP50: 90.5 | AQ50: 97.4 | AR50: 94.8 | AS50: 95 | AT50: 97.3
B51: 2010-12-01 | C51: 98.8 | D51: 98 | E51: 98.2 | F51: 99.6 | G51: 101.1 | H51: 99.3 | I51: 100 | J51: 99.9 | K51: 99.1 | L51: 98.8 | M51: 97.5 | N51: 98.2 | O51: 100.5 | P51: 100.6 | Q51: 97.8 | R51: 99.5 | S51: 98.7 | T51: 99.5 | U51: 99.2 | V51: 98.8 | W51: 97 | X51: 100.4 | Y51: 102.3 | Z51: 101.6 | AA51: 100.4 | AB51: 100.9 | AC51: 99.1 | AD51: 98.8 | AE51: 98.1 | AF51: 98.6 | AG51: 97.5 | AH51: 101.6 | AI51: 102.1 | AJ51: 100.9 | AK51: 100.3 | AL51: 99 | AM51: 96.4 | AN51: 94.4 | AO51: 93.5 | AP51: 93.3 | AQ51: 97.3 | AR51: 95 | AS51: 94 | AT51: 97.6
B52: 2011-03-01 | C52: 99.1 | D52: 98.4 | E52: 98.3 | F52: 100.2 | G52: 101 | H52: 99 | I52: 100.1 | J52: 100.2 | K52: 99.7 | L52: 99.6 | M52: 98.5 | N52: 99.5 | O52: 101 | P52: 101.4 | Q52: 98 | R52: 99.6 | S52: 99.1 | T52: 100.2 | U52: 98.9 | V52: 98.8 | W52: 95.5 | X52: 100.9 | Y52: 100.3 | Z52: 100.1 | AA52: 100.5 | AB52: 101.1 | AC52: 99.6 | AD52: 98.5 | AE52: 98.1 | AF52: 97.6 | AG52: 98.3 | AH52: 100.5 | AI52: 100.7 | AJ52: 101 | AK52: 100.6 | AL52: 99.5 | AM52: 96.5 | AN52: 94.6 | AO52: 93.4 | AP52: 93.6 | AQ52: 97.8 | AR52: 95.2 | AS52: 94.5 | AT52: 97.7
B53: 2011-06-01 | C53: 100.2 | D53: 99.6 | E53: 100.6 | F53: 101 | G53: 100.6 | H53: 99.2 | I53: 100.2 | J53: 100.3 | K53: 100.3 | L53: 100.1 | M53: 99.6 | N53: 99.9 | O53: 101.7 | P53: 101.2 | Q53: 98.5 | R53: 99.7 | S53: 99.5 | T53: 100.3 | U53: 100.5 | V53: 99.6 | W53: 100.8 | X53: 101.7 | Y53: 99.8 | Z53: 100 | AA53: 100.5 | AB53: 101.1 | AC53: 100.5 | AD53: 100.2 | AE53: 99.5 | AF53: 101.6 | AG53: 99.2 | AH53: 99.8 | AI53: 100.6 | AJ53: 101 | AK53: 100.6 | AL53: 100.2 | AM53: 98.6 | AN53: 98.2 | AO53: 97.3 | AP53: 98.3 | AQ53: 100.3 | AR53: 97.6 | AS53: 97.6 | AT53: 98.8 | AU53: =AVERAGE(AN50:AN53)/AVERAGE(AN46:AN49)-1 -> 0.0303030303 | AV53: =AVERAGE(AO50:AO53)/AVERAGE(AO46:AO49)-1 -> 0.02611534276
B54: 2011-09-01 | C54: 100 | D54: 99.7 | E54: 100.6 | F54: 99.7 | G54: 99.7 | H54: 99.5 | I54: 100.1 | J54: 99.6 | K54: 100.7 | L54: 99.9 | M54: 99.4 | N54: 100.3 | O54: 100.1 | P54: 100.1 | Q54: 99.1 | R54: 99.9 | S54: 99.4 | T54: 100.3 | U54: 100 | V54: 100 | W54: 100.6 | X54: 99.6 | Y54: 99.1 | Z54: 100 | AA54: 100.4 | AB54: 99.8 | AC54: 101 | AD54: 100.1 | AE54: 99.9 | AF54: 101 | AG54: 99.2 | AH54: 99.3 | AI54: 100.2 | AJ54: 100.4 | AK54: 99.8 | AL54: 100.8 | AM54: 98.7 | AN54: 98.1 | AO54: 98.5 | AP54: 98.4 | AQ54: 98 | AR54: 97.5 | AS54: 97.8 | AT54: 99.1
B55: 2011-12-01 | C55: 100.1 | D55: 100 | E55: 100.4 | F55: 100.2 | G55: 100 | H55: 99.7 | I55: 100.2 | J55: 99.7 | K55: 100 | L55: 100 | M55: 100 | N55: 100 | O55: 100.1 | P55: 100.2 | Q55: 99.6 | R55: 99.9 | S55: 99.5 | T55: 100.3 | U55: 100.2 | V55: 100 | W55: 100.6 | X55: 100.4 | Y55: 99.4 | Z55: 100 | AA55: 100.6 | AB55: 99.8 | AC55: 99.9 | AD55: 100.3 | AE55: 99.9 | AF55: 101 | AG55: 100.2 | AH55: 99.7 | AI55: 100 | AJ55: 100.6 | AK55: 99.8 | AL55: 99.8 | AM55: 99.6 | AN55: 99.3 | AO55: 99.2 | AP55: 99 | AQ55: 99.1 | AR55: 100.4 | AS55: 99.7 | AT55: 99.8
B56: 2012-03-01 | C56: 99.9 | D56: 100 | E56: 99.5 | F56: 100 | G56: 99.9 | H56: 100 | I56: 99.9 | J56: 100.2 | K56: 99.8 | L56: 100 | M56: 100.2 | N56: 99.8 | O56: 99.9 | P56: 99.8 | Q56: 100.1 | R56: 100.1 | S56: 100.5 | T56: 99.7 | U56: 99.8 | V56: 99.9 | W56: 99.4 | X56: 100.1 | Y56: 100.1 | Z56: 100 | AA56: 99.6 | AB56: 100 | AC56: 99.7 | AD56: 99.7 | AE56: 99.9 | AF56: 99 | AG56: 100.2 | AH56: 100 | AI56: 100 | AJ56: 99.6 | AK56: 99.9 | AL56: 99.9 | AM56: 100.4 | AN56: 100.6 | AO56: 100.7 | AP56: 100.8 | AQ56: 100.4 | AR56: 101 | AS56: 100.5 | AT56: 100.3
B57: 2012-06-01 | C57: 100.1 | D57: 100.3 | E57: 99.5 | F57: 100 | G57: 100.4 | H57: 100.8 | I57: 99.9 | J57: 100.5 | K57: 99.5 | L57: 100.2 | M57: 100.4 | N57: 99.9 | O57: 99.9 | P57: 99.8 | Q57: 101.3 | R57: 100.1 | S57: 100.6 | T57: 99.7 | U57: 100 | V57: 100.2 | W57: 99.4 | X57: 99.9 | Y57: 101.4 | Z57: 100 | AA57: 99.4 | AB57: 100.3 | AC57: 99.3 | AD57: 99.9 | AE57: 100.3 | AF57: 99 | AG57: 100.4 | AH57: 101.1 | AI57: 99.9 | AJ57: 99.4 | AK57: 100.5 | AL57: 99.5 | AM57: 101.3 | AN57: 102 | AO57: 101.7 | AP57: 101.9 | AQ57: 102.5 | AR57: 101.1 | AS57: 101.9 | AT57: 100.8 | AU57: =AVERAGE(AN54:AN57)/AVERAGE(AN50:AN53)-1 -> 0.05042016807 | AV57: =AVERAGE(AO54:AO57)/AVERAGE(AO50:AO53)-1 -> 0.06071049841
B58: 2012-09-01 | C58: 100.3 | D58: 101.2 | E58: 98.8 | F58: 101.4 | G58: 100.6 | H58: 100.6 | I58: 97.4 | J58: 99.9 | K58: 99.7 | L58: 100.8 | M58: 103 | N58: 98.2 | O58: 103.5 | P58: 100.2 | Q58: 100.9 | R58: 95.5 | S58: 102.5 | T58: 99.7 | U58: 99.9 | V58: 100.3 | W58: 99.4 | X58: 99.8 | Y58: 101.5 | Z58: 100 | AA58: 98.6 | AB58: 99 | AC58: 99.6 | AD58: 99.9 | AE58: 100.3 | AF58: 99 | AG58: 100.4 | AH58: 101.2 | AI58: 99.9 | AJ58: 98.6 | AK58: 98.8 | AL58: 99.7 | AM58: 102 | AN58: 102.8 | AO58: 102.5 | AP58: 103 | AQ58: 103.3 | AR58: 102.5 | AS58: 102.6 | AT58: 101.5
B59: 2012-12-01 | C59: 100.2 | D59: 101.5 | E59: 98.5 | F59: 100.9 | G59: 101 | H59: 100.7 | I59: 97.3 | J59: 100.4 | K59: 99.6 | L59: 100.9 | M59: 104.4 | N59: 96.3 | O59: 105.1 | P59: 100.9 | Q59: 101.5 | R59: 95.5 | S59: 103 | T59: 99.9 | U59: 100 | V59: 100 | W59: 101 | X59: 98 | Y59: 101.7 | Z59: 99.5 | AA59: 98.5 | AB59: 99.4 | AC59: 99.5 | AD59: 99.6 | AE59: 100 | AF59: 99.9 | AG59: 98.5 | AH59: 101.4 | AI59: 99.6 | AJ59: 98.5 | AK59: 99.2 | AL59: 99.5 | AM59: 102.4 | AN59: 103.2 | AO59: 103.4 | AP59: 103.3 | AQ59: 103.5 | AR59: 102.9 | AS59: 102.6 | AT59: 101.9
B60: 2013-03-01 | C60: 101 | D60: 101.9 | E60: 100.8 | F60: 100.8 | G60: 101.2 | H60: 101.2 | I60: 97 | J60: 101 | K60: 99.7 | L60: 102.8 | M60: 105.5 | N60: 101.2 | O60: 104.4 | P60: 100.8 | Q60: 102.9 | R60: 95.6 | S60: 104.2 | T60: 100 | U60: 100.1 | V60: 100 | W60: 101 | X60: 98.1 | Y60: 101.8 | Z60: 99.5 | AA60: 98.4 | AB60: 99.6 | AC60: 99.5 | AD60: 99.6 | AE60: 100 | AF60: 99.9 | AG60: 98.8 | AH60: 101.7 | AI60: 99.3 | AJ60: 97.6 | AK60: 99.7 | AL60: 99.5 | AM60: 102.7 | AN60: 103.8 | AO60: 103.9 | AP60: 104.3 | AQ60: 104.1 | AR60: 103.4 | AS60: 103.2 | AT60: 102.1
B61: 2013-06-01 | C61: 101.6 | D61: 102.3 | E61: 101.2 | F61: 101.7 | G61: 101.4 | H61: 102.1 | I61: 97.2 | J61: 102.2 | K61: 100 | L61: 103.9 | M61: 106.2 | N61: 102 | O61: 106.4 | P61: 101.1 | Q61: 104.5 | R61: 96.2 | S61: 105.7 | T61: 99.8 | U61: 100.2 | V61: 100.2 | W61: 100.9 | X61: 98.2 | Y61: 102 | Z61: 99.5 | AA61: 98.4 | AB61: 100.5 | AC61: 100 | AD61: 100 | AE61: 100.3 | AF61: 100.3 | AG61: 99.1 | AH61: 101.9 | AI61: 99.6 | AJ61: 97.6 | AK61: 100.8 | AL61: 100.1 | AM61: 103.5 | AN61: 104.4 | AO61: 104.5 | AP61: 104.7 | AQ61: 104.5 | AR61: 104.6 | AS61: 103.8 | AT61: 103 | AU61: =AVERAGE(AN58:AN61)/AVERAGE(AN54:AN57)-1 -> 0.0355 | AV61: =AVERAGE(AO58:AO61)/AVERAGE(AO54:AO57)-1 -> 0.03549112722
B62: 2013-09-01 | C62: 101.9 | D62: 103 | E62: 101 | F62: 101.9 | G62: 101.6 | H62: 102.7 | I62: 97.1 | J62: 104.1 | K62: 100.4 | L62: 104.3 | M62: 108.1 | N62: 101.4 | O62: 106.1 | P62: 101.3 | Q62: 106 | R62: 96.4 | S62: 106.3 | T62: 99.5 | U62: 100.3 | V62: 100.3 | W62: 100.9 | X62: 98.7 | Y62: 102.1 | Z62: 99.5 | AA62: 98.1 | AB62: 102.4 | AC62: 100.4 | AD62: 100.1 | AE62: 100.3 | AF62: 100.3 | AG62: 99.6 | AH62: 102.1 | AI62: 99.6 | AJ62: 97.2 | AK62: 103.5 | AL62: 100.7 | AM62: 104.4 | AN62: 105 | AO62: 105.1 | AP62: 105.8 | AQ62: 105.5 | AR62: 106.1 | AS62: 102.5 | AT62: 104.1
B63: 2013-12-01 | C63: 102.2 | D63: 103.8 | E63: 100.8 | F63: 102.4 | G63: 101.4 | H63: 103.5 | I63: 97 | J63: 104.6 | K63: 100.9 | L63: 105.2 | M63: 109.1 | N63: 102.2 | O63: 107.2 | P63: 100.7 | Q63: 107.6 | R63: 96.4 | S63: 106.7 | T63: 100.3 | U63: 100.3 | V63: 101 | W63: 100.1 | X63: 98.8 | Y63: 102.2 | Z63: 99.5 | AA63: 98 | AB63: 102.7 | AC63: 100.9 | AD63: 100.1 | AE63: 101 | AF63: 99.3 | AG63: 99.7 | AH63: 102.3 | AI63: 99.6 | AJ63: 97 | AK63: 104.1 | AL63: 101.1 | AM63: 105.1 | AN63: 106.1 | AO63: 106.7 | AP63: 106.6 | AQ63: 106.1 | AR63: 107 | AS63: 104.4 | AT63: 104.6
B64: 2014-03-01 | C64: 102.5 | D64: 104.4 | E64: 100.3 | F64: 103 | G64: 101.7 | H64: 104.1 | I64: 97.2 | J64: 104.7 | K64: 101.2 | L64: 105.3 | M64: 109.7 | N64: 101 | O64: 108.1 | P64: 100.8 | Q64: 108.9 | R64: 96.8 | S64: 106.8 | T64: 99.9 | U64: 100.7 | V64: 101.7 | W64: 100.1 | X64: 99.5 | Y64: 102.4 | Z64: 99.5 | AA64: 98.3 | AB64: 102.7 | AC64: 101.4 | AD64: 100.4 | AE64: 101.5 | AF64: 99.3 | AG64: 100 | AH64: 102.7 | AI64: 99.6 | AJ64: 97 | AK64: 104.1 | AL64: 101.7 | AM64: 105.9 | AN64: 106.3 | AO64: 107.1 | AP64: 106.8 | AQ64: 106.7 | AR64: 107.6 | AS64: 104.1 | AT64: 105.6
B65: 2014-06-01 | C65: 103.7 | D65: 105.5 | E65: 102.7 | F65: 103.8 | G65: 101.8 | H65: 104.3 | I65: 97.7 | J65: 104.9 | K65: 101.9 | L65: 107 | M65: 111.6 | N65: 104.2 | O65: 109.1 | P65: 100.8 | Q65: 109.6 | R65: 97.2 | S65: 106.9 | T65: 100.1 | U65: 101.6 | V65: 102.4 | W65: 101.7 | X65: 100.6 | Y65: 102.5 | Z65: 99.3 | AA65: 99.2 | AB65: 102.9 | AC65: 102.2 | AD65: 101.2 | AE65: 102.2 | AF65: 101.3 | AG65: 100.6 | AH65: 102.8 | AI65: 99.6 | AJ65: 97.5 | AK65: 104.5 | AL65: 102.6 | AM65: 106.2 | AN65: 106.8 | AO65: 108 | AP65: 107.1 | AQ65: 107 | AR65: 107.9 | AS65: 104.5 | AT65: 105.8 | AU65: =AVERAGE(AN62:AN65)/AVERAGE(AN58:AN61)-1 -> 0.02414292612 | AV65: =AVERAGE(AO62:AO65)/AVERAGE(AO58:AO61)-1 -> 0.03041274439
B66: 2014-09-01 | C66: 104.7 | D66: 107 | E66: 103.4 | F66: 105.7 | G66: 101.8 | H66: 104.6 | I66: 98 | J66: 105.7 | K66: 102.2 | L66: 108.2 | M66: 114 | N66: 105.5 | O66: 109.5 | P66: 100.9 | Q66: 110 | R66: 97.8 | S66: 107 | T66: 101.1 | U66: 102.4 | V66: 103.4 | W66: 101.8 | X66: 102.8 | Y66: 102.5 | Z66: 99.3 | AA66: 99.2 | AB66: 103.7 | AC66: 102.4 | AD66: 102.2 | AE66: 103.4 | AF66: 101.4 | AG66: 103.6 | AH66: 102.9 | AI66: 99.7 | AJ66: 97.5 | AK66: 105.6 | AL66: 102.7 | AM66: 106.7 | AN66: 107.3 | AO66: 108.5 | AP66: 107.3 | AQ66: 107.4 | AR66: 109.8 | AS66: 104.8 | AT66: 106.4
B67: 2014-12-01 | C67: 105.3 | D67: 107.6 | E67: 103.8 | F67: 106.9 | G67: 101.9 | H67: 105.1 | I67: 98.3 | J67: 105.8 | K67: 102.8 | L67: 109.4 | M67: 115.6 | N67: 106.4 | O67: 111.7 | P67: 101.2 | Q67: 111.1 | R67: 98.3 | S67: 107 | T67: 102.3 | U67: 102.5 | V67: 103.4 | W67: 101.8 | X67: 103.6 | Y67: 102.5 | Z67: 99.3 | AA67: 99.8 | AB67: 103.9 | AC67: 102.7 | AD67: 102.4 | AE67: 103.4 | AF67: 101.4 | AG67: 104.1 | AH67: 102.9 | AI67: 99.7 | AJ67: 97.7 | AK67: 105.8 | AL67: 102.9 | AM67: 106.8 | AN67: 106.4 | AO67: 108.7 | AP67: 107.2 | AQ67: 104.9 | AR67: 109.9 | AS67: 104 | AT67: 106.9
B68: 2015-03-01 | C68: 106.1 | D68: 108.8 | E68: 103.9 | F68: 108.8 | G68: 102.7 | H68: 105.5 | I68: 98.5 | J68: 106 | K68: 102.8 | L68: 110.4 | M68: 118.2 | N68: 106.4 | O68: 112.4 | P68: 102.9 | Q68: 112.1 | R68: 98.3 | S68: 107.4 | T68: 101.6 | U68: 103.2 | V68: 103.9 | W68: 101.9 | X68: 106.4 | Y68: 102.7 | Z68: 99.3 | AA68: 100.6 | AB68: 103.9 | AC68: 103 | AD68: 103.1 | AE68: 103.8 | AF68: 101.6 | AG68: 106.8 | AH68: 103 | AI68: 99.6 | AJ68: 98 | AK68: 105.8 | AL68: 103.3 | AM68: 107.1 | AN68: 106.6 | AO68: 108.7 | AP68: 107.1 | AQ68: 105.3 | AR68: 109.8 | AS68: 104.3 | AT68: 107.2
B69: 2015-06-01 | C69: 106.9 | D69: 110.3 | E69: 104.8 | F69: 109.2 | G69: 102.9 | H69: 105.6 | I69: 99.3 | J69: 106.7 | K69: 102.9 | L69: 112 | M69: 121.1 | N69: 108.5 | O69: 113.4 | P69: 103.3 | Q69: 112.8 | R69: 99.4 | S69: 107.8 | T69: 100.2 | U69: 103.5 | V69: 104.8 | W69: 101.9 | X69: 106.4 | Y69: 102.6 | Z69: 98.9 | AA69: 101.2 | AB69: 104.5 | AC69: 103.7 | AD69: 103.3 | AE69: 104.7 | AF69: 101.6 | AG69: 106.8 | AH69: 102.9 | AI69: 99.3 | AJ69: 98.4 | AK69: 106.8 | AL69: 103.8 | AM69: 107.4 | AN69: 106.9 | AO69: 108.7 | AP69: 107.4 | AQ69: 106.3 | AR69: 108.9 | AS69: 104.2 | AT69: 107.6 | AU69: =AVERAGE(AN66:AN69)/AVERAGE(AN62:AN65)-1 -> 0.007072135785 | AV69: =AVERAGE(AO66:AO69)/AVERAGE(AO62:AO65)-1 -> 0.01803701101
B70: 2015-09-01 | C70: 107.4 | D70: 112.1 | E70: 104.8 | F70: 109.6 | G70: 102.9 | H70: 105.4 | I70: 101 | J70: 105.9 | K70: 103 | L70: 112.8 | M70: 122.7 | N70: 109.5 | O70: 114.3 | P70: 103.4 | Q70: 112.4 | R70: 103 | S70: 107.7 | T70: 100.4 | U70: 103.5 | V70: 106.9 | W70: 100.2 | X70: 106.5 | Y70: 102.7 | Z70: 98.9 | AA70: 101.4 | AB70: 103.5 | AC70: 103.8 | AD70: 103.6 | AE70: 106.5 | AF70: 101 | AG70: 106.9 | AH70: 102.9 | AI70: 99.2 | AJ70: 98.6 | AK70: 105.7 | AL70: 103.9 | AM70: 107.5 | AN70: 107.2 | AO70: 109.7 | AP70: 107.6 | AQ70: 106.4 | AR70: 110 | AS70: 103.7 | AT70: 107.6
B71: 2015-12-01 | C71: 107.8 | D71: 112.1 | E71: 105.2 | F71: 110.7 | G71: 103 | H71: 105.5 | I71: 102.6 | J71: 106.4 | K71: 103.7 | L71: 112.9 | M71: 122.4 | N71: 109.9 | O71: 114.2 | P71: 103.5 | Q71: 112.3 | R71: 103.7 | S71: 108 | T71: 100.7 | U71: 104.3 | V71: 107 | W71: 100.7 | X71: 109.2 | Y71: 102.8 | Z71: 99.1 | AA71: 104.6 | AB71: 104 | AC71: 104.7 | AD71: 104.2 | AE71: 106.6 | AF71: 101.6 | AG71: 108.4 | AH71: 103 | AI71: 99.5 | AJ71: 100.8 | AK71: 106.3 | AL71: 104.6 | AM71: 107.8 | AN71: 107.9 | AO71: 109.8 | AP71: 109.7 | AQ71: 107.3 | AR71: 111 | AS71: 103.6 | AT71: 107.6
B72: 2016-03-01 | C72: 108 | D72: 112.4 | E72: 105.4 | F72: 111.7 | G72: 103.2 | H72: 104.4 | I72: 102.9 | J72: 106.8 | K72: 104 | L72: 112.9 | M72: 122.7 | N72: 110.4 | O72: 114.6 | P72: 103.8 | Q72: 110.1 | R72: 104.3 | S72: 108.1 | T72: 102.2 | U72: 104.7 | V72: 107.3 | W72: 100.5 | X72: 111 | Y72: 104 | Z72: 99.1 | AA72: 104.6 | AB72: 103.5 | AC72: 104.7 | AD72: 104.6 | AE72: 106.9 | AF72: 101.5 | AG72: 109.6 | AH72: 103.3 | AI72: 99.3 | AJ72: 100.8 | AK72: 105.7 | AL72: 104.6 | AM72: 107.6 | AN72: 107.4 | AO72: 109.4 | AP72: 107.5 | AQ72: 107.2 | AR72: 110.6 | AS72: 103 | AT72: 107.6
B73: 2016-06-01 | C73: 108.5 | D73: 113.4 | E73: 105.5 | F73: 112.9 | G73: 103.8 | H73: 104.4 | I73: 103.9 | J73: 104.7 | K73: 105.2 | L73: 113.8 | M73: 124.5 | N73: 111.4 | O73: 115.7 | P73: 104.1 | Q73: 110 | R73: 105.5 | S73: 108.2 | T73: 102.6 | U73: 105.1 | V73: 108.1 | W73: 99.9 | X73: 112.8 | Y73: 104.7 | Z73: 99.3 | AA73: 105.5 | AB73: 101.2 | AC73: 106.2 | AD73: 104.9 | AE73: 107.7 | AF73: 101.3 | AG73: 110.6 | AH73: 103.7 | AI73: 99.3 | AJ73: 101.7 | AK73: 103.5 | AL73: 105.9 | AM73: 107.1 | AN73: 106.4 | AO73: 109.4 | AP73: 105.1 | AQ73: 104.7 | AR73: 110.6 | AS73: 103.4 | AT73: 107.4 | AU73: =AVERAGE(AN70:AN73)/AVERAGE(AN66:AN69)-1 -> 0.003979400749 | AV73: =AVERAGE(AO70:AO73)/AVERAGE(AO66:AO69)-1 -> 0.008513575702
B74: 2016-09-01 | C74: 108.9 | D74: 114.3 | E74: 105.4 | F74: 114 | G74: 104.2 | H74: 104.1 | I74: 104.8 | J74: 104 | K74: 105.5 | L74: 114.3 | M74: 125 | N74: 112.4 | O74: 116.5 | P74: 104.4 | Q74: 109.6 | R74: 105.8 | S74: 108.1 | T74: 102.7 | U74: 105.5 | V74: 108.9 | W74: 99.3 | X74: 114.5 | Y74: 105.1 | Z74: 99.3 | AA74: 106.8 | AB74: 100.3 | AC74: 106.6 | AD74: 105.1 | AE74: 108.6 | AF74: 100.4 | AG74: 111.6 | AH74: 104.1 | AI74: 99 | AJ74: 103.5 | AK74: 102.6 | AL74: 106.2 | AM74: 107.2 | AN74: 106.4 | AO74: 110 | AP74: 104.2 | AQ74: 104.6 | AR74: 111.3 | AS74: 103.6 | AT74: 107.4
B75: 2016-12-01 | C75: 109.8 | D75: 116 | E75: 105.7 | F75: 115.7 | G75: 104.4 | H75: 104.2 | I75: 104.8 | J75: 104.2 | K75: 106.2 | L75: 115 | M75: 126.2 | N75: 113.6 | O75: 116.6 | P75: 104.3 | Q75: 109.8 | R75: 105.7 | S75: 108 | T75: 103.2 | U75: 106.5 | V75: 110.6 | W75: 99.2 | X75: 116.9 | Y75: 105.6 | Z75: 99.3 | AA75: 106.8 | AB75: 100.4 | AC75: 107.5 | AD75: 106.2 | AE75: 110.8 | AF75: 100.3 | AG75: 114.4 | AH75: 104.6 | AI75: 99 | AJ75: 103.5 | AK75: 102.9 | AL75: 107 | AM75: 107.4 | AN75: 107.2 | AO75: 110.6 | AP75: 103.9 | AQ75: 106.5 | AR75: 112.1 | AS75: 104.3 | AT75: 107.5
B76: 2017-03-01 | C76: 110.5 | D76: 117.1 | E76: 106.3 | F76: 117.1 | G76: 104.6 | H76: 103.8 | I76: 105.8 | J76: 104.6 | K76: 106.7 | L76: 116.3 | M76: 128.4 | N76: 115.2 | O76: 119.3 | P76: 104.7 | Q76: 109.2 | R76: 105.7 | S76: 108.2 | T76: 103.6 | U76: 106.9 | V76: 111.2 | W76: 99.2 | X76: 117.6 | Y76: 105.7 | Z76: 99.2 | AA76: 110 | AB76: 100.9 | AC76: 108 | AD76: 106.5 | AE76: 111.4 | AF76: 100.3 | AG76: 115.1 | AH76: 104.7 | AI76: 98.8 | AJ76: 105.4 | AK76: 103.5 | AL76: 107.6 | AM76: 107.9 | AN76: 107.6 | AO76: 110.6 | AP76: 104.4 | AQ76: 107.8 | AR76: 113.4 | AS76: 104.5 | AT76: 108
B77: 2017-06-01 | C77: 111.5 | D77: 118.8 | E77: 106.8 | F77: 118.6 | G77: 104.7 | H77: 103.8 | I77: 107.1 | J77: 105.2 | K77: 107.4 | L77: 117.3 | M77: 129.3 | N77: 116.6 | O77: 121.3 | P77: 104.6 | Q77: 109.1 | R77: 106.4 | S77: 108.4 | T77: 104.1 | U77: 107.8 | V77: 113.3 | W77: 99.2 | X77: 118.8 | Y77: 106.1 | Z77: 99.2 | AA77: 112.2 | AB77: 101.2 | AC77: 108.7 | AD77: 107.4 | AE77: 113.5 | AF77: 100.3 | AG77: 116.1 | AH77: 105 | AI77: 98.8 | AJ77: 107.4 | AK77: 104.4 | AL77: 108.3 | AM77: 108.8 | AN77: 108.4 | AO77: 111.2 | AP77: 105.9 | AQ77: 108.9 | AR77: 114.2 | AS77: 104.6 | AT77: 108.9 | AU77: =AVERAGE(AN74:AN77)/AVERAGE(AN70:AN73)-1 -> 0.00163208207 | AV77: =AVERAGE(AO74:AO77)/AVERAGE(AO70:AO73)-1 -> 0.009354323523
B78: 2017-09-01 | C78: 112 | D78: 119.9 | E78: 107.7 | F78: 118.3 | G78: 105.2 | H78: 103.5 | I78: 107.5 | J78: 105.3 | K78: 108.4 | L78: 118.3 | M78: 130.9 | N78: 119.1 | O78: 120.5 | P78: 105.2 | Q78: 109.2 | R78: 106.5 | S78: 108.7 | T78: 104.9 | U78: 108 | V78: 114.1 | W78: 99.2 | X78: 118.5 | Y78: 106.4 | Z78: 97.8 | AA78: 112.7 | AB78: 101.3 | AC78: 109.7 | AD78: 107.7 | AE78: 114.4 | AF78: 100.3 | AG78: 116.5 | AH78: 105.3 | AI78: 98.4 | AJ78: 108.2 | AK78: 104.5 | AL78: 109.4 | AM78: 109.5 | AN78: 109.4 | AO78: 111.5 | AP78: 109 | AQ78: 109.6 | AR78: 115.4 | AS78: 104.8 | AT78: 109.6
B79: 2017-12-01 | C79: 112.5 | D79: 120.5 | E79: 108.2 | F79: 118.9 | G79: 106.1 | H79: 103.3 | I79: 108.4 | J79: 105.5 | K79: 109.3 | L79: 119.3 | M79: 131.6 | N79: 120.4 | O79: 122.6 | P79: 106.4 | Q79: 108.9 | R79: 107.2 | S79: 108.7 | T79: 106.6 | U79: 108.2 | V79: 114.7 | W79: 99.3 | X79: 118.1 | Y79: 107.1 | Z79: 97.8 | AA79: 113.6 | AB79: 101.7 | AC79: 110.4 | AD79: 107.9 | AE79: 114.9 | AF79: 100.3 | AG79: 116.4 | AH79: 105.9 | AI79: 98.4 | AJ79: 109.5 | AK79: 104.7 | AL79: 110.1 | AM79: 110.2 | AN79: 110.3 | AO79: 112.3 | AP79: 109.6 | AQ79: 110.7 | AR79: 117.1 | AS79: 106.1 | AT79: 110.3
B80: 2018-03-01 | C80: 112.9 | D80: 121.6 | E80: 108.6 | F80: 119.5 | G80: 107.4 | H80: 102.3 | I80: 108.9 | J80: 105.5 | K80: 110 | L80: 120 | M80: 134.1 | N80: 121.1 | O80: 123.9 | P80: 108.3 | Q80: 106.8 | R80: 107.7 | S80: 108.7 | T80: 107.3 | U80: 108.5 | V80: 115.2 | W80: 99.5 | X80: 118.2 | Y80: 108.1 | Z80: 97.8 | AA80: 114.2 | AB80: 101.7 | AC80: 111 | AD80: 108.2 | AE80: 115.5 | AF80: 100.6 | AG80: 116.6 | AH80: 106.7 | AI80: 98.2 | AJ80: 109.9 | AK80: 104.7 | AL80: 110.8 | AM80: 110.8 | AN80: 111.7 | AO80: 113 | AP80: 113.7 | AQ80: 111.3 | AR80: 119 | AS80: 106.4 | AT80: 110.6
B81: 2018-06-01 | C81: 114.2 | D81: 122.8 | E81: 111 | F81: 119.7 | G81: 107.6 | H81: 102.1 | I81: 110.6 | J81: 105.5 | K81: 110.8 | L81: 121.2 | M81: 134.9 | N81: 123.8 | O81: 124.4 | P81: 107.9 | Q81: 106.4 | R81: 110.6 | S81: 108.8 | T81: 108.5 | U81: 109.9 | V81: 116.8 | W81: 101.7 | X81: 118.2 | Y81: 108.7 | Z81: 97.8 | AA81: 114.8 | AB81: 101.7 | AC81: 111.5 | AD81: 109.4 | AE81: 116.6 | AF81: 103 | AG81: 116.7 | AH81: 107.4 | AI81: 98.2 | AJ81: 110.5 | AK81: 104.7 | AL81: 111.6 | AM81: 112.5 | AN81: 113.3 | AO81: 115 | AP81: 117.1 | AQ81: 112.5 | AR81: 118 | AS81: 106.8 | AT81: 112.4 | AU81: =AVERAGE(AN78:AN81)/AVERAGE(AN74:AN77)-1 -> 0.03514897579 | AV81: =AVERAGE(AO78:AO81)/AVERAGE(AO74:AO77)-1 -> 0.0212477396
B82: 2018-09-01 | C82: 114.6 | D82: 124.2 | E82: 111 | F82: 120 | G82: 107.4 | H82: 102.1 | I82: 111.5 | J82: 105.1 | K82: 111.6 | L82: 121 | M82: 135.6 | N82: 122.5 | O82: 124.8 | P82: 106.9 | Q82: 106.3 | R82: 111 | S82: 109.4 | T82: 109.7 | U82: 110.8 | V82: 118.6 | W82: 102.2 | X82: 118.2 | Y82: 109 | Z82: 97.8 | AA82: 116.3 | AB82: 100.9 | AC82: 112.2 | AD82: 110.1 | AE82: 118.1 | AF82: 103.5 | AG82: 116.9 | AH82: 107.6 | AI82: 98.2 | AJ82: 111.8 | AK82: 103.7 | AL82: 112.4 | AM82: 113.6 | AN82: 114.9 | AO82: 116.6 | AP82: 119 | AQ82: 114 | AR82: 120.1 | AS82: 107.8 | AT82: 113.3
B83: 2018-12-01 | C83: 115.1 | D83: 125.1 | E83: 111.5 | F83: 119.7 | G83: 108.2 | H83: 102.2 | I83: 111.7 | J83: 105.3 | K83: 112.5 | L83: 121.3 | M83: 136.8 | N83: 122.8 | O83: 124.2 | P83: 107.6 | Q83: 106.5 | R83: 111 | S83: 109.5 | T83: 110.8 | U83: 111.4 | V83: 119.2 | W83: 102.8 | X83: 118.6 | Y83: 109.8 | Z83: 97.8 | AA83: 116.7 | AB83: 101 | AC83: 113.1 | AD83: 110.5 | AE83: 118.9 | AF83: 104.2 | AG83: 116.6 | AH83: 108.4 | AI83: 98.2 | AJ83: 112.4 | AK83: 104 | AL83: 113.2 | AM83: 114.7 | AN83: 115.8 | AO83: 117 | AP83: 121 | AQ83: 115 | AR83: 121.5 | AS83: 108.3 | AT83: 114.5
B84: 2019-03-01 | C84: 115.3 | D84: 126.1 | E84: 111 | F84: 119.9 | G84: 108.8 | H84: 102.2 | I84: 112 | J84: 104.7 | K84: 112.4 | L84: 120.9 | M84: 138 | N84: 121 | O84: 123.6 | P84: 108 | Q84: 106.5 | R84: 111.4 | S84: 108.2 | T84: 110.2 | U84: 111.9 | V84: 120.1 | W84: 102.9 | X84: 119.5 | Y84: 110.6 | Z84: 97.8 | AA84: 117.2 | AB84: 100.8 | AC84: 113.1 | AD84: 111 | AE84: 119.8 | AF84: 104.2 | AG84: 117.1 | AH84: 109.2 | AI84: 98.2 | AJ84: 112.5 | AK84: 103.7 | AL84: 113.2 | AM84: 115.3 | AN84: 115.8 | AO84: 117.3 | AP84: 120.6 | AQ84: 115 | AR84: 121.2 | AS84: 108.5 | AT84: 115.1
B85: 2019-06-01 | C85: 115.8 | D85: 127 | E85: 111.5 | F85: 119.6 | G85: 109 | H85: 102.4 | I85: 114.4 | J85: 104.5 | K85: 113.1 | L85: 120.3 | M85: 137.2 | N85: 120 | O85: 122.5 | P85: 108 | Q85: 107 | R85: 114.3 | S85: 108.7 | T85: 110.2 | U85: 112.9 | V85: 121.5 | W85: 104.1 | X85: 119.5 | Y85: 110.8 | Z85: 97.8 | AA85: 119.3 | AB85: 100.4 | AC85: 113.9 | AD85: 111.9 | AE85: 121.5 | AF85: 105.5 | AG85: 117.1 | AH85: 109.4 | AI85: 98.2 | AJ85: 114.4 | AK85: 103.2 | AL85: 114.1 | AM85: 115.9 | AN85: 116.4 | AO85: 117.9 | AP85: 120.7 | AQ85: 115.6 | AR85: 122.1 | AS85: 109 | AT85: 115.8 | AU85: =AVERAGE(AN82:AN85)/AVERAGE(AN78:AN81)-1 -> 0.04092646728 | AV85: =AVERAGE(AO82:AO85)/AVERAGE(AO78:AO81)-1 -> 0.0376272687
B86: 2019-09-01 | C86: 115.8 | D86: 126.8 | E86: 111.4 | F86: 119.9 | G86: 108.8 | H86: 102.5 | I86: 116.1 | J86: 104.9 | K86: 113.6 | L86: 120 | M86: 136.1 | N86: 119.8 | O86: 122.7 | P86: 107.2 | Q86: 107.4 | R86: 117.1 | S86: 109.4 | T86: 109.3 | U86: 113.1 | V86: 121.5 | W86: 104.1 | X86: 120.5 | Y86: 111 | Z86: 97.8 | AA86: 120 | AB86: 100.8 | AC86: 114.7 | AD86: 112 | AE86: 121.5 | AF86: 105.5 | AG86: 117.1 | AH86: 109.7 | AI86: 98.2 | AJ86: 115.1 | AK86: 103.5 | AL86: 115 | AM86: 116.6 | AN86: 116.9 | AO86: 118.5 | AP86: 122 | AQ86: 115.8 | AR86: 122 | AS86: 109.1 | AT86: 116.5
B87: 2019-12-01 | C87: 116 | D87: 126.4 | E87: 112.2 | F87: 120.5 | G87: 109.4 | H87: 102.4 | I87: 117.8 | J87: 105.2 | K87: 114.5 | L87: 120.7 | M87: 134.5 | N87: 122 | O87: 124 | P87: 108.6 | Q87: 107 | R87: 119.1 | S87: 110.1 | T87: 110.5 | U87: 113.2 | V87: 121.5 | W87: 104.1 | X87: 120.5 | Y87: 111.2 | Z87: 97.8 | AA87: 121.9 | AB87: 100.8 | AC87: 115.6 | AD87: 112.1 | AE87: 121.5 | AF87: 105.5 | AG87: 117.4 | AH87: 109.8 | AI87: 98.2 | AJ87: 116.3 | AK87: 103.6 | AL87: 115.9 | AM87: 116.8 | AN87: 117.1 | AO87: 118.3 | AP87: 122.6 | AQ87: 116 | AR87: 122.3 | AS87: 109.9 | AT87: 116.8
B88: 2020-03-01 | C88: 116 | D88: 126.2 | E88: 112.4 | F88: 119.9 | G88: 109.8 | H88: 102.9 | I88: 118.3 | J88: 105.4 | K88: 114.8 | L88: 121.4 | M88: 136.7 | N88: 122.7 | O88: 122.5 | P88: 109.3 | Q88: 108.3 | R88: 119.7 | S88: 110.6 | T88: 109.7 | U88: 112.7 | V88: 120.4 | W88: 104.1 | X88: 120.5 | Y88: 111.5 | Z88: 97.8 | AA88: 122.5 | AB88: 100.8 | AC88: 116.1 | AD88: 111.8 | AE88: 120.6 | AF88: 105.5 | AG88: 117.4 | AH88: 110 | AI88: 98.2 | AJ88: 116.9 | AK88: 103.6 | AL88: 116.5 | AM88: 117 | AN88: 116.7 | AO88: 118 | AP88: 121.5 | AQ88: 115.7 | AR88: 122.1 | AS88: 109.9 | AT88: 117.1
B89: 2020-06-01 | C89: 116.2 | D89: 125.8 | E89: 112.8 | F89: 120.1 | G89: 109.6 | H89: 103.6 | I89: 117.8 | J89: 107.2 | K89: 115 | L89: 121.3 | M89: 136.1 | N89: 122 | O89: 123.1 | P89: 108.7 | Q89: 110.4 | R89: 119.9 | S89: 111.4 | T89: 110 | U89: 113 | V89: 120.1 | W89: 105.1 | X89: 120.5 | Y89: 111.5 | Z89: 97.8 | AA89: 121 | AB89: 102.6 | AC89: 116.3 | AD89: 112.1 | AE89: 120.4 | AF89: 106.4 | AG89: 117.4 | AH89: 110 | AI89: 98.2 | AJ89: 116.2 | AK89: 105.8 | AL89: 116.7 | AM89: 117.1 | AN89: 115.8 | AO89: 117.5 | AP89: 120 | AQ89: 114.8 | AR89: 120.7 | AS89: 108.9 | AT89: 117.5 | AU89: =AVERAGE(AN86:AN89)/AVERAGE(AN82:AN85)-1 -> 0.00777705768 | AV89: =AVERAGE(AO86:AO89)/AVERAGE(AO82:AO85)-1 -> 0.007465870307
B90: 2020-09-01 | C90: 116.2 | D90: 125.9 | E90: 113.1 | F90: 119.4 | G90: 107.5 | H90: 105.1 | I90: 118.2 | J90: 107.8 | K90: 115.5 | L90: 122 | M90: 136 | N90: 122.8 | O90: 122.8 | P90: 108.4 | Q90: 115 | R90: 120.9 | S90: 111.4 | T90: 111.8 | U90: 112.6 | V90: 119.9 | W90: 105.1 | X90: 119.4 | Y90: 108.5 | Z90: 97.8 | AA90: 121 | AB90: 103.6 | AC90: 116.3 | AD90: 111.9 | AE90: 120.7 | AF90: 106.4 | AG90: 116.5 | AH90: 106.9 | AI90: 98.2 | AJ90: 116.2 | AK90: 106.7 | AL90: 116.7 | AM90: 117.2 | AN90: 116.1 | AO90: 118.6 | AP90: 118.7 | AQ90: 115.2 | AR90: 120.2 | AS90: 108.9 | AT90: 117.6
B91: 2020-12-01 | C91: 116.9 | D91: 125.4 | E91: 114.1 | F91: 121.2 | G91: 107.9 | H91: 106.8 | I91: 120.4 | J91: 107.9 | K91: 115.6 | L91: 124.2 | M91: 137.3 | N91: 124.7 | O91: 126.4 | P91: 109.7 | Q91: 119.3 | R91: 123.1 | S91: 111.4 | T91: 112.3 | U91: 112.4 | V91: 118.7 | W91: 105.4 | X91: 119.6 | Y91: 108.3 | Z91: 97.9 | AA91: 123.9 | AB91: 103.6 | AC91: 116.4 | AD91: 112.1 | AE91: 119.7 | AF91: 107.2 | AG91: 118 | AH91: 106.7 | AI91: 98.7 | AJ91: 117.8 | AK91: 106.7 | AL91: 116.8 | AM91: 117.6 | AN91: 116.8 | AO91: 119.6 | AP91: 119.3 | AQ91: 115.7 | AR91: 121.6 | AS91: 109.3 | AT91: 117.8
B92: 2021-03-01 | C92: 117.8 | D92: 125.3 | E92: 114.7 | F92: 122.2 | G92: 109.4 | H92: 110.1 | I92: 123.9 | J92: 108 | K92: 115.7 | L92: 125.9 | M92: 136.8 | N92: 126.6 | O92: 128.3 | P92: 112.3 | Q92: 125.4 | R92: 124.3 | S92: 111.7 | T92: 111.4 | U92: 112.8 | V92: 118.7 | W92: 105.4 | X92: 120.1 | Y92: 109.3 | Z92: 99.8 | AA92: 130.3 | AB92: 104 | AC92: 116.7 | AD92: 112.6 | AE92: 119.7 | AF92: 107.3 | AG92: 118.8 | AH92: 107.6 | AI92: 100.6 | AJ92: 122.4 | AK92: 106.8 | AL92: 117.1 | AM92: 117.9 | AN92: 116.6 | AO92: 118.6 | AP92: 119.8 | AQ92: 114.7 | AR92: 122.8 | AS92: 110.4 | AT92: 118.3
B93: 2021-06-01 | C93: 120 | D93: 129.1 | E93: 115.6 | F93: 124.4 | G93: 110.7 | H93: 113.5 | I93: 129.1 | J93: 108.3 | K93: 116.5 | L93: 128.1 | M93: 139.7 | N93: 127.2 | O93: 131.5 | P93: 114.2 | Q93: 129.4 | R93: 130.5 | S93: 112.3 | T93: 113.5 | U93: 114.9 | V93: 122.7 | W93: 106.5 | X93: 121.1 | Y93: 110.1 | Z93: 102.5 | AA93: 135.3 | AB93: 104.1 | AC93: 117.2 | AD93: 114.9 | AE93: 123.7 | AF93: 108.2 | AG93: 120.8 | AH93: 108.7 | AI93: 103.7 | AJ93: 126.6 | AK93: 107 | AL93: 117.7 | AM93: 119.9 | AN93: 118.6 | AO93: 120.9 | AP93: 122.2 | AQ93: 116.1 | AR93: 125.1 | AS93: 112.7 | AT93: 120.3 | AU93: =AVERAGE(AN90:AN93)/AVERAGE(AN86:AN89)-1 -> 0.003429796356 | AV93: =AVERAGE(AO90:AO93)/AVERAGE(AO86:AO89)-1 -> 0.01143341097
B94: 2021-09-01 | C94: 122.5 | D94: 130.8 | E94: 116.7 | F94: 130.8 | G94: 112.6 | H94: 116.1 | I94: 133.9 | J94: 111.3 | K94: 118.2 | L94: 132.8 | M94: 145.1 | N94: 130.2 | O94: 140.7 | P94: 118.2 | Q94: 131.1 | R94: 137.9 | S94: 118.4 | T94: 119.6 | U94: 116.1 | V94: 123.2 | W94: 106.6 | X94: 125.2 | Y94: 110.8 | Z94: 104.9 | AA94: 139 | AB94: 105.2 | AC94: 117.6 | AD94: 116.6 | AE94: 124.2 | AF94: 108.5 | AG94: 126.5 | AH94: 109.3 | AI94: 107.1 | AJ94: 129.4 | AK94: 109.1 | AL94: 118.1 | AM94: 122.5 | AN94: 120.3 | AO94: 122.2 | AP94: 123.5 | AQ94: 117.7 | AR94: 127.3 | AS94: 115.6 | AT94: 123.1
B95: 2021-12-01 | C95: 126 | D95: 135.5 | E95: 118.1 | F95: 135.6 | G95: 115.8 | H95: 122.3 | I95: 138.6 | J95: 112.7 | K95: 119.5 | L95: 138 | M95: 149 | N95: 132.9 | O95: 149.9 | P95: 125.7 | Q95: 138.3 | R95: 147.8 | S95: 119.2 | T95: 123.4 | U95: 118.7 | V95: 127.5 | W95: 107.2 | X95: 129.1 | Y95: 111.6 | Z95: 110.2 | AA95: 139.5 | AB95: 106.2 | AC95: 118.1 | AD95: 119.3 | AE95: 129.3 | AF95: 109.2 | AG95: 128.4 | AH95: 110.1 | AI95: 112.7 | AJ95: 130.6 | AK95: 111 | AL95: 118.8 | AM95: 124.2 | AN95: 121.9 | AO95: 123.4 | AP95: 124.9 | AQ95: 119 | AR95: 130.5 | AS95: 119.4 | AT95: 124.8
B96: 2022-03-01 | C96: 129.7 | D96: 139.1 | E96: 121.3 | F96: 139.7 | G96: 118.7 | H96: 128.5 | I96: 141.3 | J96: 115.4 | K96: 121.2 | L96: 144.8 | M96: 155.3 | N96: 139 | O96: 157.9 | P96: 130.9 | Q96: 150.9 | R96: 149 | S96: 121.6 | T96: 128.1 | U96: 120.8 | V96: 130 | W96: 108.9 | X96: 131.1 | Y96: 113.2 | Z96: 113.1 | AA96: 143.9 | AB96: 108.7 | AC96: 119 | AD96: 121.7 | AE96: 132.1 | AF96: 111.2 | AG96: 130.8 | AH96: 111.9 | AI96: 115.8 | AJ96: 134.1 | AK96: 113.8 | AL96: 119.6 | AM96: 127.1 | AN96: 125.2 | AO96: 126.9 | AP96: 128.3 | AQ96: 121.8 | AR96: 134.4 | AS96: 122.7 | AT96: 127.7
B97: 2022-06-01 | C97: 134.6 | D97: 144 | E97: 126.3 | F97: 146.1 | G97: 122.2 | H97: 132.1 | I97: 147.3 | J97: 119.4 | K97: 122.9 | L97: 153.5 | M97: 162.8 | N97: 149.7 | O97: 168.9 | P97: 136.9 | Q97: 156.5 | R97: 153.6 | S97: 125.1 | T97: 133.4 | U97: 123.7 | V97: 134.4 | W97: 111 | X97: 134 | Y97: 115.4 | Z97: 115.1 | AA97: 152.2 | AB97: 112.6 | AC97: 119.7 | AD97: 125 | AE97: 135.7 | AF97: 113.5 | AG97: 135.6 | AH97: 113.8 | AI97: 118.6 | AJ97: 140.4 | AK97: 118.1 | AL97: 120.4 | AM97: 130.7 | AN97: 129 | AO97: 130.2 | AP97: 132.3 | AQ97: 126.4 | AR97: 138.7 | AS97: 126.2 | AT97: 131.2 | AU97: =AVERAGE(AN94:AN97)/AVERAGE(AN90:AN93)-1 -> 0.06045716727 | AV97: =AVERAGE(AO94:AO97)/AVERAGE(AO90:AO93)-1 -> 0.0523341009
B98: 2022-09-01 | C98: 138.2 | D98: 147.9 | E98: 129.8 | F98: 150.1 | G98: 126.5 | H98: 133.6 | I98: 154.5 | J98: 121.8 | K98: 124.7 | L98: 160 | M98: 170.3 | N98: 156.4 | O98: 174.7 | P98: 146.2 | Q98: 159.6 | R98: 164.2 | S98: 126 | T98: 139.4 | U98: 125.9 | V98: 136.7 | W98: 112.9 | X98: 137.1 | Y98: 117.3 | Z98: 115.3 | AA98: 153.8 | AB98: 115 | AC98: 120.5 | AD98: 127.3 | AE98: 138.5 | AF98: 115.6 | AG98: 138.9 | AH98: 115.2 | AI98: 118.9 | AJ98: 143.3 | AK98: 120.9 | AL98: 121.3 | AM98: 134.2 | AN98: 132.5 | AO98: 133.4 | AP98: 135.8 | AQ98: 129.5 | AR98: 146.5 | AS98: 128.4 | AT98: 134.7
B99: 2022-12-01 | C99: 140.4 | D99: 150.1 | E99: 133.2 | F99: 151.2 | G99: 129.2 | H99: 133.9 | I99: 156.2 | J99: 122.9 | K99: 125.1 | L99: 161.8 | M99: 173.3 | N99: 157.5 | O99: 176.4 | P99: 148.9 | Q99: 161.1 | R99: 166.1 | S99: 125 | T99: 139.4 | U99: 128.3 | V99: 138.3 | W99: 117.6 | X99: 137.1 | Y99: 120.1 | Z99: 115.4 | AA99: 155.5 | AB99: 116.1 | AC99: 120.9 | AD99: 129.7 | AE99: 140.8 | AF99: 119.7 | AG99: 139.9 | AH99: 117.8 | AI99: 118.3 | AJ99: 144.7 | AK99: 122.8 | AL99: 121.9 | AM99: 136.1 | AN99: 135.3 | AO99: 136.5 | AP99: 136.6 | AQ99: 134 | AR99: 149.9 | AS99: 130.7 | AT99: 136.4
B100: 2023-03-01
B101: 2023-06-01 | AU101: =AVERAGE(AN98:AN101)/AVERAGE(AN94:AN97)-1 -> 0.07896857373 | AV101: =AVERAGE(AO98:AO101)/AVERAGE(AO94:AO97)-1 -> 0.07380147205
B102: <add>
B103: <add>
B104: <add>
B109: Increase in PPI, average of 4 quarters to June
AP110: =AV4 -> Road and bridge construction New South Wales ; | AQ110: =AW4 -> 0 | AR110: =AX4 -> 0 | AS110: =AY4 -> 0 | AT110: =AE2 -> https://www.abs.gov.au/statistics/economy/price-indexes-and-inflation/producer-price-indexes-australia/dec-2022#data-downloads | AU110: =AU4 -> Road and bridge construction Australia ; | AV110: =AV4 -> Road and bridge construction New South Wales ;
A111: 1 | B111: =B29 -> 2005-06-01 | AU111: =AU29 -> 0.04135472371 | AV111: =AV29 -> 0.04482279361
A112: =A111+1 -> 2 | B112: =B33 -> 2006-06-01 | AU112: =AU33 -> 0.05956864088 | AV112: =AV33 -> 0.04822081809
A113: =A112+1 -> 3 | B113: =B37 -> 2007-06-01 | AU113: =AU37 -> 0.05008077544 | AV113: =AV37 -> 0.04600253807
A114: 4 | B114: =B41 -> 2008-06-01 | AU114: =AU41 -> 0.05446153846 | AV114: =AV41 -> 0.0448892933
A115: 5 | B115: =B45 -> 2009-06-01 | AU115: =AU45 -> 0.06390428947 | AV115: =AV45 -> 0.04005805515
A116: 6 | B116: =B49 -> 2010-06-01 | AU116: =AU49 -> 0.0137136588 | AV116: =AV49 -> 0.02595590287
A117: 7 | B117: =B53 -> 2011-06-01 | AU117: =AU53 -> 0.0303030303 | AV117: =AV53 -> 0.02611534276
A118: 8 | B118: =B57 -> 2012-06-01 | AU118: =AU57 -> 0.05042016807 | AV118: =AV57 -> 0.06071049841
A119: 9 | B119: =B61 -> 2013-06-01 | AU119: =AU61 -> 0.0355 | AV119: =AV61 -> 0.03549112722
A120: 10 | B120: =B65 -> 2014-06-01 | AU120: =AU65 -> 0.02414292612 | AV120: =AV65 -> 0.03041274439
A121: 11 | B121: =B69 -> 2015-06-01 | AU121: =AU69 -> 0.007072135785 | AV121: =AV69 -> 0.01803701101
A122: 12 | B122: =B73 -> 2016-06-01 | AU122: =AU73 -> 0.003979400749 | AV122: =AV73 -> 0.008513575702
A123: 13 | B123: =B77 -> 2017-06-01 | AU123: =AU77 -> 0.00163208207 | AV123: =AV77 -> 0.009354323523
A124: 14 | B124: =B81 -> 2018-06-01 | AU124: =AU81 -> 0.03514897579 | AV124: =AV81 -> 0.0212477396
A125: 15 | B125: =B85 -> 2019-06-01 | AU125: =AU85 -> 0.04092646728 | AV125: =AV85 -> 0.0376272687
A126: 16 | B126: =B89 -> 2020-06-01 | AU126: =AU89 -> 0.00777705768 | AV126: =AV89 -> 0.007465870307
A127: 17 | B127: =B93 -> 2021-06-01 | AU127: =AU93 -> 0.003429796356 | AV127: =AV93 -> 0.01143341097
A128: 18 | B128: =B97 -> 2022-06-01 | AU128: =AU97 -> 0.06045716727 | AV128: =AV97 -> 0.0523341009

Sheet ABS WPI
B2: Source: | C2: https://www.abs.gov.au/statistics/economy/price-indexes-and-inflation/wage-price-index-australia/sep-2022#data-downloads
B4: Time Series Workbook
B7: 6345.0 Wage Price Index, Australia
B8: Table 1. Total Hourly Rates of Pay Excluding Bonuses: Sector, Original, Seasonally Adjusted and Trend | J8: Table 4b. Total Hourly Rates of Pay Excluding Bonuses: Public Sector by State, Original (Quarterly Index Numbers)
K9: Table 2b. Total Hourly Rates of Pay Excluding Bonuses: All Sectors by State, Original (Quarterly Index Numbers)
C10: Quarterly Index ; Total hourly rates of pay excluding bonuses ; Australia ; Private ; All industries ; | D10: Quarterly Index ; Total hourly rates of pay excluding bonuses ; Australia ; Public ; All industries ; | E10: Quarterly Index ; Total hourly rates of pay excluding bonuses ; Australia ; Private and Public ; All industries ; | F10: Quarterly Index ; Total hourly rates of pay excluding bonuses ; Australia ; Private ; All industries ; | G10: Quarterly Index ; Total hourly rates of pay excluding bonuses ; Australia ; Public ; All industries ; | H10: Quarterly Index ; Total hourly rates of pay excluding bonuses ; Australia ; Private and Public ; All industries ; | J10: Quarterly Index ; Total hourly rates of pay excluding bonuses ; New South Wales ; Public ; All industries ; | K10: Quarterly Index ; Total hourly rates of pay excluding bonuses ; New South Wales ; Private and Public ; All industries ; | N10: =C10 -> Quarterly Index ; Total hourly rates of pay excluding bonuses ; Australia ; Private ; All industries ; | O10: =D10 -> Quarterly Index ; Total hourly rates of pay excluding bonuses ; Australia ; Public ; All industries ; | P10: =E10 -> Quarterly Index ; Total hourly rates of pay excluding bonuses ; Australia ; Private and Public ; All industries ; | Q10: =F10 -> Quarterly Index ; Total hourly rates of pay excluding bonuses ; Australia ; Private ; All industries ; | R10: =G10 -> Quarterly Index ; Total hourly rates of pay excluding bonuses ; Australia ; Public ; All industries ; | S10: =H10 -> Quarterly Index ; Total hourly rates of pay excluding bonuses ; Australia ; Private and Public ; All industries ; | T10: =J10 -> Quarterly Index ; Total hourly rates of pay excluding bonuses ; New South Wales ; Public ; All industries ; | U10: =K10 -> Quarterly Index ; Total hourly rates of pay excluding bonuses ; New South Wales ; Private and Public ; All industries ;
B11: Unit | C11: Index Numbers | D11: Index Numbers | E11: Index Numbers | F11: Index Numbers | G11: Index Numbers | H11: Index Numbers | J11: Index Numbers | K11: Index Numbers
B12: Series Type | C12: Original | D12: Original | E12: Original | F12: Seasonally Adjusted | G12: Seasonally Adjusted | H12: Seasonally Adjusted | J12: Original | K12: Original | N12: Original | O12: Original | P12: Original | Q12: Seasonally Adjusted | R12: Seasonally Adjusted | S12: Seasonally Adjusted | T12: =J12 -> Original | U12: Original
B13: Data Type | C13: INDEX | D13: INDEX | E13: INDEX | F13: INDEX | G13: INDEX | H13: INDEX | J13: INDEX | K13: INDEX
B14: Frequency | C14: Quarter | D14: Quarter | E14: Quarter | F14: Quarter | G14: Quarter | H14: Quarter | J14: Quarter | K14: Quarter
B15: Collection Month | C15: 3 | D15: 3 | E15: 3 | F15: 3 | G15: 3 | H15: 3 | J15: 3 | K15: 3
B16: Series Start | C16: 1997-09-01 | D16: 1997-09-01 | E16: 1997-09-01 | F16: 1997-09-01 | G16: 1997-09-01 | H16: 1997-09-01 | J16: 1997-09-01 | K16: 1997-09-01
B17: Series End | C17: 2022-09-01 | D17: 2022-09-01 | E17: 2022-09-01 | F17: 2022-09-01 | G17: 2022-09-01 | H17: 2022-09-01 | J17: 2022-09-01 | K17: 2022-09-01
B18: No. Obs | C18: 101 | D18: 101 | E18: 101 | F18: 101 | G18: 101 | H18: 101 | J18: 101 | K18: 101
B19: Series ID | C19: A2603039T | D19: A2603989W | E19: A2603609J | F19: A2713846W | G19: A2713852T | H19: A2713849C | J19: A2599999R | K19: A2599619A
B21: 2000-06-01 | C21: 72.9 | D21: 70.7 | E21: 72.3 | F21: 73 | G21: 70.8 | H21: 72.5 | J21: 69.8 | K21: 72.7
B22: 2000-09-01 | C22: 73.8 | D22: 71.5 | E22: 73.2 | F22: 73.7 | G22: 71.4 | H22: 73.1 | J22: 70.6 | K22: 73.9
B23: 2000-12-01 | C23: 74.4 | D23: 72 | E23: 73.8 | F23: 74.4 | G23: 72 | H23: 73.8 | J23: 71 | K23: 74.3
B24: 2001-03-01 | C24: 75.1 | D24: 72.9 | E24: 74.6 | F24: 75 | G24: 72.8 | H24: 74.5 | J24: 71.9 | K24: 75
B25: 2001-06-01 | C25: 75.5 | D25: 73.4 | E25: 75 | F25: 75.7 | G25: 73.6 | H25: 75.2 | J25: 72.2 | K25: 75.5
B26: 2001-09-01 | C26: 76.4 | D26: 74.1 | E26: 75.8 | F26: 76.3 | G26: 74.1 | H26: 75.7 | J26: 72.9 | K26: 76.4
B27: 2001-12-01 | C27: 76.9 | D27: 74.6 | E27: 76.4 | F27: 76.9 | G27: 74.6 | H27: 76.3 | J27: 73.2 | K27: 76.9
B28: 2002-03-01 | C28: 77.4 | D28: 75.4 | E28: 76.9 | F28: 77.4 | G28: 75.2 | H28: 76.9 | J28: 74.3 | K28: 77.4
B29: 2002-06-01 | C29: 77.9 | D29: 75.7 | E29: 77.4 | F29: 78.1 | G29: 75.9 | H29: 77.5 | J29: 74.4 | K29: 77.8
B30: 2002-09-01 | C30: 79 | D30: 76.6 | E30: 78.3 | F30: 78.8 | G30: 76.5 | H30: 78.2 | J30: 75.1 | K30: 78.9
B31: 2002-12-01 | C31: 79.5 | D31: 77.2 | E31: 78.9 | F31: 79.5 | G31: 77.2 | H31: 78.9 | J31: 75.7 | K31: 79.4
B32: 2003-03-01 | C32: 80.1 | D32: 78.5 | E32: 79.7 | F32: 80.1 | G32: 78.3 | H32: 79.7 | J32: 78 | K32: 80.4
B33: 2003-06-01 | C33: 80.5 | D33: 78.9 | E33: 80.1 | F33: 80.7 | G33: 79.1 | H33: 80.3 | J33: 78.3 | K33: 80.8
B34: 2003-09-01 | C34: 81.4 | D34: 80.2 | E34: 81.1 | F34: 81.4 | G34: 80.1 | H34: 81 | J34: 80.1 | K34: 81.9
B35: 2003-12-01 | C35: 82.2 | D35: 80.8 | E35: 81.9 | F35: 82.2 | G35: 80.9 | H35: 81.8 | J35: 80.5 | K35: 82.6
B36: 2004-03-01 | C36: 82.7 | D36: 81.8 | E36: 82.5 | F36: 82.8 | G36: 81.6 | H36: 82.5 | J36: 81.9 | K36: 83.3
B37: 2004-06-01 | C37: 83.2 | D37: 82 | E37: 82.9 | F37: 83.5 | G37: 82.3 | H37: 83.1 | J37: 82.1 | K37: 83.8
B38: 2004-09-01 | C38: 84.3 | D38: 83.3 | E38: 84 | F38: 84.2 | G38: 83.2 | H38: 83.9 | J38: 83.2 | K38: 84.7
B39: 2004-12-01 | C39: 85.1 | D39: 84.2 | E39: 84.8 | F39: 85 | G39: 84.2 | H39: 84.8 | J39: 83.7 | K39: 85.2
B40: 2005-03-01 | C40: 85.8 | D40: 85.4 | E40: 85.7 | F40: 85.8 | G40: 85.3 | H40: 85.7 | J40: 85.8 | K40: 86.4
B41: 2005-06-01 | C41: 86.5 | D41: 85.8 | E41: 86.3 | F41: 86.7 | G41: 86.2 | H41: 86.5 | J41: 85.9 | K41: 87.1
B42: 2005-09-01 | C42: 87.6 | D42: 87.2 | E42: 87.5 | F42: 87.5 | G42: 87.1 | H42: 87.4 | J42: 88.1 | K42: 88.3
B43: 2005-12-01 | C43: 88.4 | D43: 88 | E43: 88.3 | F43: 88.4 | G43: 87.9 | H43: 88.2 | J43: 88.5 | K43: 88.9
B44: 2006-03-01 | C44: 89.3 | D44: 89 | E44: 89.2 | F44: 89.3 | G44: 88.9 | H44: 89.2 | J44: 89.7 | K44: 89.9
B45: 2006-06-01 | C45: 90 | D45: 89.7 | E45: 89.9 | F45: 90.2 | G45: 89.9 | H45: 90.1 | J45: 90 | K45: 90.5
B46: 2006-09-01 | C46: 90.9 | D46: 90.9 | E46: 90.9 | F46: 91 | G46: 90.8 | H46: 90.9 | J46: 92 | K46: 91.6
B47: 2006-12-01 | C47: 91.7 | D47: 91.9 | E47: 91.8 | F47: 91.9 | G47: 91.9 | H47: 91.9 | J47: 92.5 | K47: 92.3
B48: 2007-03-01 | C48: 92.7 | D48: 92.8 | E48: 92.8 | F48: 92.8 | G48: 92.7 | H48: 92.8 | J48: 93.4 | K48: 93.3
B49: 2007-06-01 | C49: 93.5 | D49: 93.4 | E49: 93.5 | F49: 93.7 | G49: 93.7 | H49: 93.8 | J49: 93.9 | K49: 93.9 | N49: =AVERAGE(C46:C49)/AVERAGE(C42:C45)-1 -> 0.03799605967 | O49: 0.04266742018 | P49: 0.03972950127 | Q49: 0.0393922341 | R49: 0.04324477106 | S49: 0.04085657932 | T49: =AVERAGE(J46:J49)/AVERAGE(J42:J45)-1 -> 0.04350266629 | U49: 0.03775167785
B50: 2007-09-01 | C50: 94.7 | D50: 94.9 | E50: 94.8 | F50: 94.7 | G50: 94.7 | H50: 94.7 | J50: 95.7 | K50: 95.2
B51: 2007-12-01 | C51: 95.7 | D51: 95.7 | E51: 95.7 | F51: 95.6 | G51: 95.6 | H51: 95.6 | J51: 96.1 | K51: 95.9
B52: 2008-03-01 | C52: 96.6 | D52: 96.5 | E52: 96.6 | F52: 96.6 | G52: 96.4 | H52: 96.6 | J52: 97.3 | K52: 96.8
B53: 2008-06-01 | C53: 97.6 | D53: 97 | E53: 97.5 | F53: 97.8 | G53: 97.3 | H53: 97.7 | J53: 97.4 | K53: 97.6 | N53: =AVERAGE(C50:C53)/AVERAGE(C46:C49)-1 -> 0.04284164859 | O53: 0.04092140921 | P53: 0.04227642276 | Q53: 0.04141851651 | R53: 0.04036846383 | S53: 0.04114780726 | T53: =AVERAGE(J50:J53)/AVERAGE(J46:J49)-1 -> 0.03953738569 | U53: 0.03880355699
B54: 2008-09-01 | C54: 98.7 | D54: 98.3 | E54: 98.6 | F54: 98.8 | G54: 98.2 | H54: 98.7 | J54: 98.2 | K54: 98.7
B55: 2008-12-01 | C55: 99.8 | D55: 99.7 | E55: 99.8 | F55: 99.7 | G55: 99.6 | H55: 99.7 | J55: 99.7 | K55: 99.7
B56: 2009-03-01 | C56: 100.5 | D56: 100.7 | E56: 100.5 | F56: 100.5 | G56: 100.6 | H56: 100.6 | J56: 100.7 | K56: 100.5
B57: 2009-06-01 | C57: 101 | D57: 101.4 | E57: 101.1 | F57: 101.2 | G57: 101.6 | H57: 101.4 | J57: 101.4 | K57: 101.2 | N57: =AVERAGE(C54:C57)/AVERAGE(C50:C53)-1 -> 0.04004160166 | O57: 0.0416558188 | P57: 0.04004160166 | Q57: 0.04029113595 | R57: 0.04166666667 | S57: 0.04108164327 | T57: =AVERAGE(J54:J57)/AVERAGE(J50:J53)-1 -> 0.03492884864 | U57: 0.03787289235
B58: 2009-09-01 | C58: 101.8 | D58: 102.8 | E58: 102 | F58: 101.6 | G58: 102.7 | H58: 101.8 | J58: 103.5 | K58: 102.2
B59: 2009-12-01 | C59: 102.3 | D59: 103.8 | E59: 102.7 | F59: 102.3 | G59: 103.7 | H59: 102.6 | J59: 104 | K59: 102.6
B60: 2010-03-01 | C60: 103.1 | D60: 105 | E60: 103.6 | F60: 103.1 | G60: 104.9 | H60: 103.6 | J60: 105.2 | K60: 103.6
B61: 2010-06-01 | C61: 103.8 | D61: 105.4 | E61: 104.2 | F61: 104 | G61: 105.7 | H61: 104.4 | J61: 105.3 | K61: 104.2 | N61: =AVERAGE(C58:C61)/AVERAGE(C54:C57)-1 -> 0.0275 | O61: 0.04223944014 | P61: 0.03125 | Q61: 0.02698650675 | R61: 0.0425 | S61: 0.02997002997 | T61: =AVERAGE(J58:J61)/AVERAGE(J54:J57)-1 -> 0.045 | U61: 0.03124218945
B62: 2010-09-01 | C62: 105.4 | D62: 106.9 | E62: 105.7 | F62: 105.2 | G62: 106.8 | H62: 105.5 | J62: 107.4 | K62: 105.8
B63: 2010-12-01 | C63: 106.3 | D63: 107.9 | E63: 106.6 | F63: 106.2 | G63: 107.8 | H63: 106.6 | J63: 107.7 | K63: 106.5
B64: 2011-03-01 | C64: 107.2 | D64: 108.8 | E64: 107.6 | F64: 107.2 | G64: 108.7 | H64: 107.6 | J64: 108.9 | K64: 107.6
B65: 2011-06-01 | C65: 107.8 | D65: 109.3 | E65: 108.2 | F65: 108 | G65: 109.6 | H65: 108.4 | J65: 109.5 | K65: 108.2 | N65: =AVERAGE(C62:C65)/AVERAGE(C58:C61)-1 -> 0.03819951338 | O65: 0.0381294964 | P65: 0.03781818182 | Q65: 0.03795620438 | R65: 0.0381294964 | S65: 0.03806983511 | T65: =AVERAGE(J62:J65)/AVERAGE(J58:J61)-1 -> 0.03708133971 | U65: 0.03756665051
B66: 2011-09-01 | C66: 109.3 | D66: 110.4 | E66: 109.5 | F66: 109.1 | G66: 110.3 | H66: 109.3 | J66: 110.4 | K66: 109.5
B67: 2011-12-01 | C67: 110.3 | D67: 111.3 | E67: 110.5 | F67: 110.2 | G67: 111.2 | H67: 110.4 | J67: 111.4 | K67: 110.5
B68: 2012-03-01 | C68: 111.2 | D68: 112.2 | E68: 111.4 | F68: 111.2 | G68: 112.1 | H68: 111.5 | J68: 112.3 | K68: 111.4
B69: 2012-06-01 | C69: 112 | D69: 112.9 | E69: 112.2 | F69: 112.2 | G69: 113.2 | H69: 112.5 | J69: 112.8 | K69: 112 | N69: =AVERAGE(C66:C69)/AVERAGE(C62:C65)-1 -> 0.03773142723 | O69: 0.03210903211 | P69: 0.03620649381 | Q69: 0.03774027192 | R69: 0.03210903211 | S69: 0.03644008409 | T69: =AVERAGE(J66:J69)/AVERAGE(J62:J65)-1 -> 0.030911188 | U69: 0.03573931324
B70: 2012-09-01 | C70: 113.3 | D70: 114.2 | E70: 113.5 | F70: 113.1 | G70: 114.1 | H70: 113.4 | J70: 114.5 | K70: 113.5
B71: 2012-12-01 | C71: 114.1 | D71: 114.9 | E71: 114.3 | F71: 114 | G71: 114.9 | H71: 114.2 | J71: 114.8 | K71: 114
B72: 2013-03-01 | C72: 114.7 | D72: 115.7 | E72: 115 | F72: 114.8 | G72: 115.6 | H72: 115 | J72: 115.5 | K72: 114.6
B73: 2013-06-01 | C73: 115.3 | D73: 116.1 | E73: 115.5 | F73: 115.6 | G73: 116.4 | H73: 115.7 | J73: 115.8 | K73: 115.1 | N73: =AVERAGE(C70:C73)/AVERAGE(C66:C69)-1 -> 0.03297199639 | O73: 0.03155774396 | P73: 0.03313796213 | Q73: 0.03343121753 | R73: 0.03178155774 | S73: 0.03290511607 | T73: =AVERAGE(J70:J73)/AVERAGE(J66:J69)-1 -> 0.03065562766 | U73: 0.03112313938
B74: 2013-09-01 | C74: 116.4 | D74: 117.2 | E74: 116.6 | F74: 116.3 | G74: 117.1 | H74: 116.4 | J74: 116.8 | K74: 116.1
B75: 2013-12-01 | C75: 117 | D75: 118.1 | E75: 117.2 | F75: 116.9 | G75: 118 | H75: 117.2 | J75: 117.7 | K75: 116.8
B76: 2014-03-01 | C76: 117.7 | D76: 119.1 | E76: 118 | F76: 117.8 | G76: 119 | H76: 118.1 | J76: 118.7 | K76: 117.6
B77: 2014-06-01 | C77: 118.2 | D77: 119.5 | E77: 118.5 | F77: 118.4 | G77: 119.7 | H77: 118.7 | J77: 118.9 | K77: 118 | N77: =AVERAGE(C74:C77)/AVERAGE(C70:C73)-1 -> 0.02601661565 | O77: 0.02820568453 | P77: 0.02618372245 | Q77: 0.02601092896 | R77: 0.02776572668 | S77: 0.02640192014 | T77: =AVERAGE(J74:J77)/AVERAGE(J70:J73)-1 -> 0.02496743378 | U77: 0.02471566054
B78: 2014-09-01 | C78: 119.3 | D78: 120.4 | E78: 119.5 | F78: 119.1 | G78: 120.3 | H78: 119.4 | J78: 120.3 | K78: 119.1
B79: 2014-12-01 | C79: 119.9 | D79: 121.3 | E79: 120.2 | F79: 119.8 | G79: 121.2 | H79: 120.1 | J79: 120.7 | K79: 119.6
B80: 2015-03-01 | C80: 120.3 | D80: 122.1 | E80: 120.7 | F80: 120.4 | G80: 122 | H80: 120.8 | J80: 121.4 | K80: 120.1
B81: 2015-06-01 | C81: 120.8 | D81: 122.5 | E81: 121.2 | F81: 121 | G81: 122.7 | H81: 121.4 | J81: 121.6 | K81: 120.5 | N81: =AVERAGE(C78:C81)/AVERAGE(C74:C77)-1 -> 0.02343916471 | O81: 0.02616585778 | P81: 0.02402721667 | Q81: 0.02322113336 | R81: 0.02617138033 | S81: 0.02402210884 | T81: =AVERAGE(J78:J81)/AVERAGE(J74:J77)-1 -> 0.02520652404 | U81: 0.02305229456
B82: 2015-09-01 | C82: 121.8 | D82: 123.7 | E82: 122.2 | F82: 121.6 | G82: 123.6 | H82: 122.1 | J82: 123.3 | K82: 121.7
B83: 2015-12-01 | C83: 122.3 | D83: 124.3 | E83: 122.7 | F83: 122.2 | G83: 124.3 | H83: 122.7 | J83: 123.5 | K83: 122.1
B84: 2016-03-01 | C84: 122.7 | D84: 125 | E84: 123.2 | F84: 122.8 | G84: 125 | H84: 123.3 | J84: 124.1 | K84: 122.6
B85: 2016-06-01 | C85: 123.1 | D85: 125.4 | E85: 123.7 | F85: 123.4 | G85: 125.6 | H85: 123.9 | J85: 124.3 | K85: 123.1 | N85: =AVERAGE(C82:C85)/AVERAGE(C78:C81)-1 -> 0.01998750781 | O85: 0.02488176023 | P85: 0.02117940199 | Q85: 0.02019571101 | R85: 0.02529823118 | S85: 0.02138260328 | T85: =AVERAGE(J82:J85)/AVERAGE(J78:J81)-1 -> 0.02314049587 | U85: 0.02128103484
B86: 2016-09-01 | C86: 124.1 | D86: 126.5 | E86: 124.6 | F86: 123.9 | G86: 126.4 | H86: 124.4 | J86: 126.2 | K86: 124.2
B87: 2016-12-01 | C87: 124.5 | D87: 127.2 | E87: 125.1 | F87: 124.4 | G87: 127.2 | H87: 125 | J87: 126.4 | K87: 124.7
B88: 2017-03-01 | C88: 124.9 | D88: 128 | E88: 125.6 | F88: 125 | G88: 127.9 | H88: 125.7 | J88: 127.3 | K88: 125.2
B89: 2017-06-01 | C89: 125.4 | D89: 128.5 | E89: 126.1 | F89: 125.6 | G89: 128.7 | H89: 126.3 | J89: 127.5 | K89: 125.6 | N89: =AVERAGE(C86:C89)/AVERAGE(C82:C85)-1 -> 0.01837109614 | O89: 0.02367576244 | P89: 0.01952013013 | Q89: 0.01816326531 | R89: 0.02347041123 | S89: 0.01910569106 | T89: =AVERAGE(J86:J89)/AVERAGE(J82:J85)-1 -> 0.0246365105 | U89: 0.02083758938
B90: 2017-09-01 | C90: 126.4 | D90: 129.5 | E90: 127.1 | F90: 126.2 | G90: 129.4 | H90: 126.9 | J90: 129.2 | K90: 126.8
B91: 2017-12-01 | C91: 126.9 | D91: 130.3 | E91: 127.7 | F91: 126.8 | G91: 130.3 | H91: 127.6 | J91: 129.4 | K91: 127.2
B92: 2018-03-01 | C92: 127.4 | D92: 131 | E92: 128.2 | F92: 127.4 | G92: 131 | H92: 128.2 | J92: 130.3 | K92: 127.8
B93: 2018-06-01 | C93: 127.9 | D93: 131.5 | E93: 128.7 | F93: 128.2 | G93: 131.7 | H93: 129 | J93: 130.5 | K93: 128.3 | N93: =AVERAGE(C90:C93)/AVERAGE(C86:C89)-1 -> 0.0194427741 | O93: 0.02371618973 | P93: 0.02054248105 | Q93: 0.0194427741 | R93: 0.0239121913 | S93: 0.02054248105 | T93: =AVERAGE(J90:J93)/AVERAGE(J86:J89)-1 -> 0.02364998029 | U93: 0.02081248749
B94: 2018-09-01 | C94: 129.2 | D94: 132.7 | E94: 130 | F94: 128.9 | G94: 132.7 | H94: 129.8 | J94: 132.5 | K94: 129.8
B95: 2018-12-01 | C95: 129.8 | D95: 133.6 | E95: 130.6 | F95: 129.7 | G95: 133.6 | H95: 130.5 | J95: 133 | K95: 130.3
B96: 2019-03-01 | C96: 130.3 | D96: 134.2 | E96: 131.2 | F96: 130.4 | G96: 134.1 | H96: 131.2 | J96: 133.6 | K96: 130.8
B97: 2019-06-01 | C97: 130.8 | D97: 135 | E97: 131.8 | F97: 131.1 | G97: 135.2 | H97: 132 | J97: 133.9 | K97: 131.3 | N97: =AVERAGE(C94:C97)/AVERAGE(C90:C93)-1 -> 0.02261108926 | O97: 0.02527283171 | P97: 0.02325581395 | Q97: 0.02261108926 | R97: 0.02526799387 | S97: 0.02306038695 | T97: =AVERAGE(J94:J97)/AVERAGE(J90:J93)-1 -> 0.02618405853 | U97: 0.02372083905
B98: 2019-09-01 | C98: 132 | D98: 136 | E98: 132.9 | F98: 131.8 | G98: 135.9 | H98: 132.7 | J98: 135.7 | K98: 132.6
B99: 2019-12-01 | C99: 132.6 | D99: 136.6 | E99: 133.5 | F99: 132.5 | G99: 136.5 | H99: 133.4 | J99: 136.1 | K99: 133.1
B100: 2020-03-01 | C100: 133.1 | D100: 137.3 | E100: 134.1 | F100: 133.2 | G100: 137.3 | H100: 134.1 | J100: 136.8 | K100: 133.6
B101: 2020-06-01 | C101: 133 | D101: 137.9 | E101: 134.1 | F101: 133.3 | G101: 138 | H101: 134.4 | J101: 137 | K101: 133.6 | N101: =AVERAGE(C98:C101)/AVERAGE(C94:C97)-1 -> 0.02038069602 | O101: 0.02296918768 | P101: 0.02100840336 | Q101: 0.02057296674 | R101: 0.02259148618 | S101: 0.0212034384 | T101: =AVERAGE(J98:J101)/AVERAGE(J94:J97)-1 -> 0.02363977486 | U101: 0.02049023363
B102: 2020-09-01 | C102: 133.7 | D102: 138.4 | E102: 134.7 | F102: 133.4 | G102: 138.3 | H102: 134.5 | J102: 137.5 | K102: 134.4
B103: 2020-12-01 | C103: 134.4 | D103: 138.8 | E103: 135.4 | F103: 134.3 | G103: 138.7 | H103: 135.3 | J103: 137.6 | K103: 134.9
B104: 2021-03-01 | C104: 135.1 | D104: 139.4 | E104: 136.1 | F104: 135.2 | G104: 139.3 | H104: 136.1 | J104: 138.3 | K104: 135.6
B105: 2021-06-01 | C105: 135.5 | D105: 139.7 | E105: 136.5 | F105: 135.9 | G105: 139.8 | H105: 136.8 | J105: 138.5 | K105: 136 | N105: =AVERAGE(C102:C105)/AVERAGE(C98:C101)-1 -> 0.01507443 | O105: 0.0155166119 | P105: 0.01515151515 | Q105: 0.01507159005 | R105: 0.01533686325 | S105: 0.01515151515 | T105: =AVERAGE(J102:J105)/AVERAGE(J98:J101)-1 -> 0.01154692082 | U105: 0.01501219741
B106: 2021-09-01 | C106: 136.8 | D106: 140.7 | E106: 137.7 | F106: 136.5 | G106: 140.6 | H106: 137.5 | J106: 139.7 | K106: 137.2
B107: 2021-12-01 | C107: 137.6 | D107: 141.7 | E107: 138.5 | F107: 137.5 | G107: 141.6 | H107: 138.4 | J107: 140.7 | K107: 138.1
B108: 2022-03-01 | C108: 138.3 | D108: 142.5 | E108: 139.3 | F108: 138.4 | G108: 142.4 | H108: 139.3 | J108: 141.3 | K108: 138.9
B109: 2022-06-01 | C109: 139.2 | D109: 143.1 | E109: 140.1 | F109: 139.5 | G109: 143.2 | H109: 140.4 | J109: 141.4 | K109: 139.6 | N109: =AVERAGE(C106:C109)/AVERAGE(C102:C105)-1 -> 0.02450343419 | O109: 0.02103181736 | P109: 0.0237700387 | Q109: 0.02431328879 | R109: 0.02103938141 | S109: 0.0237700387 | T109: =AVERAGE(J106:J109)/AVERAGE(J102:J105)-1 -> 0.02029353144 | U109: 0.02384914032
B110: 2022-09-01 | C110: 141.5 | D110: 144 | E110: 142.1 | F110: 141.2 | G110: 144.1 | H110: 141.9 | J110: 142.2 | K110: 141.5
B111: 2022-12-01 | C111: 142.6 | D111: 145.2 | E111: 143.2 | F111: 142.4 | G111: 145.1 | H111: 143 | J111: 144.2 | K111: 142.7
B112: 2023-03-01 | C112: 143.6 | D112: 146.7 | E112: 144.3 | J112: 145 | K112: 143.7
B115: Change in WPI, average of 4 quarters to June | X115: Indices
N116: Aust, Private | O116: Aust, Public | P116: Aust, Private and Public | T116: NSW, Public | U116: NSW, Private and Public | X116: =N116 -> Aust, Private | Y116: =O116 -> Aust, Public | Z116: Aust, Private and Public | AA116: =T116 -> NSW, Public | AB116: =U116 -> NSW, Private and Public
B117: =B53 -> 2008-06-01 | N117: =INDEX(N$21:N$109,MATCH($B117,$B$21:$B$109,0)) -> 0.04284164859 | O117: 0.04092140921 | P117: 0.04227642276 | T117: 0.03953738569 | U117: 0.03880355699
B118: =B57 -> 2009-06-01 | N118: 0.04004160166 | O118: 0.0416558188 | P118: 0.04004160166 | T118: 0.03492884864 | U118: 0.03787289235
B119: =B61 -> 2010-06-01 | N119: =INDEX(N$21:N$109,MATCH($B119,$B$21:$B$109,0)) -> 0.0275 | O119: 0.04223944014 | P119: 0.03125 | T119: 0.045 | U119: 0.03124218945
B120: =B65 -> 2011-06-01 | N120: 0.03819951338 | O120: 0.0381294964 | P120: 0.03781818182 | T120: 0.03708133971 | U120: 0.03756665051
B121: =B69 -> 2012-06-01 | N121: 0.03773142723 | O121: 0.03210903211 | P121: 0.03620649381 | T121: 0.030911188 | U121: 0.03573931324
B122: =B73 -> 2013-06-01 | N122: 0.03297199639 | O122: 0.03155774396 | P122: 0.03313796213 | T122: 0.03065562766 | U122: 0.03112313938
B123: =B77 -> 2014-06-01 | N123: 0.02601661565 | O123: 0.02820568453 | P123: 0.02618372245 | T123: 0.02496743378 | U123: 0.02471566054 | X123: 100 | Y123: 100 | Z123: 100 | AA123: 100 | AB123: 100
B124: =B81 -> 2015-06-01 | N124: 0.02343916471 | O124: 0.02616585778 | P124: 0.02402721667 | T124: 0.02520652404 | U124: 0.02305229456 | X124: =X123*(1+N124) -> 102.3439165 | Y124: =Y123*(1+O124) -> 102.6165858 | Z124: 102.4027217 | AA124: =AA123*(1+T124) -> 102.5206524 | AB124: 102.3052295
B125: =B85 -> 2016-06-01 | N125: 0.01998750781 | O125: 0.02488176023 | P125: 0.02117940199 | T125: 0.02314049587 | U125: 0.02128103484 | X125: =X124*(1+N125) -> 104.3895163 | Y125: =Y124*(1+O125) -> 105.1698671 | Z125: =Z124*(1+P125) -> 104.5715501 | AA125: 104.8930311 | AB125: 104.4823906
B126: =B89 -> 2017-06-01 | N126: 0.01837109614 | O126: 0.02367576244 | P126: 0.01952013013 | T126: 0.0246365105 | U126: 0.02083758938 | X126: 106.3072661 | Y126: 107.6598438 | Z126: 106.6128003 | AA126: 107.4772294 | AB126: 106.6595518
B127: =B93 -> 2018-06-01 | N127: 0.0194427741 | O127: 0.02371618973 | P127: 0.02054248105 | T127: 0.02364998029 | U127: 0.02081248749 | X127: 108.3741743 | Y127: 110.2131251 | Z127: 108.8028918 | AA127: 110.0190638 | AB127: 108.8794023
B128: =B97 -> 2019-06-01 | N128: 0.02261108926 | O128: 0.02527283171 | P128: 0.02325581395 | T128: 0.02618405853 | U128: 0.02372083905 | X128: 110.8246324 | Y128: 112.9985229 | Z128: 111.3331916 | AA128: 112.8998094 | AB128: 111.4621131
B129: =B101 -> 2020-06-01 | N129: 0.02038069602 | O129: 0.02296918768 | P129: 0.02100840336 | T129: 0.02363977486 | U129: 0.02049023363 | X129: 113.0833156 | Y129: 115.5940072 | Z129: 113.6721242 | AA129: 115.5687354 | AB129: 113.7459979
B130: =B105 -> 2021-06-01 | N130: 0.01507443 | O130: 0.0155166119 | P130: 0.01515151515 | T130: 0.01154692082 | U130: 0.01501219741 | X130: 114.7879821 | Y130: 117.3876345 | Z130: 115.3944291 | AA130: 116.9031985 | AB130: 115.4535752
B131: =B109 -> 2022-06-01 | N131: =INDEX(N$21:N$109,MATCH($B131,$B$21:$B$109,0)) -> 0.02450343419 | O131: 0.02103181736 | P131: =INDEX(P$21:P$109,MATCH($B131,$B$21:$B$109,0)) -> 0.0237700387 | T131: 0.02029353144 | U131: 0.02384914032 | X131: 117.6006819 | Y131: 119.8565098 | Z131: 118.1373591 | AA131: 119.2755772 | AB131: 118.2070438

Sheet Calculations--->
B14: Deliberately blank worksheet

Sheet BCC Preferred
B2: =Cover!$B$3 -> Review of rate peg methodology - Draft report Base Cost Change (BCC) options
B4: Calculation of Preferred BCC using Award/RBA WPI for employee costs
B8: Table 1 | C8: Selected changes in costs
B11: =Inputs!B44 -> BCC for 1 July | C11: =Inputs!C44 -> BCC for FY | D11: =Inputs!D44 -> Report date for forecasts | E11: =Inputs!E44 -> Forecast to June | G11: Other costs | H11: Labour costs | I11: Asset costs
B14: Selected option | G14: =Inputs!F46 -> RBA CPI forecast | H14: =Inputs!O70 -> Award with RBA forecast when Award not available | I14: =Inputs!J109 -> 'Forecast PPI' = Forecast CPI + 5 yr PPI premium
B15: =Inputs!B48 -> 2011 | C15: =Inputs!C48 -> 2011-12 | D15: =Inputs!D48 -> Aug- 10 | E15: =Inputs!E48 -> 2012 | G15: =Inputs!H48 -> 0.02875 | H15: =Inputs!O71 -> 0.0375
B16: =Inputs!B49 -> 2012 | C16: =Inputs!C49 -> 2012-13 | D16: =Inputs!D49 -> Aug- 11 | E16: =Inputs!E49 -> 2013 | G16: =Inputs!H49 -> 0.03625 | H16: =Inputs!O72 -> 0.0325
B17: =Inputs!B50 -> 2013 | C17: =Inputs!C50 -> 2013-14 | D17: =Inputs!D50 -> Aug- 12 | E17: =Inputs!E50 -> 2014 | G17: =Inputs!H50 -> 0.025 | H17: =Inputs!O73 -> 0.035
B18: =Inputs!B51 -> 2014 | C18: =Inputs!C51 -> 2014-15 | D18: =Inputs!D51 -> Aug- 13 | E18: =Inputs!E51 -> 2015 | G18: =Inputs!H51 -> 0.025 | H18: =Inputs!O74 -> 0.0375
B19: =Inputs!B52 -> 2015 | C19: =Inputs!C52 -> 2015-16 | D19: =Inputs!D52 -> Aug- 14 | E19: =Inputs!E52 -> 2016 | G19: =Inputs!H52 -> 0.03 | H19: =Inputs!O75 -> 0.027
B20: =Inputs!B53 -> 2016 | C20: =Inputs!C53 -> 2016-17 | D20: =Inputs!D53 -> Aug- 15 | E20: =Inputs!E53 -> 2017 | G20: =Inputs!H53 -> 0.025 | H20: =Inputs!O76 -> 0.028 | I20: =Inputs!$J120 -> 0.03410802317
B21: =Inputs!B54 -> 2017 | C21: =Inputs!C54 -> 2017-18 | D21: =Inputs!D54 -> Aug- 16 | E21: =Inputs!E54 -> 2018 | G21: =Inputs!H54 -> 0.02 | H21: =Inputs!O77 -> 0.0275 | I21: =Inputs!$J121 -> 0.02851885447
B22: =Inputs!B55 -> 2018 | C22: =Inputs!C55 -> 2018-19 | D22: =Inputs!D55 -> Aug- 17 | E22: =Inputs!E55 -> 2019 | G22: =Inputs!H55 -> 0.02375 | H22: =Inputs!O78 -> 0.025 | I22: =Inputs!$J122 -> 0.02292554998
B23: =Inputs!B56 -> 2019 | C23: =Inputs!C56 -> 2019-20 | D23: =Inputs!D56 -> Aug- 18 | E23: =Inputs!E56 -> 2020 | G23: =Inputs!H56 -> 0.0225 | H23: =Inputs!O79 -> 0.025 | I23: =Inputs!$J123 -> 0.01982926647
B24: =Inputs!B57 -> 2020 | C24: =Inputs!C57 -> 2020-21 | D24: =Inputs!D57 -> Aug- 19 | E24: =Inputs!E57 -> 2021 | G24: =Inputs!H57 -> 0.0195 | H24: =Inputs!O80 -> 0.0235 | I24: =Inputs!$J124 -> 0.02013078533
B25: =Inputs!B58 -> 2021 | C25: =Inputs!C58 -> 2021-22 | D25: =Inputs!D58 -> Aug- 20 | E25: =Inputs!E58 -> 2022 | G25: =Inputs!H58 -> 0.01125 | H25: =Inputs!O81 -> 0.025 | I25: =Inputs!$J125 -> 0.0115325711
B26: =Inputs!B59 -> 2022 | C26: =Inputs!C59 -> 2022-23 | D26: =Inputs!D59 -> Aug- 21 | E26: =Inputs!E59 -> 2023 | G26: =Inputs!H59 -> 0.01875 | H26: =Inputs!O82 -> 0.025 | I26: =Inputs!$J126 -> 0.019640614
B27: =Inputs!B60 -> 2023 | C27: =Inputs!C60 -> 2023-24 | D27: =Inputs!D60 -> Aug- 22 | E27: =Inputs!E60 -> 2024 | G27: =Inputs!H60 -> 0.039 | H27: =Inputs!O83 -> 0.042 | I27: =Inputs!$J127 -> 0.04470052662
B30: Table 2 | C30: 3-factor BCC 3 groups
B31: Metropolitan | D31: =D$11 -> Report date for forecasts | E31: =E$11 -> Forecast to June | G31: =G11 -> Other costs | H31: =H11 -> Labour costs | I31: Asset costs | J31: 3-factor BCC
B32: Selected option | J32: (rounded)
B33: Weight | G33: =Inputs!E$31 -> 0.41 | H33: =Inputs!F$31 -> 0.41 | I33: =Inputs!G$31 -> 0.18 | J33: =SUM(G33:I33)-1 -> 0
B34: =C$20 -> 2016-17 | D34: =D$20 -> Aug- 15 | E34: =E$20 -> 2017 | G34: =G$20 -> 0.025 | H34: =H$20 -> 0.028 | I34: =I$20 -> 0.03410802317 | J34: =ROUND(SUMPRODUCT($G$33:$I$33,G34:I34),3) -> 0.028
B35: =C$21 -> 2017-18 | D35: =D$21 -> Aug- 16 | E35: =E$21 -> 2018 | G35: =G$21 -> 0.02 | H35: =H$21 -> 0.0275 | I35: =I21 -> 0.02851885447 | J35: =ROUND(SUMPRODUCT($G$33:$I$33,G35:I35),3) -> 0.025
B36: =C$22 -> 2018-19 | D36: =D$22 -> Aug- 17 | E36: =E$22 -> 2019 | G36: =G$22 -> 0.02375 | H36: =H$22 -> 0.025 | I36: 0.02292554998 | J36: 0.024
B37: =C$23 -> 2019-20 | D37: =D$23 -> Aug- 18 | E37: =E$23 -> 2020 | G37: =G$23 -> 0.0225 | H37: =H$23 -> 0.025 | I37: 0.01982926647 | J37: 0.023
B38: =C$24 -> 2020-21 | D38: =D$24 -> Aug- 19 | E38: =E$24 -> 2021 | G38: =G$24 -> 0.0195 | H38: =H$24 -> 0.0235 | I38: 0.02013078533 | J38: 0.021
B39: =C$25 -> 2021-22 | D39: =D$25 -> Aug- 20 | E39: =E$25 -> 2022 | G39: =G$25 -> 0.01125 | H39: =H$25 -> 0.025 | I39: 0.0115325711 | J39: 0.017
B40: =C$26 -> 2022-23 | D40: =D$26 -> Aug- 21 | E40: =E$26 -> 2023 | G40: =G$26 -> 0.01875 | H40: =H$26 -> 0.025 | I40: 0.019640614 | J40: 0.021
B41: =C$27 -> 2023-24 | D41: =D$27 -> Aug- 22 | E41: =E$27 -> 2024 | G41: =G$27 -> 0.039 | H41: =H$27 -> 0.042 | I41: 0.04470052662 | J41: 0.041
B43: =Inputs!$B$34 -> Regional
B44: Selected option
B45: Weight | G45: =Inputs!E$34 -> 0.4 | H45: =Inputs!F$34 -> 0.37 | I45: =Inputs!G$34 -> 0.23 | J45: =SUM(G45:I45)-1 -> 0
B46: =C$20 -> 2016-17 | D46: =D$20 -> Aug- 15 | E46: =E$20 -> 2017 | G46: =G$20 -> 0.025 | H46: =H$20 -> 0.028 | I46: =I20 -> 0.03410802317 | J46: =ROUND(SUMPRODUCT($G$45:$I$45,G46:I46),3) -> 0.028
B47: =C$21 -> 2017-18 | D47: =D$21 -> Aug- 16 | E47: =E$21 -> 2018 | G47: =G$21 -> 0.02 | H47: =H$21 -> 0.0275 | I47: 0.02851885447 | J47: =ROUND(SUMPRODUCT($G$45:$I$45,G47:I47),3) -> 0.025
B48: =C$22 -> 2018-19 | D48: =D$22 -> Aug- 17 | E48: =E$22 -> 2019 | G48: =G$22 -> 0.02375 | H48: =H$22 -> 0.025 | I48: 0.02292554998 | J48: 0.024
B49: =C$23 -> 2019-20 | D49: =D$23 -> Aug- 18 | E49: =E$23 -> 2020 | G49: =G$23 -> 0.0225 | H49: =H$23 -> 0.025 | I49: 0.01982926647 | J49: 0.023
B50: =C$24 -> 2020-21 | D50: =D$24 -> Aug- 19 | E50: =E$24 -> 2021 | G50: =G$24 -> 0.0195 | H50: =H$24 -> 0.0235 | I50: 0.02013078533 | J50: 0.021
B51: =C$25 -> 2021-22 | D51: =D$25 -> Aug- 20 | E51: =E$25 -> 2022 | G51: =G$25 -> 0.01125 | H51: =H$25 -> 0.025 | I51: 0.0115325711 | J51: 0.016
B52: =C$26 -> 2022-23 | D52: =D$26 -> Aug- 21 | E52: =E$26 -> 2023 | G52: =G$26 -> 0.01875 | H52: =H$26 -> 0.025 | I52: 0.019640614 | J52: 0.021
B53: =C$27 -> 2023-24 | D53: =D$27 -> Aug- 22 | E53: =E$27 -> 2024 | G53: =G$27 -> 0.039 | H53: =H$27 -> 0.042 | I53: 0.04470052662 | J53: 0.041
B55: =Inputs!$B$35 -> Rural
B56: Selected option
B57: Weight | G57: =Inputs!E$35 -> 0.38 | H57: =Inputs!F$35 -> 0.36 | I57: =Inputs!G$35 -> 0.26 | J57: =SUM(G57:I57)-1 -> 0
B58: =C$20 -> 2016-17 | D58: =D$20 -> Aug- 15 | E58: =E$20 -> 2017 | G58: =G$20 -> 0.025 | H58: =H$20 -> 0.028 | I58: =I20 -> 0.03410802317 | J58: =ROUND(SUMPRODUCT($G$57:$I$57,G58:I58),3) -> 0.028
B59: =C$21 -> 2017-18 | D59: =D$21 -> Aug- 16 | E59: =E$21 -> 2018 | G59: =G$21 -> 0.02 | H59: =H$21 -> 0.0275 | I59: 0.02851885447 | J59: =ROUND(SUMPRODUCT($G$57:$I$57,G59:I59),3) -> 0.025
B60: =C$22 -> 2018-19 | D60: =D$22 -> Aug- 17 | E60: =E$22 -> 2019 | G60: =G$22 -> 0.02375 | H60: =H$22 -> 0.025 | I60: 0.02292554998 | J60: 0.024
B61: =C$23 -> 2019-20 | D61: =D$23 -> Aug- 18 | E61: =E$23 -> 2020 | G61: =G$23 -> 0.0225 | H61: =H$23 -> 0.025 | I61: 0.01982926647 | J61: 0.023
B62: =C$24 -> 2020-21 | D62: =D$24 -> Aug- 19 | E62: =E$24 -> 2021 | G62: =G$24 -> 0.0195 | H62: =H$24 -> 0.0235 | I62: 0.02013078533 | J62: 0.021
B63: =C$25 -> 2021-22 | D63: =D$25 -> Aug- 20 | E63: =E$25 -> 2022 | G63: =G$25 -> 0.01125 | H63: =H$25 -> 0.025 | I63: 0.0115325711 | J63: 0.016
B64: =C$26 -> 2022-23 | D64: =D$26 -> Aug- 21 | E64: =E$26 -> 2023 | G64: =G$26 -> 0.01875 | H64: =H$26 -> 0.025 | I64: 0.019640614 | J64: 0.021
B65: =C$27 -> 2023-24 | D65: =D$27 -> Aug- 22 | E65: =E$27 -> 2024 | G65: =G$27 -> 0.039 | H65: =H$27 -> 0.042 | I65: 0.04470052662 | J65: 0.042
B70: Table 4 | C70: 3-factor BCC, NSW total
B71: NSW | G71: =G11 -> Other costs | H71: =H11 -> Labour costs | I71: =I11 -> Asset costs | J71: 3-factor BCC
B72: Weight | G72: =Inputs!E$38 -> 0.4 | H72: =Inputs!F$38 -> 0.39 | I72: =Inputs!G$38 -> 0.21 | J72: =SUM(G72:I72)-1 -> 0
B73: =B19 -> 2015 | D73: =D19 -> Aug- 14 | E73: 2016 | G73: =G19 -> 0.03 | H73: 0.027
B74: 2016 | D74: Aug- 15 | E74: 2017 | G74: 0.025 | H74: 0.028 | I74: =I20 -> 0.03410802317 | J74: =ROUND(SUMPRODUCT($G$72:$I$72,G74:I74),3) -> 0.028
B75: 2017 | D75: Aug- 16 | E75: 2018 | G75: 0.02 | H75: 0.0275 | I75: 0.02851885447 | J75: =ROUND(SUMPRODUCT($G$72:$I$72,G75:I75),3) -> 0.025
B76: 2018 | D76: Aug- 17 | E76: 2019 | G76: 0.02375 | H76: 0.025 | I76: 0.02292554998 | J76: 0.024
B77: 2019 | D77: Aug- 18 | E77: 2020 | G77: 0.0225 | H77: 0.025 | I77: 0.01982926647 | J77: 0.023
B78: 2020 | D78: Aug- 19 | E78: 2021 | G78: 0.0195 | H78: 0.0235 | I78: 0.02013078533 | J78: 0.021
B79: 2021 | D79: Aug- 20 | E79: 2022 | G79: 0.01125 | H79: 0.025 | I79: 0.0115325711 | J79: 0.017
B80: 2022 | D80: Aug- 21 | E80: 2023 | G80: 0.01875 | H80: 0.025 | I80: 0.019640614 | J80: 0.021
B81: 2023 | D81: Aug- 22 | E81: 2024 | G81: 0.039 | H81: 0.042 | I81: 0.04470052662 | J81: 0.041
A98: =#REF!+1 -> 

Sheet BCC Option 1 RBA WPI
B2: =Cover!$B$3 -> Review of rate peg methodology - Draft report Base Cost Change (BCC) options
B4: Calculation of Option 1 BCC using only RBA WPI forecasts for employee costs
B8: Table 1 | C8: Selected changes in costs
B11: =Inputs!B44 -> BCC for 1 July | C11: =Inputs!C44 -> BCC for FY | D11: =Inputs!D44 -> Report date for forecasts | E11: =Inputs!E44 -> Forecast to June | G11: Other costs | H11: Labour costs | I11: Asset costs
B14: Selected option | G14: =Inputs!F46 -> RBA CPI forecast | H14: =Inputs!M70 -> RBA forecast | I14: =Inputs!J109 -> 'Forecast PPI' = Forecast CPI + 5 yr PPI premium
B15: =Inputs!B48 -> 2011 | C15: =Inputs!C48 -> 2011-12 | D15: =Inputs!D48 -> Aug- 10 | E15: =Inputs!E48 -> 2012 | G15: =Inputs!H48 -> 0.02875 | H15: =Inputs!M71 -> 0.0375
B16: =Inputs!B49 -> 2012 | C16: =Inputs!C49 -> 2012-13 | D16: =Inputs!D49 -> Aug- 11 | E16: =Inputs!E49 -> 2013 | G16: =Inputs!H49 -> 0.03625 | H16: =Inputs!M72 -> 0.04
B17: =Inputs!B50 -> 2013 | C17: =Inputs!C50 -> 2013-14 | D17: =Inputs!D50 -> Aug- 12 | E17: =Inputs!E50 -> 2014 | G17: =Inputs!H50 -> 0.025 | H17: =Inputs!M73 -> 0.0375
B18: =Inputs!B51 -> 2014 | C18: =Inputs!C51 -> 2014-15 | D18: =Inputs!D51 -> Aug- 13 | E18: =Inputs!E51 -> 2015 | G18: =Inputs!H51 -> 0.025 | H18: =Inputs!M74 -> 0.0375
B19: =Inputs!B52 -> 2015 | C19: =Inputs!C52 -> 2015-16 | D19: =Inputs!D52 -> Aug- 14 | E19: =Inputs!E52 -> 2016 | G19: =Inputs!H52 -> 0.03 | H19: =Inputs!M75 -> 0.035
B20: =Inputs!B53 -> 2016 | C20: =Inputs!C53 -> 2016-17 | D20: =Inputs!D53 -> Aug- 15 | E20: =Inputs!E53 -> 2017 | G20: =Inputs!H53 -> 0.025 | H20: =Inputs!M76 -> 0.0275 | I20: =Inputs!$J120 -> 0.03410802317
B21: =Inputs!B54 -> 2017 | C21: =Inputs!C54 -> 2017-18 | D21: =Inputs!D54 -> Aug- 16 | E21: =Inputs!E54 -> 2018 | G21: =Inputs!H54 -> 0.02 | H21: =Inputs!M77 -> 0.0275 | I21: =Inputs!$J121 -> 0.02851885447
B22: =Inputs!B55 -> 2018 | C22: =Inputs!C55 -> 2018-19 | D22: =Inputs!D55 -> Aug- 17 | E22: =Inputs!E55 -> 2019 | G22: =Inputs!H55 -> 0.02375 | H22: =Inputs!M78 -> 0.025 | I22: =Inputs!$J122 -> 0.02292554998
B23: =Inputs!B56 -> 2019 | C23: =Inputs!C56 -> 2019-20 | D23: =Inputs!D56 -> Aug- 18 | E23: =Inputs!E56 -> 2020 | G23: =Inputs!H56 -> 0.0225 | H23: =Inputs!M79 -> 0.0275 | I23: =Inputs!$J123 -> 0.01982926647
B24: =Inputs!B57 -> 2020 | C24: =Inputs!C57 -> 2020-21 | D24: =Inputs!D57 -> Aug- 19 | E24: =Inputs!E57 -> 2021 | G24: =Inputs!H57 -> 0.0195 | H24: =Inputs!M80 -> 0.0235 | I24: =Inputs!$J124 -> 0.02013078533
B25: =Inputs!B58 -> 2021 | C25: =Inputs!C58 -> 2021-22 | D25: =Inputs!D58 -> Aug- 20 | E25: =Inputs!E58 -> 2022 | G25: =Inputs!H58 -> 0.01125 | H25: =Inputs!M81 -> 0.01875 | I25: =Inputs!$J125 -> 0.0115325711
B26: =Inputs!B59 -> 2022 | C26: =Inputs!C59 -> 2022-23 | D26: =Inputs!D59 -> Aug- 21 | E26: =Inputs!E59 -> 2023 | G26: =Inputs!H59 -> 0.01875 | H26: =Inputs!M82 -> 0.03 | I26: =Inputs!$J126 -> 0.019640614
B27: =Inputs!B60 -> 2023 | C27: =Inputs!C60 -> 2023-24 | D27: =Inputs!D60 -> Aug- 22 | E27: =Inputs!E60 -> 2024 | G27: =Inputs!H60 -> 0.039 | H27: =Inputs!M83 -> 0.042 | I27: =Inputs!$J127 -> 0.04470052662
B30: Table 2 | C30: 3-factor BCC 3 groups
B31: Metropolitan | D31: =D$11 -> Report date for forecasts | E31: =E$11 -> Forecast to June | G31: =G11 -> Other costs | H31: =H11 -> Labour costs | I31: Asset costs | J31: 3-factor BCC
B32: Selected option | J32: (rounded)
B33: Weight | G33: =Inputs!E$31 -> 0.41 | H33: =Inputs!F$31 -> 0.41 | I33: =Inputs!G$31 -> 0.18 | J33: =SUM(G33:I33)-1 -> 0
B34: =C$20 -> 2016-17 | D34: =D$20 -> Aug- 15 | E34: =E$20 -> 2017 | G34: =G$20 -> 0.025 | H34: =H$20 -> 0.0275 | I34: =I$20 -> 0.03410802317 | J34: =ROUND(SUMPRODUCT($G$33:$I$33,G34:I34),3) -> 0.028
B35: =C$21 -> 2017-18 | D35: =D$21 -> Aug- 16 | E35: =E$21 -> 2018 | G35: =G$21 -> 0.02 | H35: =H$21 -> 0.0275 | I35: =I21 -> 0.02851885447 | J35: =ROUND(SUMPRODUCT($G$33:$I$33,G35:I35),3) -> 0.025
B36: =C$22 -> 2018-19 | D36: =D$22 -> Aug- 17 | E36: =E$22 -> 2019 | G36: =G$22 -> 0.02375 | H36: =H$22 -> 0.025 | I36: 0.02292554998 | J36: 0.024
B37: =C$23 -> 2019-20 | D37: =D$23 -> Aug- 18 | E37: =E$23 -> 2020 | G37: =G$23 -> 0.0225 | H37: =H$23 -> 0.0275 | I37: 0.01982926647 | J37: 0.024
B38: =C$24 -> 2020-21 | D38: =D$24 -> Aug- 19 | E38: =E$24 -> 2021 | G38: =G$24 -> 0.0195 | H38: =H$24 -> 0.0235 | I38: 0.02013078533 | J38: 0.021
B39: =C$25 -> 2021-22 | D39: =D$25 -> Aug- 20 | E39: =E$25 -> 2022 | G39: =G$25 -> 0.01125 | H39: =H$25 -> 0.01875 | I39: 0.0115325711 | J39: 0.014
B40: =C$26 -> 2022-23 | D40: =D$26 -> Aug- 21 | E40: =E$26 -> 2023 | G40: =G$26 -> 0.01875 | H40: =H$26 -> 0.03 | I40: 0.019640614 | J40: 0.024
B41: =C$27 -> 2023-24 | D41: =D$27 -> Aug- 22 | E41: =E$27 -> 2024 | G41: =G$27 -> 0.039 | H41: =H$27 -> 0.042 | I41: 0.04470052662 | J41: 0.041
B43: =Inputs!$B$34 -> Regional
B44: Selected option
B45: Weight | G45: =Inputs!E$34 -> 0.4 | H45: =Inputs!F$34 -> 0.37 | I45: =Inputs!G$34 -> 0.23 | J45: =SUM(G45:I45)-1 -> 0
B46: =C$20 -> 2016-17 | D46: =D$20 -> Aug- 15 | E46: =E$20 -> 2017 | G46: =G$20 -> 0.025 | H46: =H$20 -> 0.0275 | I46: =I20 -> 0.03410802317 | J46: =ROUND(SUMPRODUCT($G$45:$I$45,G46:I46),3) -> 0.028
B47: =C$21 -> 2017-18 | D47: =D$21 -> Aug- 16 | E47: =E$21 -> 2018 | G47: =G$21 -> 0.02 | H47: =H$21 -> 0.0275 | I47: 0.02851885447 | J47: =ROUND(SUMPRODUCT($G$45:$I$45,G47:I47),3) -> 0.025
B48: =C$22 -> 2018-19 | D48: =D$22 -> Aug- 17 | E48: =E$22 -> 2019 | G48: =G$22 -> 0.02375 | H48: =H$22 -> 0.025 | I48: 0.02292554998 | J48: 0.024
B49: =C$23 -> 2019-20 | D49: =D$23 -> Aug- 18 | E49: =E$23 -> 2020 | G49: =G$23 -> 0.0225 | H49: =H$23 -> 0.0275 | I49: 0.01982926647 | J49: 0.024
B50: =C$24 -> 2020-21 | D50: =D$24 -> Aug- 19 | E50: =E$24 -> 2021 | G50: =G$24 -> 0.0195 | H50: =H$24 -> 0.0235 | I50: 0.02013078533 | J50: 0.021
B51: =C$25 -> 2021-22 | D51: =D$25 -> Aug- 20 | E51: =E$25 -> 2022 | G51: =G$25 -> 0.01125 | H51: =H$25 -> 0.01875 | I51: 0.0115325711 | J51: 0.014
B52: =C$26 -> 2022-23 | D52: =D$26 -> Aug- 21 | E52: =E$26 -> 2023 | G52: =G$26 -> 0.01875 | H52: =H$26 -> 0.03 | I52: 0.019640614 | J52: 0.023
B53: =C$27 -> 2023-24 | D53: =D$27 -> Aug- 22 | E53: =E$27 -> 2024 | G53: =G$27 -> 0.039 | H53: =H$27 -> 0.042 | I53: 0.04470052662 | J53: 0.041
B55: =Inputs!$B$35 -> Rural
B56: Selected option
B57: Weight | G57: =Inputs!E$35 -> 0.38 | H57: =Inputs!F$35 -> 0.36 | I57: =Inputs!G$35 -> 0.26 | J57: =SUM(G57:I57)-1 -> 0
B58: =C$20 -> 2016-17 | D58: =D$20 -> Aug- 15 | E58: =E$20 -> 2017 | G58: =G$20 -> 0.025 | H58: =H$20 -> 0.0275 | I58: =I20 -> 0.03410802317 | J58: =ROUND(SUMPRODUCT($G$57:$I$57,G58:I58),3) -> 0.028
B59: =C$21 -> 2017-18 | D59: =D$21 -> Aug- 16 | E59: =E$21 -> 2018 | G59: =G$21 -> 0.02 | H59: =H$21 -> 0.0275 | I59: 0.02851885447 | J59: =ROUND(SUMPRODUCT($G$57:$I$57,G59:I59),3) -> 0.025
B60: =C$22 -> 2018-19 | D60: =D$22 -> Aug- 17 | E60: =E$22 -> 2019 | G60: =G$22 -> 0.02375 | H60: =H$22 -> 0.025 | I60: 0.02292554998 | J60: 0.024
B61: =C$23 -> 2019-20 | D61: =D$23 -> Aug- 18 | E61: =E$23 -> 2020 | G61: =G$23 -> 0.0225 | H61: =H$23 -> 0.0275 | I61: 0.01982926647 | J61: 0.024
B62: =C$24 -> 2020-21 | D62: =D$24 -> Aug- 19 | E62: =E$24 -> 2021 | G62: =G$24 -> 0.0195 | H62: =H$24 -> 0.0235 | I62: 0.02013078533 | J62: 0.021
B63: =C$25 -> 2021-22 | D63: =D$25 -> Aug- 20 | E63: =E$25 -> 2022 | G63: =G$25 -> 0.01125 | H63: =H$25 -> 0.01875 | I63: 0.0115325711 | J63: 0.014
B64: =C$26 -> 2022-23 | D64: =D$26 -> Aug- 21 | E64: =E$26 -> 2023 | G64: =G$26 -> 0.01875 | H64: =H$26 -> 0.03 | I64: 0.019640614 | J64: 0.023
B65: =C$27 -> 2023-24 | D65: =D$27 -> Aug- 22 | E65: =E$27 -> 2024 | G65: =G$27 -> 0.039 | H65: =H$27 -> 0.042 | I65: 0.04470052662 | J65: 0.042
B70: Table 4 | C70: 3-factor BCC, NSW total
B71: NSW | G71: =G11 -> Other costs | H71: =H11 -> Labour costs | I71: =I11 -> Asset costs | J71: 3-factor BCC
B72: Weight | G72: =Inputs!E$38 -> 0.4 | H72: =Inputs!F$38 -> 0.39 | I72: =Inputs!G$38 -> 0.21 | J72: =SUM(G72:I72)-1 -> 0
B73: =B19 -> 2015 | D73: =D19 -> Aug- 14 | E73: 2016 | G73: =G19 -> 0.03 | H73: 0.035
B74: 2016 | D74: Aug- 15 | E74: 2017 | G74: 0.025 | H74: 0.0275 | I74: =I20 -> 0.03410802317 | J74: =ROUND(SUMPRODUCT($G$72:$I$72,G74:I74),3) -> 0.028
B75: 2017 | D75: Aug- 16 | E75: 2018 | G75: 0.02 | H75: 0.0275 | I75: 0.02851885447 | J75: =ROUND(SUMPRODUCT($G$72:$I$72,G75:I75),3) -> 0.025
B76: 2018 | D76: Aug- 17 | E76: 2019 | G76: 0.02375 | H76: 0.025 | I76: 0.02292554998 | J76: 0.024
B77: 2019 | D77: Aug- 18 | E77: 2020 | G77: 0.0225 | H77: 0.0275 | I77: 0.01982926647 | J77: 0.024
B78: 2020 | D78: Aug- 19 | E78: 2021 | G78: 0.0195 | H78: 0.0235 | I78: 0.02013078533 | J78: 0.021
B79: 2021 | D79: Aug- 20 | E79: 2022 | G79: 0.01125 | H79: 0.01875 | I79: 0.0115325711 | J79: 0.014
B80: 2022 | D80: Aug- 21 | E80: 2023 | G80: 0.01875 | H80: 0.03 | I80: 0.019640614 | J80: 0.023
B81: 2023 | D81: Aug- 22 | E81: 2024 | G81: 0.039 | H81: 0.042 | I81: 0.04470052662 | J81: 0.041
A98: =#REF!+1 -> 

Sheet BCC Preferred with true-up
B2: =Cover!$B$3 -> Review of rate peg methodology - Draft report Base Cost Change (BCC) options
B4: Calculation of Preferred BCC with true-ups
B8: Table 1 | C8: Selected changes in costs
B11: =Inputs!B44 -> BCC for 1 July | C11: =Inputs!C44 -> BCC for FY | D11: =Inputs!D44 -> Report date for forecasts | E11: =Inputs!E44 -> Forecast to June | G11: Other costs | H11: Labour costs | I11: Asset costs
B14: Selected option | G14: =Inputs!L47 -> RBA CPI forecast + CPI true-up | H14: =Inputs!P70 -> Award with RBA forecast and true-up | I14: Forecast PPI" + true-up
B15: =Inputs!B48 -> 2011 | C15: =Inputs!C48 -> 2011-12 | D15: =Inputs!D48 -> Aug- 10 | E15: =Inputs!E48 -> 2012 | H15: =Inputs!P71 -> 0.0215
B16: =Inputs!B49 -> 2012 | C16: =Inputs!C49 -> 2012-13 | D16: =Inputs!D49 -> Aug- 11 | E16: =Inputs!E49 -> 2013 | H16: =Inputs!P72 -> 0.0325
B17: =Inputs!B50 -> 2013 | C17: =Inputs!C50 -> 2013-14 | D17: =Inputs!D50 -> Aug- 12 | E17: =Inputs!E50 -> 2014 | G17: =Inputs!L50 -> 0.01927379125 | H17: =Inputs!P73 -> 0.035
B18: =Inputs!B51 -> 2014 | C18: =Inputs!C51 -> 2014-15 | D18: =Inputs!D51 -> Aug- 13 | E18: =Inputs!E51 -> 2015 | G18: =Inputs!L51 -> 0.01150568892 | H18: =Inputs!P74 -> 0.0375
B19: =Inputs!B52 -> 2015 | C19: =Inputs!C52 -> 2015-16 | D19: =Inputs!D52 -> Aug- 14 | E19: =Inputs!E52 -> 2016 | G19: =Inputs!L52 -> 0.0321393643 | H19: =Inputs!P75 -> 0.018
B20: =Inputs!B53 -> 2016 | C20: =Inputs!C53 -> 2016-17 | D20: =Inputs!D53 -> Aug- 15 | E20: =Inputs!E53 -> 2017 | G20: =Inputs!L53 -> 0.01713877648 | H20: =Inputs!P76 -> 0.028 | I20: =Inputs!$M120 -> 0.01632766102
B21: =Inputs!B54 -> 2017 | C21: =Inputs!C54 -> 2017-18 | D21: =Inputs!D54 -> Aug- 16 | E21: =Inputs!E54 -> 2018 | G21: =Inputs!L54 -> 0.0038076293 | H21: =Inputs!P77 -> 0.0275 | I21: =Inputs!$M121 -> -0.002865891436
B22: =Inputs!B55 -> 2018 | C22: =Inputs!C55 -> 2018-19 | D22: =Inputs!D55 -> Aug- 17 | E22: =Inputs!E55 -> 2019 | G22: =Inputs!L55 -> 0.01583217913 | H22: =Inputs!P78 -> 0.021 | I22: =Inputs!$M122 -> -0.001828149671
B23: =Inputs!B56 -> 2019 | C23: =Inputs!C56 -> 2019-20 | D23: =Inputs!D56 -> Aug- 18 | E23: =Inputs!E56 -> 2020 | G23: =Inputs!L56 -> 0.02179187472 | H23: =Inputs!P79 -> 0.025 | I23: =Inputs!$M123 -> 0.01255815161
B24: =Inputs!B57 -> 2020 | C24: =Inputs!C57 -> 2020-21 | D24: =Inputs!D57 -> Aug- 19 | E24: =Inputs!E57 -> 2021 | G24: =Inputs!L57 -> 0.01222739924 | H24: =Inputs!P80 -> 0.0235 | I24: =Inputs!$M124 -> 0.03483250406
B25: =Inputs!B58 -> 2021 | C25: =Inputs!C58 -> 2021-22 | D25: =Inputs!D58 -> Aug- 20 | E25: =Inputs!E58 -> 2022 | G25: =Inputs!L58 -> 0.002112541073 | H25: =Inputs!P81 -> 0.0165 | I25: =Inputs!$M125 -> -0.0008308250628
B26: =Inputs!B59 -> 2022 | C26: =Inputs!C59 -> 2022-23 | D26: =Inputs!D59 -> Aug- 21 | E26: =Inputs!E59 -> 2023 | G26: =Inputs!L59 -> 0.01546271077 | H26: =Inputs!P82 -> 0.025 | I26: =Inputs!$M126 -> 0.01094323963
B27: =Inputs!B60 -> 2023 | C27: =Inputs!C60 -> 2023-24 | D27: =Inputs!D60 -> Aug- 22 | E27: =Inputs!E60 -> 2024 | G27: =Inputs!L60 -> 0.07220862582 | H27: =Inputs!P83 -> 0.042 | I27: =Inputs!$M127 -> 0.08550205642
B30: Table 2 | C30: 3-factor BCC 3 groups
B31: Metropolitan | D31: =D$11 -> Report date for forecasts | E31: =E$11 -> Forecast to June | G31: =G11 -> Other costs | H31: =H11 -> Labour costs | I31: Asset costs | J31: 3-factor BCC
B32: Selected option | J32: (rounded)
B33: Weight | G33: =Inputs!E$31 -> 0.41 | H33: =Inputs!F$31 -> 0.41 | I33: =Inputs!G$31 -> 0.18 | J33: =SUM(G33:I33)-1 -> 0
B34: =C$20 -> 2016-17 | D34: =D$20 -> Aug- 15 | E34: =E$20 -> 2017 | G34: =G$20 -> 0.01713877648 | H34: =H$20 -> 0.028 | I34: =I$20 -> 0.01632766102 | J34: =ROUND(SUMPRODUCT($G$33:$I$33,G34:I34),3) -> 0.021
B35: =C$21 -> 2017-18 | D35: =D$21 -> Aug- 16 | E35: =E$21 -> 2018 | G35: =G$21 -> 0.0038076293 | H35: =H$21 -> 0.0275 | I35: =I21 -> -0.002865891436 | J35: =ROUND(SUMPRODUCT($G$33:$I$33,G35:I35),3) -> 0.012
B36: =C$22 -> 2018-19 | D36: =D$22 -> Aug- 17 | E36: =E$22 -> 2019 | G36: =G$22 -> 0.01583217913 | H36: =H$22 -> 0.021 | I36: -0.001828149671 | J36: 0.015
B37: =C$23 -> 2019-20 | D37: =D$23 -> Aug- 18 | E37: =E$23 -> 2020 | G37: =G$23 -> 0.02179187472 | H37: =H$23 -> 0.025 | I37: 0.01255815161 | J37: 0.021
B38: =C$24 -> 2020-21 | D38: =D$24 -> Aug- 19 | E38: =E$24 -> 2021 | G38: =G$24 -> 0.01222739924 | H38: =H$24 -> 0.0235 | I38: 0.03483250406 | J38: 0.021
B39: =C$25 -> 2021-22 | D39: =D$25 -> Aug- 20 | E39: =E$25 -> 2022 | G39: =G$25 -> 0.002112541073 | H39: =H$25 -> 0.0165 | I39: -0.0008308250628 | J39: 0.007
B40: =C$26 -> 2022-23 | D40: =D$26 -> Aug- 21 | E40: =E$26 -> 2023 | G40: =G$26 -> 0.01546271077 | H40: =H$26 -> 0.025 | I40: 0.01094323963 | J40: 0.019
B41: =C$27 -> 2023-24 | D41: =D$27 -> Aug- 22 | E41: =E$27 -> 2024 | G41: =G$27 -> 0.07220862582 | H41: =H$27 -> 0.042 | I41: 0.08550205642 | J41: 0.062
B43: =Inputs!$B$34 -> Regional
B44: Selected option
B45: Weight | G45: =Inputs!E$34 -> 0.4 | H45: =Inputs!F$34 -> 0.37 | I45: =Inputs!G$34 -> 0.23 | J45: =SUM(G45:I45)-1 -> 0
B46: =C$20 -> 2016-17 | D46: =D$20 -> Aug- 15 | E46: =E$20 -> 2017 | G46: =G$20 -> 0.01713877648 | H46: =H$20 -> 0.028 | I46: =I20 -> 0.01632766102 | J46: =ROUND(SUMPRODUCT($G$45:$I$45,G46:I46),3) -> 0.021
B47: =C$21 -> 2017-18 | D47: =D$21 -> Aug- 16 | E47: =E$21 -> 2018 | G47: =G$21 -> 0.0038076293 | H47: =H$21 -> 0.0275 | I47: -0.002865891436 | J47: =ROUND(SUMPRODUCT($G$45:$I$45,G47:I47),3) -> 0.011
B48: =C$22 -> 2018-19 | D48: =D$22 -> Aug- 17 | E48: =E$22 -> 2019 | G48: =G$22 -> 0.01583217913 | H48: =H$22 -> 0.021 | I48: -0.001828149671 | J48: 0.014
B49: =C$23 -> 2019-20 | D49: =D$23 -> Aug- 18 | E49: =E$23 -> 2020 | G49: =G$23 -> 0.02179187472 | H49: =H$23 -> 0.025 | I49: 0.01255815161 | J49: 0.021
B50: =C$24 -> 2020-21 | D50: =D$24 -> Aug- 19 | E50: =E$24 -> 2021 | G50: =G$24 -> 0.01222739924 | H50: =H$24 -> 0.0235 | I50: 0.03483250406 | J50: 0.022
B51: =C$25 -> 2021-22 | D51: =D$25 -> Aug- 20 | E51: =E$25 -> 2022 | G51: =G$25 -> 0.002112541073 | H51: =H$25 -> 0.0165 | I51: -0.0008308250628 | J51: 0.007
B52: =C$26 -> 2022-23 | D52: =D$26 -> Aug- 21 | E52: =E$26 -> 2023 | G52: =G$26 -> 0.01546271077 | H52: =H$26 -> 0.025 | I52: 0.01094323963 | J52: 0.018
B53: =C$27 -> 2023-24 | D53: =D$27 -> Aug- 22 | E53: =E$27 -> 2024 | G53: =G$27 -> 0.07220862582 | H53: =H$27 -> 0.042 | I53: 0.08550205642 | J53: 0.064
B55: =Inputs!$B$35 -> Rural
B56: Selected option
B57: Weight | G57: =Inputs!E$35 -> 0.38 | H57: =Inputs!F$35 -> 0.36 | I57: =Inputs!G$35 -> 0.26 | J57: =SUM(G57:I57)-1 -> 0
B58: =C$20 -> 2016-17 | D58: =D$20 -> Aug- 15 | E58: =E$20 -> 2017 | G58: =G$20 -> 0.01713877648 | H58: =H$20 -> 0.028 | I58: =I20 -> 0.01632766102 | J58: =ROUND(SUMPRODUCT($G$57:$I$57,G58:I58),3) -> 0.021
B59: =C$21 -> 2017-18 | D59: =D$21 -> Aug- 16 | E59: =E$21 -> 2018 | G59: =G$21 -> 0.0038076293 | H59: =H$21 -> 0.0275 | I59: -0.002865891436 | J59: =ROUND(SUMPRODUCT($G$57:$I$57,G59:I59),3) -> 0.011
B60: =C$22 -> 2018-19 | D60: =D$22 -> Aug- 17 | E60: =E$22 -> 2019 | G60: =G$22 -> 0.01583217913 | H60: =H$22 -> 0.021 | I60: -0.001828149671 | J60: 0.013
B61: =C$23 -> 2019-20 | D61: =D$23 -> Aug- 18 | E61: =E$23 -> 2020 | G61: =G$23 -> 0.02179187472 | H61: =H$23 -> 0.025 | I61: 0.01255815161 | J61: 0.021
B62: =C$24 -> 2020-21 | D62: =D$24 -> Aug- 19 | E62: =E$24 -> 2021 | G62: =G$24 -> 0.01222739924 | H62: =H$24 -> 0.0235 | I62: 0.03483250406 | J62: 0.022
B63: =C$25 -> 2021-22 | D63: =D$25 -> Aug- 20 | E63: =E$25 -> 2022 | G63: =G$25 -> 0.002112541073 | H63: =H$25 -> 0.0165 | I63: -0.0008308250628 | J63: 0.007
B64: =C$26 -> 2022-23 | D64: =D$26 -> Aug- 21 | E64: =E$26 -> 2023 | G64: =G$26 -> 0.01546271077 | H64: =H$26 -> 0.025 | I64: 0.01094323963 | J64: 0.018
B65: =C$27 -> 2023-24 | D65: =D$27 -> Aug- 22 | E65: =E$27 -> 2024 | G65: =G$27 -> 0.07220862582 | H65: =H$27 -> 0.042 | I65: 0.08550205642 | J65: 0.065
B70: Table 4 | C70: 3-factor BCC, NSW total
B71: NSW | G71: =G11 -> Other costs | H71: =H11 -> Labour costs | I71: =I11 -> Asset costs | J71: 3-factor BCC
B72: Weight | G72: =Inputs!E$38 -> 0.4 | H72: =Inputs!F$38 -> 0.39 | I72: =Inputs!G$38 -> 0.21 | J72: =SUM(G72:I72)-1 -> 0
B73: =B19 -> 2015 | D73: =D19 -> Aug- 14 | E73: 2016 | G73: =G19 -> 0.0321393643 | H73: 0.018
B74: 2016 | D74: Aug- 15 | E74: 2017 | G74: 0.01713877648 | H74: 0.028 | I74: =I20 -> 0.01632766102 | J74: =ROUND(SUMPRODUCT($G$72:$I$72,G74:I74),3) -> 0.021
B75: 2017 | D75: Aug- 16 | E75: 2018 | G75: 0.0038076293 | H75: 0.0275 | I75: -0.002865891436 | J75: =ROUND(SUMPRODUCT($G$72:$I$72,G75:I75),3) -> 0.012
B76: 2018 | D76: Aug- 17 | E76: 2019 | G76: 0.01583217913 | H76: 0.021 | I76: -0.001828149671 | J76: 0.014
B77: 2019 | D77: Aug- 18 | E77: 2020 | G77: 0.02179187472 | H77: 0.025 | I77: 0.01255815161 | J77: 0.021
B78: 2020 | D78: Aug- 19 | E78: 2021 | G78: 0.01222739924 | H78: 0.0235 | I78: 0.03483250406 | J78: 0.021
B79: 2021 | D79: Aug- 20 | E79: 2022 | G79: 0.002112541073 | H79: 0.0165 | I79: -0.0008308250628 | J79: 0.007
B80: 2022 | D80: Aug- 21 | E80: 2023 | G80: 0.01546271077 | H80: 0.025 | I80: 0.01094323963 | J80: 0.018
B81: 2023 | D81: Aug- 22 | E81: 2024 | G81: 0.07220862582 | H81: 0.042 | I81: 0.08550205642 | J81: 0.063
A98: =#REF!+1 -> 
